Workbook

Sheet Sheet2 (hidden)
A1: 附表1：
A2: 事业单位资产负债清查审计情况表
A4: 被审计单位：浙江省职业介绍服务指导中心 | S4: 金额单位：元
A5: 项目 | B5: 行次 | C5: 原账面数 | D5: 单位清查数 | G5: 审计确认数 | K5: 项目 | L5: 行次 | M5: 原账面数 | N5: 单位清查数 | Q5: 审计确认数
D6: 清查增加数 | E6: 清查减少数 | F6: 清查数 | G6: 清查增加数 | H6: 清查减少数 | I6: 清查数 | N6: 清查增加数 | O6: 清查减少数 | P6: 清查数 | Q6: 清查增加数 | R6: 清查减少数 | S6: 清查数
A7: 栏次 | C7: 1 | D7: 2 | E7: 3 | F7: 4=1+2-3 | G7: 5 | H7: 6 | I7: 7=1+5-6 | K7: 栏次 | M7: 8 | N7: 9 | O7: 10 | P7: 11=8+9-10 | Q7: 12 | R7: 13 | S7: 14=8+12-13
A8: 一、资产合计 | B8: 1 | C8: 16895642.11 | D8: 143751.90 | E8: 143751.90 | F8: 16895642.11 | G8: 143751.90 | H8: 143751.90 | I8: 16895642.11 | K8: 四、负债合计 | L8: 29 | M8: 2894632.05 | O8: 0.00 | P8: 2894632.05 | S8: 2894632.05
A9: 现金 | B9: 2 | C9: 988.85 | F9: 988.85 | I9: 988.85 | K9: 借入款项 | L9: 30
A10: 银行存款 | B10: 3 | C10: 5214833.35 | F10: 5214833.35 | I10: 5214833.35 | K10: 应付票据 | L10: 31
A11: 财政应返还额度 | B11: 4 | K11: 应付账款 | L11: 32
A12: 应收票据 | B12: 5 | K12: 预收账款 | L12: 33
A13: 应收账款 | B13: 6 | K13: 其他应付款 | L13: 34 | M13: 2881327.04 | P13: 2881327.04 | S13: 2881327.04
A14: 预付账款 | B14: 7 | K14: 应缴预算款 | L14: 35
A15: 其他应收款 | B15: 8 | D15: 143751.90 | F15: 143751.90 | G15: 143751.90 | I15: 143751.90 | K15: 应缴财政专户款 | L15: 36
A16: 存货 | B16: 9 | K16: 应交税金 | L16: 37 | S16: 0.00
A17: 其中：材料 | B17: 10 | K17: 应付工资（离退休费） | L17: 38
A18: 产成品 | B18: 11 | K18: 应付地方（部门）津贴补贴 | L18: 39
A19: 未完项目成本 | B19: 12 | K19: 应付其他个人收入 | L19: 40
A20: 对外投资 | B20: 13 | C20: 480000.00 | F20: 480000.00 | I20: 480000.00 | K20: 其他负债 | L20: 41 | M20: 13305.01 | P20: 13305.01 | S20: 13305.01
A21: 其中：债券投资 | B21: 14 | L21: 42
A22: 固定资产原值 | B22: 15 | C22: 11199819.91 | E22: 92382.92 | F22: 11107436.99 | H22: 92382.92 | I22: 11107436.99 | K22: 五、净资产合计 | L22: 43 | M22: 14001010.06 | P22: 14001010.06 | S22: 14001010.06
A23: 减：累计折旧 | B23: 16 | K23: 事业基金 | L23: 44 | M23: 1411568.83 | P23: 1411568.83 | S23: 1411568.83
A24: 固定资产净值 | B24: 17 | C24: 11199819.91 | E24: 92382.92 | F24: 11107436.99 | H24: 92382.92 | I24: 11107436.99 | K24: 其中：一般基金 | L24: 45 | M24: 931568.83 | P24: 931568.83 | S24: 931568.83
A25: 无形资产 | B25: 18 | K25: 投资基金 | L25: 46 | M25: 480000.00 | P25: 480000.00 | S25: 480000.00
A26: 其中: 土地使用权 | B26: 19 | K26: 固定基金 | L26: 47 | M26: 11199819.91 | P26: 11199819.91 | S26: 11199819.91
A27: 其他资产 | B27: 20 | K27: 专用基金 | L27: 48 | M27: 472215.17 | P27: 472215.17 | S27: 472215.17
A28: 资产清查待处理 | B28: 21 | E28: 51368.98 | F28: -51368.98 | H28: 51368.98 | I28: -51368.98 | K28: 事业结余 | L28: 49
B29: 22 | K29: 经营结余 | L29: 50
A30: 二、预拨下年补助 | B30: 23 | K30: 其他净资产 | L30: 51 | M30: 917406.15 | P30: 917406.15 | S30: 917406.15
B31: 24 | L31: 52
A32: 三、地勘工作支出合计 | B32: 25 | K32: 六、预收下年补助 | L32: 53
B33: 26 | L33: 54
B34: 27 | K34: 七、地勘工作拨款 | L34: 55
A35: 资产部类合计 | B35: 28 | C35: 16895642.11 | D35: 143751.90 | E35: 143751.90 | F35: 16895642.11 | G35: 143751.90 | H35: 143751.90 | I35: 16895642.11 | K35: 负债部类合计 | L35: 56 | M35: 16895642.11 | N35: 0.00 | O35: 0.00 | P35: 16895642.11 | Q35: 0.00 | R35: 0.00 | S35: 16895642.11

Sheet 资产负债表1
A1: 表1
A2: 省级党政机关和事业单位所属企业资产负债表
A3: 单位名称：杭州中惠医疗器械有限公司 | G3: 2018年12月31日 | J3: 金额单位：人民币元
A4: 资产 | B4: 行次 | C4: 账面数 | D4: 清查调整数 | G4: 清查数 | H4: 负债及所有者权益 | I4: 行次 | J4: =C4 -> 账面数 | K4: 清查调整数 | N4: 清查数
D5: 小计 | E5: 增加 | F5: 减少 | K5: 小计 | L5: 增加 | M5: 减少
A6: 流动资产： | H6: 流动负债：
A7: 货币资金 | B7: 1 | C7: =资产负债表!C5 -> 3,968,086.74 | G7: =C7+D7 -> 3,968,086.74 | H7: 短期借款 | I7: 68 | N7: =J7+K7 -> 0.00
A8: 短期投资 | B8: 2 | G8: 0.00 | H8: 应付票据 | I8: 69 | N8: 0.00
A9: 应收票据 | B9: 3 | G9: 0.00 | H9: 应付账款 | I9: 70 | J9: =资产负债表!H9 -> 2,935,940.84 | N9: 2,935,940.84
A10: 应收股利 | B10: 4 | H10: 预收账款 | I10: 71 | N10: 0.00
A11: 应收利息 | B11: 5 | H11: 应付工资 | I11: 72 | J11: =资产负债表!H11 -> 153,599.00 | N11: 153,599.00
A12: 应收账款 | B12: 6 | G12: =C12+D12 -> 0.00 | H12: 应付福利费 | I12: 73 | N12: 0.00
A13: 其他应收款 | B13: 7 | C13: =资产负债表!C13 -> 73,840.29 | G13: 73,840.29 | H13: 应付股利 | I13: 74 | N13: 0.00
A14: 预付款项 | B14: 8 | C14: =资产负债表!C10 -> 33,837.70 | G14: 33,837.70 | H14: 应交税金 | I14: 75 | J14: =资产负债表!H12 -> 171,678.38 | N14: 171,678.38
A15: 应收补贴款 | B15: 9 | G15: 0.00 | H15: 其他应交款 | I15: 80 | N15: 0.00
A16: 存货 | B16: 10 | C16: =资产负债表!C14 -> 1,202,051.02 | G16: 1,202,051.02 | H16: 其他应付款 | I16: 81 | J16: =资产负债表!H15 -> 90,306.74 | N16: 90,306.74
A17: 待摊费用 | B17: 11 | G17: 0.00 | H17: 预提费用 | I17: 82 | N17: 0.00
A18: 一年内到期的长期债券投资 | B18: 21 | G18: 0.00 | H18: 预计负债 | I18: 83 | N18: 0.00
A19: 其他流动资产 | B19: 24 | G19: 0.00 | H19: 一年内到期的长期负债 | I19: 86 | N19: 0.00
A20: 流动资产合计 | B20: 31 | C20: =SUM(C7:C19) -> 5,277,815.75 | D20: 0.00 | E20: 0.00 | F20: 0.00 | G20: 5,277,815.75 | H20: 其他流动负债 | I20: 90 | N20: 0.00
A21: 长期投资： | G21: 0.00 | N21: 0.00
A22: 长期股权投资 | B22: 32 | C22: =资产负债表!C29 -> 325,000.00 | G22: 325,000.00 | H22: 流动负债合计 | I22: 100 | J22: =SUM(J7:J20) -> 3,351,524.96 | K22: 0.00 | L22: 0.00 | M22: 0.00 | N22: 3,351,524.96
A23: 长期债权投资 | B23: 34 | G23: 0.00 | H23: 长期负债： | N23: 0.00
A24: 长期投资合计 | B24: 38 | C24: =C22+C23 -> 325,000.00 | G24: 325,000.00 | H24: 长期借款 | I24: 101 | N24: 0.00
A25: 固定资产： | G25: 0.00 | H25: 应付债券 | I25: 102 | N25: 0.00
A26: 固定资产原价 | B26: 39 | C26: =固定资产清查汇总表!D7 -> 130,851.61 | G26: 130,851.61 | H26: 长期应付款 | I26: 103 | N26: 0.00
A27: 减：累计折旧 | B27: 40 | C27: =企业基本情况表!C28 -> 113,239.35 | G27: 113,239.35 | H27: 专项应付款 | I27: 106 | N27: 0.00
A28: 固定资产净值 | B28: 41 | C28: =C26-C27 -> 17,612.26 | G28: 17,612.26 | H28: 其他长期负债 | I28: 108 | N28: 0.00
A29: 减：固定资产减值准备 | B29: 42 | H29: 长期负债合计 | I29: 110 | N29: 0.00
A30: 固定资产净额 | B30: 43 | C30: =C28-C29 -> 17,612.26 | H30: 递延税项： | N30: 0.00
A31: 工程物资 | B31: 44 | G31: =C31+D31 -> 0.00 | H31: 递延税款贷项 | I31: 111 | N31: 0.00
A32: 在建工程 | B32: 45 | G32: 0.00 | H32: 负债合计 | I32: 114 | J32: =J22+J29 -> 3,351,524.96 | K32: 0.00 | L32: 0.00 | M32: 0.00 | N32: 3,351,524.96
A33: 固定资产清理 | B33: 46 | G33: 0.00 | N33: 0.00
A34: 固定资产合计 | B34: 50 | C34: =C30+C31+C32+C33 -> 17,612.26 | G34: 17,612.26 | H34: 所有者权益（或股东权益）： | N34: 0.00
A35: 无形资产及其他资产： | G35: 0.00 | H35: 实收资本（或股本） | I35: 115 | J35: 500,000.00 | N35: 500,000.00
A36: 无形资产 | B36: 51 | C36: =资产负债表!C37 -> 220,688.71 | G36: 220,688.71 | H36: 减：已归还投资 | I36: 116 | N36: 0.00
A37: 长期待摊费用 | B37: 52 | G37: 0.00 | H37: 实收资本（或股本）净额 | I37: 117 | N37: 0.00
A38: 其他长期资产 | B38: 53 | G38: 0.00 | H38: 资本公积 | I38: 118 | N38: 0.00
A39: 无形资产及其他资产合计 | B39: 60 | C39: =C36+C37+C38 -> 220,688.71 | G39: 220,688.71 | H39: 盈余公积 | I39: 119 | N39: 0.00
G40: 0.00 | H40: 其中：法定盈余公积 | I40: 120 | N40: 0.00
A41: 递延税项： | G41: 0.00 | H41: 未分配利润 | I41: 121 | J41: =资产负债表!H40 -> 1,989,591.76 | N41: 1,989,591.76
A42: 递延税款借项 | B42: 61 | G42: 0.00 | H42: 所有者权益合计 | I42: 122 | J42: =J35+J41 -> 2,489,591.76 | K42: 0.00 | L42: 0.00 | M42: 0.00 | N42: 2,489,591.76
A43: 资产总计 | B43: 67 | C43: =C20+C24+C34+C39+C42 -> 5,841,116.72 | D43: 0.00 | E43: 0.00 | F43: 0.00 | G43: 5,841,116.72 | H43: 负债和所有者权益总计 | I43: 135 | J43: =J32+J42 -> 5,841,116.72 | K43: 0.00 | L43: 0.00 | M43: 0.00 | N43: 5,841,116.72

Sheet 资产负债表 (hidden)
A1: 资 产 负 债 清 查 表
A2: 单位名称：杭州中惠医疗器械有限公司 | E2: 2018年12月31日 | H2: 金额单位：人民币元
A3: 项 目 | B3: 行次 | C3: 账面数 | D3: 清查调整数 | E3: 清查数 | F3: 负债及所有者权益 | G3: 行次 | H3: =C3 -> 账面数 | I3: =D3 -> 清查调整数 | J3: =E3 -> 清查数
A4: 流动资产： | B4: 1 | F4: 流动负债： | G4: 45
A5: 货币资金 | B5: 2 | C5: ='货币资金--现金明细'!C17+'货币资金--银行存款明细'!C20+'货币资金--其他货币资金'!D19 -> 3,968,086.74 | D5: ='货币资金--其他货币资金'!E19 -> 0.00 | E5: =C5+D5 -> 3,968,086.74 | F5: 短期借款 | G5: 46 | J5: =H5+I5 -> 0.00
A6: 以公允价值计量且其变动 计入当期损益的金融资产 | B6: 3 | E6: =C6+D6 -> 0.00 | F6: 以公允价值计量且其变动 计入当期损益的金融负债 | G6: 47 | J6: =H6+I6 -> 0.00
A7: 衍生金融资产 | B7: 4 | F7: 衍生金融负债 | G7: 48
A8: 应收票据 | B8: 5 | E8: =C8+D8 -> 0.00 | F8: 应付票据 | G8: 49 | J8: 0.00
A9: 应收账款 | B9: 6 | D9: =其他应收账款清查明细表!F16-坏账准备!F7 -> 0.00 | E9: 0.00 | F9: 应付账款 | G9: 50 | H9: =应付账款清查明细表!E206 -> 2,935,940.84 | I9: =应付账款清查明细表!F206 -> 0.00 | J9: 2,935,940.84
A10: 预付款项 | B10: 7 | C10: =预付账款清查明细表!E28-坏账准备!E8-坏账准备!E9-坏账准备!E10 -> 33,837.70 | E10: 33,837.70 | F10: 预收款项 | G10: 51 | H10: =预收账款清查明细表!E24 -> 0.00 | I10: =预收账款清查明细表!F24 -> 0.00 | J10: 0.00
A11: 应收利息 | B11: 8 | E11: 0.00 | F11: 应付职工薪酬 | G11: 52 | H11: =应付职工薪酬清查明细表!D23 -> 153,599.00 | I11: =应付职工薪酬清查明细表!E23 -> 0.00 | J11: 153,599.00
A12: 应收股利 | B12: 9 | E12: 0.00 | F12: 应交税费 | G12: 53 | H12: =应交税费清查明细表!D22 -> 171,678.38 | I12: =应交税费清查明细表!E22 -> 0.00 | J12: 171,678.38 | K12: 44610.17
A13: 其他应收款 | B13: 10 | C13: =其他应收账款清查明细表!E16-坏账准备!E18 -> 73,840.29 | D13: =预付账款清查明细表!F28-坏账准备!F8-坏账准备!F9-坏账准备!F10 -> 0.00 | E13: 73,840.29 | F13: 应付利息 | G13: 54 | H13: =应付利息清查明细表!D17 -> 0.00 | I13: =应付利息清查明细表!E17 -> 0.00 | J13: 0.00 | K13: =K12-I12 -> 44610.17
A14: 存货 | B14: 11 | C14: =存货清查汇总表!D25 -> 1,202,051.02 | D14: =存货清查汇总表!E25 -> 0.00 | E14: 1,202,051.02 | F14: 应付股利 | G14: 55 | J14: 0.00
A15: 持有待售资产 | B15: 12 | F15: 其他应付款 | G15: 56 | H15: =其他应付款清查明细表!E22 -> 90,306.74 | I15: =其他应付款清查明细表!F22 -> 0.00 | J15: 90,306.74
A16: 一年内到期的非流动资产 | B16: 13 | E16: 0.00 | F16: 持有待售负债 | G16: 57 | J16: 0.00
A17: 其他流动资产 | B17: 14 | C17: =其他流动资产!I18 -> 0.00 | D17: =其他流动资产!J18 -> 0.00 | E17: 0.00 | F17: 一年内到期的非流动负债 | G17: 58 | J17: 0.00
A18: 流动资产合计 | B18: 15 | C18: =SUM(C5:C17) -> 5,277,815.75 | D18: =SUM(D5:D17) -> 0.00 | E18: 5,277,815.75 | F18: 其他流动负债 | G18: 59 | J18: 0.00
E19: 0.00 | F19: 流动负债合计 | G19: 60 | H19: =SUM(H4:H18) -> 3,351,524.96 | I19: =SUM(I4:I18) -> 0.00 | J19: =SUM(J4:J18) -> 3,351,524.96
E20: 0.00 | F20: 非流动负债： | G20: 61 | J20: 0.00
E21: 0.00 | F21: 长期借款 | G21: 62 | H21: =长期借款清查明细表!E18 -> 0.00 | I21: =长期借款清查明细表!F18 -> 0.00 | J21: 0.00
E22: 0.00 | F22: 应付债券 | G22: 63 | J22: 0.00
D23: =长期股权投资明细表!G17 -> 0.00 | E23: 0.00 | F23: 长期应付款 | G23: 64 | J23: 0.00
F24: 长期应付职工薪酬 | G24: 65
A25: 非流动资产： | B25: 16 | E25: 0.00 | F25: 专项应付款 | G25: 66 | J25: 0.00
A26: 可供出售金融资产 | B26: 17 | E26: 0.00 | F26: 预计负债 | G26: 67 | J26: 0.00
A27: 持有至到期投资 | B27: 18 | F27: 递延收益 | G27: 68 | H27: =递延收益清查明细表!D21 -> 0.00 | I27: =递延收益清查明细表!E21 -> 0.00 | J27: 0.00
A28: 长期应收款 | B28: 19 | E28: 0.00 | F28: 递延所得税负债 | G28: 69 | J28: 0.00
A29: 长期股权投资 | B29: 20 | C29: =长期股权投资明细表!F17 -> 325,000.00 | D29: =长期股权投资明细表!G17 -> 0.00 | E29: 325,000.00 | F29: 其他非流动负债 | G29: 70 | J29: 0.00 | K29: 40,560.81
A30: 投资性房地产 | B30: 21 | E30: 0.00 | F30: 非流动负债合计 | G30: 71 | H30: =SUM(H21:H29) -> 0.00 | J30: 0.00 | K30: 442.95
A31: 固定资产 | B31: 22 | C31: =固定资产清查汇总表!E22 -> 17,612.26 | D31: =固定资产清查汇总表!G22 -> 0.00 | E31: 17,612.26 | F31: 负债合计 | G31: 72 | H31: =H19+H30 -> 3,351,524.96 | I31: =I19+I30 -> 0.00 | J31: =J19+J30 -> 3,351,524.96 | K31: =SUM(K29:K30) -> 41,003.76
A32: 在建工程 | B32: 23 | E32: 0.00 | F32: 所有者权益： | G32: 73 | J32: 0.00
A33: 工程物资 | B33: 24 | D33: =无形资产!F19 -> 0.00 | E33: 0.00 | F33: 实收资本 | G33: 74 | H33: =所有者权益清查汇总表!D8 -> 500,000.00 | I33: =所有者权益清查汇总表!E8 -> 0.00 | J33: 500,000.00
A34: 固定资产清理 | B34: 25 | E34: 0.00 | F34: 其他权益工具 | G34: 75
A35: 生产性生物资产 | B35: 26 | E35: 0.00 | F35: 资本公积 | G35: 76 | H35: =所有者权益清查汇总表!D9 -> 0.00 | I35: =所有者权益清查汇总表!E9 -> 0.00 | J35: 0.00
A36: 油气资产 | B36: 27 | E36: 0.00 | F36: 减 ：库存股 | G36: 77 | J36: 0.00
A37: 无形资产 | B37: 28 | C37: =无形资产!E19 -> 220,688.71 | D37: =无形资产!F19 -> 0.00 | E37: 220,688.71 | F37: 其他综合收益 | G37: 78
A38: 开发支出 | B38: 29 | E38: 0.00 | F38: 专项储备 | G38: 79
A39: 商誉 | B39: 30 | E39: 0.00 | F39: 盈余公积 | G39: 80 | H39: =所有者权益清查汇总表!D10 -> 0.00 | I39: =所有者权益清查汇总表!E10 -> 0.00 | J39: 0.00
A40: 长期待摊费用 | B40: 31 | C40: ='长期待摊费用 '!H36 -> 0.00 | E40: 0.00 | F40: 未分配利润 | G40: 81 | H40: =所有者权益清查汇总表!D11 -> 1,989,591.76 | I40: =所有者权益清查汇总表!E11 -> 0.00 | J40: 1,989,591.76
A41: 递延所得税资产 | B41: 32 | E41: 0.00 | F41: 归属于母公司所有者权益合计 | G41: 82 | J41: 0.00
A42: 其他非流动资产 | B42: 33 | D42: =其他非流动资产!K18 -> 0.00 | E42: 0.00 | F42: 少数股东权益 | G42: 83 | J42: 0.00
A43: 非流动资产合计 | B43: 34 | C43: =SUM(C25:C42) -> 563,300.97 | D43: =SUM(D25:D42) -> 0.00 | E43: 563,300.97 | F43: 所有者权益合计 | G43: 84 | H43: =SUM(H33:H40) -> 2,489,591.76 | I43: =SUM(I33:I40) -> 0.00 | J43: =SUM(J33:J40) -> 2,489,591.76
A44: 资 产 总 计 | B44: 35 | C44: =C43+C18 -> 5,841,116.72 | D44: =D43+D18 -> 0.00 | E44: 5,841,116.72 | F44: 负债和所有者权益总计 | G44: 85 | H44: =H43+H31 -> 5,841,116.72 | I44: =I43+I31 -> 0.00 | J44: =J43+J31 -> 5,841,116.72
J47: =J44-E44 -> -1.11758709e-08
J48: =J44-E44 -> -1.11758709e-08

Sheet 企业基本情况表
A1: 企业基本情况表
A2: 编制单位：杭州中惠医疗器械有限公司 2018年12月31日 金额单位：元
A3: 项 目 | B3: 行次 | C3: 金额 | D3: 项 目 | E3: 行次 | F3: 金额
A4: 一、户数情况(户)： | B4: 1 | D4: 六、年度决算中已披露的不良资产及潜亏挂账 | E4: 35
A5: （一）总公司所属全部子公司户数 | B5: 2 | D5: (一)资产损失净额 | E5: 36
A6: 其中：二级 | B6: 3 | D6: 1、流动资产盘亏 | E6: 37
A7: 三级 | B7: 4 | D7: 2、流动资产损失 | E7: 38
A8: 三级以下 | B8: 4-1 | D8: 3、流动资产盘盈 | E8: 39
A9: (二)开展清产核资企业户数 | B9: 5 | D9: 4、固定资产盘亏 | E9: 40
A10: 其中：二级 | B10: 6 | D10: 5、固定资产毁损、报废 | E10: 41
A11: 三级 | B11: 7 | D11: 6、固定资产盘盈 | E11: 42
A12: 三级以下 | B12: 7-1 | D12: (二)其他不良资产 | E12: 43
A13: (三)未开展清产核资企业户数 | B13: 8 | D13: 1、三年以上应收(预付)款项 | E13: 44
A14: 其中：二级 | B14: 9 | D14: 2、长期积压存货 | E14: 45
A15: 三级 | B15: 10 | D15: 3、不良长期投资 | E15: 46
A16: 三级以下 | B16: 11 | D16: (三)潜亏挂账 | E16: 47
A17: (四)已资不抵债企业户数 | B17: 12 | D17: 其中：政策性影响的潜亏挂账 | E17: 48
A18: (五)已歇业、停产企业户数 | B18: 13 | D18: (四)经营亏损挂账 | E18: 49
A19: (六)已进入破产程序企业户数 | B19: 14 | D19: (五)已消化处理损失挂账 | E19: 50
A20: 二、职工人数 | B20: 15 | D20: 七、或有负债 | E20: 51 | G20: 1646815.04
A21: (一)从业人数 | B21: 16 | C21: 16 | D21: 其中：(一)已贴现商业承兑汇票形成的或有负债 | E21: 52
A22: (二)职工人数 | B22: 17 | C22: 16 | D22: (二)提供债务担保形成的或有负债 | E22: 53
A23: 其中：在岗职工人数 | B23: 18 | C23: 16 | D23: 1、为集团内单位提供担保形成的或有负债 | E23: 54
A24: 三、固定资产折旧变动情况 | B24: 19 | D24: 2、为集团外单位提供担保形成的或有负债 | E24: 55
A25: (一)年初余额 | B25: 20 | C25: 101,530.67 | D25: (三)未决诉讼和仲裁形成的或有负债 | E25: 56 | G25: -24563.34
A26: (二)年初至清产核资基准日增加额 | B26: 21 | C26: 11,708.68 | D26: 八、已抵押资产 | E26: 57
A27: (三)年初至清产核资基准日减少额 | B27: 22 | D27: 其中：逾期抵押资产 | E27: 58 | G27: 32848.1635
A28: (四)清产核资基准日余额 | B28: 23 | C28: =C25+C26-C27 -> 113,239.35 | D28: 九、超支挂账情况 | E28: 59
A29: 四、预提固定资产大修理费用增减变动情况 | B29: 24 | D29: (一)应付工资超支挂账 | E29: 60
A30: (二)年初至清产核资基准日增加额 | B30: 25 | D30: (二)应付福利费超支挂账 | E30: 61 | G30: =C27-G27 -> -32,848.16
A31: (三)年初至清产核资基准日减少额 | B31: 26 | D31: (三)应付税金超支挂账 | E31: 62
A32: (四)清产核资基准日余额 | B32: 27 | D32: (四)其他超支挂账 | E32: 63 | G32: 46775.35376
A33: 五、未还款情况 | B33: 28 | D33: 十、欠发欠缴情况 | E33: 64 | G33: 76724.51726
A34: (一)清查出的逾期借款本息 | B34: 29 | D34: (一)欠发职工工资额 | E34: 65
A35: 其中：本金 | B35: 30 | D35: (二)欠缴职工养老保险额 | E35: 66
A36: (二)清查出的无法付出的应付款项 | B36: 31 | D36: (三)欠缴职工基本医疗保险额 | E36: 67
A37: 其中：三年以上无法付出的应付款项 | B37: 32 | D37: (四)欠缴职工失业保险额 | E37: 68
B38: 33
B39: 34

Sheet 企业基本情况表(续表)
A1: 企业基本情况表(续表)
A2: =企业基本情况表!A2 -> 编制单位：杭州中惠医疗器械有限公司 2018年12月31日 金额单位：元
A3: 项 目 | B3: 行次 | C3: 数量 | D3: 金额 | E3: 项 目 | F3: 行次 | G3: =C3 -> 数量 | H3: 金额
A4: 十一、资产总额按资产属性划分情况 | B4: 69 | E4: 1、担保笔数 | F4: 92
A5: （一）按资产是否参与生产经营划分： | B5: 70 | D5: =D6 -> 5,841,116.72 | E5: 2、担保金额 | F5: 93
A6: 1、经营性资产 | B6: 71 | D6: =资产负债表!E44 -> 5,841,116.72 | E6: 3、逾期未偿还的担保金额 | F6: 94
A7: 2、非经营性资产 | B7: 72 | E7: 十四、土地资产基本情况 | F7: 95
A8: (二)按资产在企业中所承担的任务划分 | B8: 73 | D8: =D5 -> 5,841,116.72 | E8: (一)按土地资产入账情况分 | F8: 96
A9: 1、主业资产 | B9: 74 | D9: =D6 -> 5,841,116.72 | E9: 1、固定资产中土地资产 | F9: 97
A10: 2、辅业资产 | B10: 75 | E10: 2、无形资产中土地资产 | F10: 98
A11: 十二、基准日剥离和提留资产余额 | B11: 76 | E11: 3、存货中土地资产 | F11: 99
A12: (一)剥离资产(剥离后代管资产) | B12: 77 | E12: 4、在建工程在土地资产 | F12: 100
A13: 1、剥离的非经营性资产 | B13: 78 | E13: 5、其他土地资产(包括未入账) | F13: 101
A14: 2、剥离的其他资产 | B14: 79 | E14: (二)按土地资产取得方式分： | F14: 102
A15: (二)提留资产 | B15: 80 | E15: 1、行政划拨取得 | F15: 103
A16: 1、提留的职工安置费 | B16: 81 | E16: 2、受让取得 | F16: 104
A17: 2、提留的社会统筹费 | B17: 82 | E17: 3、作价投入或者入股取得 | F17: 105
A18: 3、离退休人员统筹以外的费用 | B18: 83 | E18: 4、租赁取得 | F18: 106
A19: 4、内退人员生活费用等 | B19: 84 | E19: 5、其他方式取得 | F19: 107
A20: 5、其他 | B20: 85 | E20: 十五、房屋建筑物基本情况 | F20: 108
A21: 十三、企业提供担保情况 | B21: 86 | E21: 1、生产经营用房 | F21: 109
A22: (一)对集团内部提供担保情况 | B22: 87 | E22: 2、出租房 | F22: 110
A23: 1、担保笔数 | B23: 88 | E23: 3、职工生活用房 | F23: 111
A24: 2、担保金额 | B24: 89 | E24: 4、商品房 | F24: 112
A25: 3、逾期未偿还的担保金额 | B25: 90 | E25: 5、其他房屋建筑物 | F25: 113
A26: (二)对集团外部提供担保情况 | B26: 91

Sheet 资金核实申报表 (hidden)
A1: 资 金 核 实 申 报 表
A2: =企业基本情况表!A2 -> 编制单位：杭州中惠医疗器械有限公司 2018年12月31日 金额单位：元 | D2: 2018年12月31日 | L2: 金额单位：人民币元
A3: 项 目 | B3: 行次 | C3: 清查数 | D3: 企业申报净损失数 | F3: 中介审核净损失数 | H3: 负债及所有者权益 | I3: 行次 | J3: =C3 -> 清查数 | K3: 企业申报净损失数 | M3: 中介审核净损失数
D4: 列损益 | E4: 核权益 | F4: 列损益 | G4: 核权益 | K4: 列损益 | L4: 核权益 | M4: 列损益 | N4: 核权益
C5: 1 | D5: 2 | E5: 3 | F5: 4 | G5: 5 | J5: 6 | K5: 7 | L5: 8 | M5: 9 | N5: 10
A6: 一、流动资产合计 | B6: 1 | C6: =SUM(C7:C13) -> 5,277,815.75 | D6: =D9+D12 -> 0.00 | E6: 0.00 | F6: =D6 -> 0.00 | G6: 0.00 | H6: 六、流动负债 | I6: 22 | J6: =资产负债表!J19 -> 3,351,524.96 | L6: 0.00
A7: 货币资金 | B7: 2 | C7: =资产负债表!E5 -> 3,968,086.74 | D7: 0.00 | E7: 0.00 | F7: 0.00 | G7: 0.00 | H7: 七、长期负债 | I7: 23 | J7: =资产负债表!J30 -> 0.00
A8: 应收票据 | B8: 3 | D8: 0.00 | E8: 0.00 | F8: 0.00 | G8: 0.00 | H8: 负债总计 | I8: 24 | J8: =J6+J7 -> 3,351,524.96 | K8: =K6 -> 0.00 | L8: 0.00 | M8: =M6 -> 0.00 | N8: 0.00
A9: 应收账款 | B9: 4 | C9: =资产负债表!E9 -> 0.00 | E9: 0.00 | F9: =D9 -> 0.00 | G9: 0.00 | H9: *少数股东权益 | I9: 25
A10: 预付账款 | B10: 5 | C10: =资产负债表!E10 -> 33,837.70 | F10: =D10 -> 0.00 | H10: 八、实收资本 | I10: 26 | J10: =资产负债表!J33 -> 500,000.00 | K10: 0.00 | L10: 0.00 | M10: 0.00 | N10: 0.00
A11: 存货 | B11: 6 | C11: =资产负债表!E14 -> 1,202,051.02 | H11: 国家资本 | I11: 27 | J11: =J10 -> 500,000.00
A12: 其他应收款 | B12: 7 | C12: =资产负债表!E13 -> 73,840.29 | E12: 0.00 | G12: 0.00 | H12: 集体资本 | I12: 28
A13: 其他流动资产 | B13: 8 | C13: =资产负债表!E17 -> 0.00 | H13: 法人资本： | I13: 29 | K13: 0.00 | L13: 0.00 | M13: 0.00 | N13: 0.00
A14: 二、长期投资 | B14: 9 | C14: =资产负债表!E29 -> 325,000.00 | H14: 其中：国有法人资本 | I14: 30 | K14: 0.00 | L14: 0.00 | M14: 0.00 | N14: 0.00
A15: *合并价差 | B15: 10 | H15: 集团法人资本 | I15: 31
A16: 三、固定资产 | B16: 11 | H16: 个人资本 | I16: 32
A17: 其中： 固定资产原价 | B17: 12 | C17: =固定资产清查汇总表!H22 -> 130,851.61 | D17: 0.00 | E17: 0.00 | H17: 外商资本 | I17: 33
A18: 减：累计折旧 | B18: 13 | C18: =企业基本情况表!C28 -> 113,239.35 | D18: 0.00 | E18: 0.00 | H18: 九、资本公积 | I18: 34 | J18: =资产负债表!J35 -> 0.00
A19: 固定资产净值 | B19: 14 | C19: =C17-C18 -> 17,612.26 | D19: 0.00 | E19: 0.00 | F19: =F17-F18 -> 0.00 | H19: 十、盈余公积 | I19: 35 | J19: =资产负债表!J39 -> 0.00 | K19: 0.00 | L19: 0.00 | M19: 0.00 | N19: 0.00
A20: 工程物资 | B20: 15 | H20: 其中：法定盈余公积 | I20: 36 | J20: =J19 -> 0.00 | K20: 0.00 | L20: 0.00 | M20: 0.00 | N20: 0.00
A21: 在建工程 | B21: 16 | I21: 37
A22: 四、无形资产及递延资产 | B22: 17 | C22: =资产负债表!C37 -> 220,688.71 | D22: 0.00 | E22: 0.00 | F22: 0.00 | G22: 0.00 | H22: 十一、未确认的投资损失 | I22: 38
A23: 其中：土地使用权 | B23: 18 | H23: 十二、未分配利润 | I23: 39 | J23: =资产负债表!J40 -> 1,989,591.76 | K23: =D26 -> 0.00 | L23: 0.00 | O23: -462632.72
A24: 五、其他资产 | B24: 19 | C24: =资产负债表!E40 -> 0.00 | D24: =D25 -> 0.00 | E24: 0.00 | F24: =F25 -> 0.00 | G24: 0.00 | H24: 十三、外币报表折算差额 | I24: 40 | O24: =M23-O23 -> 462632.72
A25: 递延所得说资产 | B25: 20 | C25: =资产负债表!D40 -> 0.00 | F25: =D25 -> 0.00 | H25: 所有者权益总计 | I25: 41 | J25: =J23+J20+J10+J18 -> 2,489,591.76 | K25: =K23 -> 0.00 | L25: 0.00 | M25: =M23 -> 0.00 | N25: =N23 -> 0.00
A26: 资产总计 | B26: 21 | C26: =C22+C19+C6+C24+C14 -> 5,841,116.72 | D26: =D6+D24 -> 0.00 | E26: 0.00 | F26: =F19+F11+F13 -> 0.00 | G26: =G19 -> 0.00 | H26: 负债及所有者权益合计 | I26: 42 | J26: =J25+J8 -> 5,841,116.72 | K26: =K25+K8 -> 0.00 | L26: =L25+L8 -> 0.00 | M26: =M25+M8 -> 0.00 | N26: =N25+N8 -> 0.00
F29: -25249.58
F30: =F19+F29 -> -25249.58 | M30: -206425.86

Sheet 资金核实申报表 (2)
A1: 表3
A2: 资 金 核 实 申 报 表
A3: =资金核实申报表!A2 -> 编制单位：杭州中惠医疗器械有限公司 2018年12月31日 金额单位：元 | G3: 2007年4月29日 | I3: 2018年12月31日 | X3: 金额单位：人民币元
A4: 项 目 | B4: 行次 | C4: 账面数 | D4: 清查调整数 | E4: 清查数 | I4: 清查确认数 | J4: 企业申报净损失数 | L4: 中介审核净损失数 | N4: 负债及所有者权益 | O4: 行次 | P4: =C4 -> 账面数 | Q4: 清查调整数 | R4: 清查数 | S4: 0 | T4: 0 | U4: 0 | V4: 清查确认数 | W4: 企业申报净损失数 | Y4: 中介审核净损失数
J5: 列损益 | K5: 核权益 | L5: 列损益 | M5: 核权益 | W5: 列损益 | X5: 核权益 | Y5: 列损益 | Z5: 核权益
E6: 1 | J6: 2 | K6: 3 | L6: 4 | M6: 5 | R6: 6 | W6: 7 | X6: 8 | Y6: 9 | Z6: 10
A7: 流动资产： | B7: 1 | C7: =SUM(#REF!)-C2 ->  | D7: =SUM(#REF!)-D2 ->  | E7: =[1]企业资产负债表!G5 -> 0.00 | F7: =SUM(#REF!)-F2 ->  | G7: =SUM(#REF!)-G2 ->  | H7: =SUM(#REF!)-H2 ->  | I7: =SUM(#REF!)-I2 ->  | J7: =J10+J13 -> 0.00 | K7: 0.00 | L7: =J7 -> 0.00 | M7: 0.00 | N7: 流动负债： | O7: 38 | R7: =[1]企业资产负债表!N5 -> 0.00 | X7: 0.00 | Y7: =W7 -> 0.00 | Z7: 0.00
A8: 货币资金 | B8: 2 | C8: =E8 -> 3,968,086.74 | E8: =资产负债表1!C7 -> 3,968,086.74 | F8: =[1]资产负债试算表!D9 -> 17,770,691.09 | G8: =[1]资产负债试算表!E9 -> -6,770,263.45 | H8: =[1]资产负债试算表!F9 -> 0.00 | I8: =[1]资产负债试算表!G9 -> 11,000,427.64 | J8: 0.00 | K8: 0.00 | L8: 0.00 | M8: 0.00 | N8: 短期借款 | O8: 39 | P8: =R8 -> 0.00 | R8: =[1]企业资产负债表!N6 -> 0.00
A9: 短期投资 | B9: 3 | E9: =资产负债表1!C8 -> 0.00 | J9: 0.00 | K9: 0.00 | L9: 0.00 | M9: 0.00 | N9: 应付票据 | O9: 40 | R9: =[1]企业资产负债表!N7 -> 0.00 | W9: =W7 -> 0.00 | X9: 0.00 | Y9: =Y7 -> 0.00 | Z9: 0.00
A10: 应收票据 | B10: 4 | E10: =资产负债表1!C9 -> 0.00 | K10: 0.00 | L10: 0.00 | M10: 0.00 | N10: 应付账款 | O10: 41 | R10: =资产负债表1!J9 -> 2,935,940.84
A11: 应收股利 | B11: 5 | E11: =资产负债表1!C10 -> 0.00 | L11: 0.00 | N11: 预收账款 | O11: 42 | R11: =资产负债表1!J10 -> 0.00 | S11: =[1]资产负债试算表!K12 -> 0.00 | T11: =[1]资产负债试算表!L12 -> 0.00 | U11: =[1]资产负债试算表!M12 -> 0.00 | V11: =[1]资产负债试算表!N12 -> 0.00 | W11: 0.00 | X11: 0.00 | Y11: 0.00 | Z11: 0.00
A12: 应收利息 | B12: 6 | E12: =资产负债表1!C11 -> 0.00 | N12: 应付工资 | O12: 43 | P12: -426,007.30 | Q12: =-P12 -> 426,007.30 | R12: =资产负债表1!J11 -> 153,599.00 | S12: =[1]资产负债试算表!K13 -> 0.00 | T12: =[1]资产负债试算表!L13 -> 0.00 | U12: =[1]资产负债试算表!M13 -> 0.00 | V12: =[1]资产负债试算表!N13 -> 0.00
A13: 应收账款 | B13: 7 | C13: =E13 -> 0.00 | E13: =资产负债表1!C12 -> 0.00 | F13: =[1]资产负债试算表!D14 -> 0.00 | G13: =[1]资产负债试算表!E14 -> 0.00 | H13: =[1]资产负债试算表!F14 -> 0.00 | I13: =[1]资产负债试算表!G14 -> 0.00 | K13: 0.00 | M13: 0.00 | N13: 应付福利费 | O13: 44 | R13: =资产负债表1!J12 -> 0.00 | S13: =[1]资产负债试算表!K14 -> 13,031,683.20 | T13: =[1]资产负债试算表!L14 -> 7,960.00 | U13: =[1]资产负债试算表!M14 -> 0.00 | V13: =[1]资产负债试算表!N14 -> 13,039,643.20
A14: 其他应收款 | B14: 8 | C14: 15,749,288.63 | D14: 297,000.00 | E14: =资产负债表1!C13 -> 73,840.29 | F14: =[1]资产负债试算表!D18 -> 0.00 | G14: =[1]资产负债试算表!E18 -> 0.00 | H14: =[1]资产负债试算表!F18 -> 0.00 | I14: =[1]资产负债试算表!G18 -> 0.00 | N14: 应付股利 | O14: 45 | R14: =资产负债表1!J13 -> 0.00 | W14: 0.00 | X14: 0.00 | Y14: 0.00 | Z14: 0.00
A15: 预付款项 | B15: 9 | E15: =资产负债表1!C14 -> 33,837.70 | N15: 应交税金 | O15: 46 | R15: =资产负债表1!J14 -> 171,678.38 | W15: 0.00 | X15: 0.00 | Y15: 0.00 | Z15: 0.00
A16: 应收补贴款 | B16: 10 | E16: =资产负债表1!C15 -> 0.00 | N16: 其他应交款 | O16: 47 | P16: =R16 -> 0.00 | R16: =资产负债表1!J15 -> 0.00 | S16: =[1]资产负债试算表!K16 -> 0.00 | T16: =[1]资产负债试算表!L16 -> 0.00 | U16: =[1]资产负债试算表!M16 -> 0.00 | V16: =[1]资产负债试算表!N16 -> 0.00
A17: 存货 | B17: 11 | E17: =资产负债表1!C16 -> 1,202,051.02 | N17: 其他应付款 | O17: 48 | P17: =R17 -> 90,306.74 | R17: =资产负债表1!J16 -> 90,306.74 | S17: =[1]资产负债试算表!K17 -> 28,636,970.98 | T17: =[1]资产负债试算表!L17 -> -105,931.23 | U17: =[1]资产负债试算表!M17 -> 0.00 | V17: =[1]资产负债试算表!N17 -> 28,531,039.75
A18: 待摊费用 | B18: 12 | E18: =资产负债表1!C17 -> 0.00 | J18: 0.00 | K18: 0.00 | L18: 0.00 | M18: 0.00 | N18: 预提费用 | O18: 49 | P18: 3,625,848.90 | Q18: -2,671.95 | R18: =资产负债表1!J17 -> 0.00 | S18: =[1]资产负债试算表!K18 -> 0.00 | T18: =[1]资产负债试算表!L18 -> 0.00 | U18: =[1]资产负债试算表!M18 -> 0.00 | V18: =[1]资产负债试算表!N18 -> 0.00
A19: 一年内到期的长期债券投资 | B19: 13 | E19: =资产负债表1!C18 -> 0.00 | J19: 0.00 | K19: 0.00 | L19: 0.00 | M19: 0.00 | N19: 预计负债 | O19: 50 | P19: 92,255.00 | Q19: 45,465.00 | R19: =资产负债表1!J18 -> 0.00
A20: 其他流动资产 | B20: 14 | E20: =资产负债表1!C19 -> 0.00 | M20: 0.00 | N20: 一年内到期的长期负债 | O20: 51 | R20: =资产负债表1!J19 -> 0.00 | Z20: 0.00
A21: 流动资产合计 | B21: 15 | E21: =资产负债表1!C20 -> 5,277,815.75 | N21: 其他流动负债 | O21: 52 | R21: =资产负债表1!J20 -> 0.00 | Z21: 0.00
A22: 长期投资： | B22: 16 | C22: =E22 -> 0.00 | E22: =资产负债表1!C21 -> 0.00 | R22: =资产负债表1!J21 -> 0.00
A23: 长期股权投资 | B23: 17 | E23: =资产负债表1!C22 -> 325,000.00 | J23: 0.00 | K23: 0.00 | L23: 0.00 | M23: 0.00 | N23: 流动负债合计 | O23: 53 | R23: =资产负债表1!J22 -> 3,351,524.96
A24: 长期债权投资 | B24: 18 | E24: =资产负债表1!C23 -> 0.00 | N24: 长期负债： | O24: 54 | P24: =SUM(P8:P23) -> 3,382,403.34 | Q24: 468,800.35 | R24: =资产负债表1!J23 -> 0.00 | S24: 41,668,654.18 | T24: -97,971.23 | U24: 0.00 | V24: 41,570,682.95 | Z24: 0.00
A25: 长期投资合计 | B25: 19 | E25: =资产负债表1!C24 -> 325,000.00 | F25: =[1]资产负债试算表!D25 -> 0.00 | G25: =[1]资产负债试算表!E25 -> 0.00 | H25: =[1]资产负债试算表!F25 -> 0.00 | I25: =[1]资产负债试算表!G25 -> 0.00 | J25: =J26 -> 0.00 | K25: 0.00 | L25: =L26 -> 0.00 | M25: 0.00 | N25: 长期借款 | O25: 55 | R25: =资产负债表1!J24 -> 0.00 | S25: =[1]资产负债试算表!K27 -> 28,636,970.98 | T25: =[1]资产负债试算表!L27 -> -105,931.23 | U25: =[1]资产负债试算表!M27 -> 0.00 | V25: =[1]资产负债试算表!N27 -> 28,531,039.75
A26: 固定资产： | B26: 20 | E26: =资产负债表1!C25 -> 0.00 | L26: =J26 -> 0.00 | N26: 应付债券 | O26: 56 | R26: =资产负债表1!J25 -> 0.00 | Z26: 0.00
A27: 固定资产原价 | B27: 21 | E27: =资产负债表1!C26 -> 130,851.61 | J27: =J7+J25 -> 0.00 | K27: 0.00 | L27: =L7+L25 -> 0.00 | M27: 0.00 | N27: 长期应付款 | O27: 57 | R27: =资产负债表1!J26 -> 0.00 | Z27: 0.00
A28: 减：累计折旧 | B28: 22 | E28: =资产负债表1!C27 -> 113,239.35 | N28: 专项应付款 | O28: 58 | R28: =资产负债表1!J27 -> 0.00
A29: 固定资产净值 | B29: 23 | E29: =资产负债表1!C28 -> 17,612.26 | N29: 其他长期负债 | O29: 59 | R29: =资产负债表1!J28 -> 0.00
A30: 减：固定资产减值准备 | B30: 24 | E30: =资产负债表1!C29 -> 0.00 | N30: 长期负债合计 | O30: 60 | R30: =资产负债表1!J29 -> 0.00
A31: 固定资产净额 | B31: 25 | E31: =资产负债表1!C30 -> 17,612.26 | N31: 递延税项： | O31: 61 | R31: =资产负债表1!J30 -> 0.00
A32: 工程物资 | B32: 26 | E32: =资产负债表1!C31 -> 0.00 | N32: 递延税款贷项 | O32: 62 | R32: =资产负债表1!J31 -> 0.00
A33: 在建工程 | B33: 27 | E33: =资产负债表1!C32 -> 0.00 | N33: 负债合计 | O33: 63 | R33: =资产负债表1!J32 -> 3,351,524.96
A34: 固定资产清理 | B34: 28 | E34: =资产负债表1!C33 -> 0.00 | R34: =资产负债表1!J33 -> 0.00
A35: 固定资产合计 | B35: 29 | E35: =资产负债表1!C34 -> 17,612.26 | N35: 所有者权益（或股东权益）： | O35: 64 | R35: =资产负债表1!J34 -> 0.00
A36: 无形资产及其他资产： | B36: 30 | E36: =资产负债表1!C35 -> 0.00 | N36: 实收资本（或股本） | O36: 65 | R36: =资产负债表1!J35 -> 500,000.00
A37: 无形资产 | B37: 31 | E37: =资产负债表1!C36 -> 220,688.71 | N37: 减：已归还投资 | O37: 66 | R37: =资产负债表1!J36 -> 0.00
A38: 长期待摊费用 | B38: 32 | E38: =资产负债表1!C37 -> 0.00 | N38: 实收资本（或股本）净额 | O38: 67 | R38: =资产负债表1!J37 -> 0.00
A39: 其他长期资产 | B39: 33 | E39: =资产负债表1!C38 -> 0.00 | N39: 资本公积 | O39: 68 | R39: =资产负债表1!J38 -> 0.00
A40: 无形资产及其他资产合计 | B40: 34 | E40: =资产负债表1!C39 -> 220,688.71 | N40: 盈余公积 | O40: 69 | R40: =资产负债表1!J39 -> 0.00
E41: =资产负债表1!C40 -> 0.00 | N41: 其中：法定盈余公积 | O41: 70 | R41: =资产负债表1!J40 -> 0.00
A42: 递延税项： | B42: 35 | E42: =资产负债表1!C41 -> 0.00 | N42: 未分配利润 | O42: 71 | R42: =资产负债表1!J41 -> 1,989,591.76
A43: 递延税款借项 | B43: 36 | E43: =资产负债表1!C42 -> 0.00 | N43: 所有者权益合计 | O43: 72 | R43: =资产负债表1!J42 -> 2,489,591.76
A44: 资产总计 | B44: 37 | E44: =资产负债表1!C43 -> 5,841,116.72 | N44: 负债和所有者权益总计 | O44: 73 | R44: =资产负债表1!J43 -> 5,841,116.72
R45: =资产负债表1!J44 -> 0.00

Sheet 货币资金--现金明细
A1: 货币资金----现金清查明细表
A3: 清查基准日：2018年12月31日
A4: 资产占有单位名称：杭州中惠医疗器械有限公司 | E4: 金额单位：人民币元
A5: 序号 | B5: 科目及明细内容 | C5: 账面值 | D5: 调整数 | E5: 清查值 | F5: 备 注
A7: 1 | B7: 现 金 | C7: 0.00 | E7: =C7+D7 -> 0.00
A16: 本 页 小 计 | C16: =SUM(C7:C15) -> 0.00 | E16: =SUM(E7:E15) -> 0.00
A17: 合 计 | C17: =C16 -> 0.00 | E17: =E16 -> 0.00

Sheet 货币资金--银行存款明细
A1: 货币资金----银行存款清查明细表
A3: 清查基准日：2018年12月31日
A4: ='货币资金--现金明细'!A4 -> 资产占有单位名称：杭州中惠医疗器械有限公司 | E4: 金额单位：人民币元
A5: 序号 | B5: 开户银行及账号 | C5: 账面值 | D5: 调整数 | E5: 清查值 | F5: 备 注
A7: 1 | B7: 中国建设银行股份有限公司33001616335053009753 | C7: 3,968,086.74 | E7: =C7+D7 -> 3,968,086.74
A8: 2 | E8: =C8+D8 -> 0
A9: 3 | E9: =C9+D9 -> 0
A10: 4 | E10: 0
A11: 5 | E11: 0
A12: 6 | E12: 0
A13: 7 | E13: 0
A14: 8 | E14: 0
A15: 9 | E15: 0
A16: 10 | E16: 0
A17: 11 | E17: 0
A18: 12 | E18: 0
A19: 本 页 小 计 | C19: =SUM(C7:C18) -> 3,968,086.74 | D19: =SUM(D7:D18) -> 0.00 | E19: =SUM(E7:E18) -> 3,968,086.74
A20: 合 计 | C20: =C19 -> 3,968,086.74 | D20: =D19 -> 0.00 | E20: =C20 -> 3,968,086.74

Sheet 货币资金--其他货币资金 (hidden)
A1: 货币资金----其他货币资金清查明细表
A3: 清查基准日：2018年12月31日
A4: ='货币资金--现金明细'!A4 -> 资产占有单位名称：杭州中惠医疗器械有限公司 | F4: 金额单位：人民币元
A5: 序号 | B5: 开户银行及账号 | C5: 业务内容 | D5: 账面值 | E5: 调整数 | F5: 清查值 | G5: 备 注
A7: 2 | F7: =D7+E7 -> 0
A8: 3 | F8: 0
A9: 4 | F9: 0
A10: 5 | F10: 0
A11: 6 | F11: 0
A12: 7 | F12: 0
A13: 8 | F13: 0
A14: 9 | F14: 0
A15: 10 | F15: 0
A16: 11 | F16: 0
A17: 12 | F17: 0
A18: 本 页 小 计 | D18: =SUM(D7:D17) -> 0.00 | E18: =SUM(E7:E17) -> 0.00 | F18: =SUM(F7:F17) -> 0.00
A19: 合 计 | D19: =D18 -> 0.00 | E19: =E18 -> 0.00 | F19: =E19 -> 0.00

Sheet 预付账款清查明细表
A1: 预付账款清查明细表
A3: 清查基准日：2018年12月31日
A4: =其他应收账款清查明细表!A4 -> 资产占有单位名称：杭州中惠医疗器械有限公司 | G4: 金额单位：人民币元
A5: 序号 | B5: 户名（结算对象） | C5: 业务内容 | D5: 账龄 | E5: 账面值 | F5: 调整数 | G5: 清查值 | H5: 增值额
A6: 1 | B6: 江西省泰华贸易有限公司 | C6: 货款 | D6: 1年以内 | E6: =-I6 -> 103.15 | G6: =E6+F6 -> 103.15 | I6: -103.15
A7: 2 | B7: 威海世创医疗有限公司 | C7: 货款 | D7: 1-2年 | E7: =-I7 -> 598.30 | G7: 598.30 | I7: -598.3
A8: 3 | B8: 杭州佰伽一（谐康）有限公司 | C8: 货款 | D8: 3年以上 | E8: 0.33 | G8: 0.33 | I8: -0.33
A9: 4 | B9: 福州倍瑞有限公司 | C9: 货款 | D9: 2-3年 | E9: 0.02 | G9: 0.02 | I9: -0.02
A10: 5 | B10: 东方医用仪器有限公司 | C10: 货款 | D10: 1年以内 | E10: 0.01 | G10: 0.01 | I10: -0.01
A11: 6 | B11: 杭州康标有限公司 | C11: 货款 | D11: 1-2年 | E11: 0.02 | G11: 0.02 | I11: -0.02
A12: 7 | B12: 杭州立创生物有限公司 | C12: 货款 | D12: 1-2年 | E12: 0.01 | G12: 0.01 | I12: -0.01
A13: 8 | B13: 杭州宏泰有限公司 | C13: 货款 | D13: 1年以内 | E13: 0.02 | G13: 0.02 | I13: -0.02
A14: 9 | B14: 杭州耐秋贸易有限公司 | C14: 货款 | D14: 1-2年 | E14: 0.02 | G14: 0.02 | I14: -0.02
A15: 10 | B15: 杭州联华拱墅超市 | C15: 货款 | D15: 1-2年 | E15: 6,211.00 | G15: =E15+F15 -> 6,211.00 | I15: -6,211.00
A16: 11 | B16: 杭州康爵贸易有限公司 | C16: 货款 | D16: 1-2年 | E16: 0.01 | G16: 0.01 | I16: -0.01
A17: 12 | B17: 宁波菲特有限公司 | C17: 货款 | D17: 1年以内 | E17: 4.67 | G17: 4.67 | I17: -4.67
A18: 13 | B18: 烟台迪康医疗器械有限公司 | C18: 货款 | D18: 1年以内 | E18: 587.55 | G18: 587.55 | I18: -587.55
A19: 14 | B19: 杭州华硅科技有限公司 | C19: 货款 | D19: 1年以内 | E19: 169.60 | G19: 169.60 | I19: -169.6
A20: 15 | B20: 杭州宏祐贸易有限公司 | C20: 货款 | D20: 1年以内 | E20: 4.88 | G20: 4.88 | I20: -4.88
A21: 16 | B21: 杭州世纪联华地（庆春店） | C21: 货款 | D21: 1-2年 | E21: 21,689.04 | G21: 21,689.04 | I21: -21,689.04
A22: 17 | B22: 杭州湘龙医疗有限公司 | C22: 货款 | D22: 3年以上 | E22: 4,465.13 | G22: 4,465.13 | I22: -4,465.13
A23: 18 | B23: 杭州准星贸易有限公司 | C23: 货款 | D23: 2-3年 | E23: 0.05 | G23: 0.05 | I23: -0.05
A24: 19 | B24: 杭州泰迪有限公司 | C24: 货款 | D24: 3年以上 | E24: 0.25 | G24: 0.25 | I24: -0.25
A25: 20 | B25: 杭州谐康有限公司 | C25: 货款 | D25: 1-2年 | E25: 2.00 | G25: 2.00 | I25: -2
A26: 21 | B26: 杭州夏伊有限公司 | C26: 货款 | D26: 2-3年 | E26: 1.64 | G26: 1.64 | I26: -1.64
A27: 本 页 小 计 | C27: ** | D27: ** | E27: =SUM(E6:E26) -> 33,837.70 | F27: =SUM(F6:F26) -> 0.00 | G27: =SUM(G6:G26) -> 33,837.70 | H27: =SUM(H6:H26) -> 0
A28: 合 计 | C28: ** | D28: ** | E28: =E27 -> 33,837.70 | F28: 0.00 | G28: 33,837.70 | H28: 0

Sheet 坏账准备 (hidden)
A1: 坏账准备清查明细表
A3: 清查基准日：2018年12月31日
A4: =预付账款清查明细表!A4 -> 资产占有单位名称：杭州中惠医疗器械有限公司 | H4: 金额单位：人民币元
A5: 序号 | B5: 户名（结算对象） | C5: 业务内容 | D5: 账龄(年) | E5: 账面值 | F5: 调整数 | G5: 清查值 | H5: 备注
A7: 1 | G7: =E7+F7 -> 0.00
A8: 2 | G8: =E8+F8 -> 0.00
A9: 3 | G9: =E9+F9 -> 0.00
A10: 4 | G10: =E10+F10 -> 0.00
A17: 本 页 小 计 | E17: =SUM(E7:E16) -> 0.00 | F17: =SUM(F7:F16) -> 0.00 | G17: =SUM(G7:G16) -> 0.00
A18: 合 计 | C18: ** | E18: =E17 -> 0.00 | F18: =F17 -> 0.00 | G18: =G17 -> 0.00

Sheet 其他应收账款清查明细表
A1: 其他应收款清查明细表
A3: 清查基准日：2018年12月31日
A4: ='货币资金--银行存款明细'!A4 -> 资产占有单位名称：杭州中惠医疗器械有限公司 | G4: 金额单位：人民币元
A5: 序号 | B5: 户名（结算对象） | C5: 业务内容 | D5: 账龄 | E5: 账面值 | F5: 调整数 | G5: 清查值 | H5: 备注
A7: 1 | B7: 省中医院 | C7: 消毒片款 | D7: 1年以内 | E7: =8470 -> 8,470.00 | G7: =E7+F7 -> 8,470.00
A8: 2 | B8: 代扣个人养老保险 | C8: 应收暂付款 | D8: 1年以内 | E8: 14,818.86 | G8: =E8+F8 -> 14,818.86
A9: 3 | B9: 公积金 | C9: 应收暂付款 | D9: 1年以内 | E9: 600.00 | G9: 600.00
A10: 4 | B10: 个税 | C10: 应收暂付款 | D10: 1年以内 | E10: 1,677.03 | G10: 1,677.03
A11: 5 | B11: 医院一卡通 | C11: 应收暂付款 | D11: 1年以内 | E11: 48,274.40 | G11: 48,274.40 | H11: 19年已收回
A12: 6 | G12: 0
A13: 7 | G13: 0
A14: 8 | G14: 0
A15: 本页小计 | E15: =SUM(E7:E14) -> 73,840.29 | F15: =SUM(F7:F14) -> 0 | G15: =SUM(G7:G14) -> 73,840.29
A16: 合 计 | C16: ** | E16: =E15 -> 73,840.29 | F16: =F15 -> 0 | G16: =G15 -> 73,840.29

Sheet 存货清查汇总表
A1: 存货清查汇总表
A3: =预付账款清查明细表!A3 -> 清查基准日：2018年12月31日
A4: =预付账款清查明细表!A4 -> 资产占有单位名称：杭州中惠医疗器械有限公司 | F4: =坏账准备!H4 -> 金额单位：人民币元
A5: 编号 | B5: 项 目 | C5: 附明细表页数 | D5: 账面值 | E5: 调整数 | F5: 清查值
A6: 1 | B6: 库存商品 | C6: 30 | D6: ='3.4.1.1库存商品'!F574 -> 1,202,051.02 | F6: ='3.4.1.1库存商品'!H574 -> 1,202,051.02
F7: =D7+E7 -> 0
E8: ='3.4.1.2库存商品---客房用品明细 '!G85 -> 0
E9: ='3.4.1.3库存商品---棉织品明细 '!G35 -> 0
E10: ='3.4.1.4库存商品---表单明细 '!G173 -> 0
E11: ='3.4.1.5库存商品---工程物资明细'!G30 -> 0
E12: ='3.4.1.6库存商品---美容美发明细'!G19 -> 0 | H12: 11114.54
E13: ='3.4.1.7库存商品---日用品明细'!G49 -> 0
E14: ='3.4.1.8库存商品---服装明细'!G39 -> 0
E15: ='3.4.1.9库存商品---食品明细'!G35 -> 0
H16: =F25-H12 -> 1190936.48
A25: 合 计 | C25: ** | D25: =SUM(D6:D24) -> 1,202,051.02 | E25: =SUM(E6:E24) -> 0.00 | F25: =SUM(F6:F24) -> 1,202,051.02

Sheet 3.4.1.1库存商品
B1: 存货----库存商品清查明细表
A2: =存货清查汇总表!A3 -> 清查基准日：2018年12月31日
A3: =存货—开发产品明细表!A4 -> 资产占有单位名称：杭州中惠医疗器械有限公司 | I3: 金额单位：人民币元
A4: 序号 | B4: 名 称 | C4: 单位 | D4: 账 面 值 | G4: 调整数 | H4: 清查数 | I4: 备注
D5: 数量 | E5: 单价 | F5: 金额
A6: 1 | B6: 舒安康床垫 | D6: 1500 | E6: =F6/D6 -> 1.10 | F6: 1,650.00 | H6: =F6+G6 -> 1,650.00 | J6: 38小糊涂仙 半斤
A7: 2 | B7: 细胞保存液（XBBC-02) | D7: 20 | E7: =F7/D7 -> 3,300.00 | F7: 66,000.00 | H7: 66,000.00 | J7: 38小糊涂仙 1斤
A8: 3 | B8: 镜盒 | D8: 2600 | E8: 1.45 | F8: 3,763.76 | H8: 3,763.76 | J8: 29五粮液
A9: 4 | B9: 眼镜布 | D9: 2400 | E9: 0.41 | F9: 995.04 | H9: 995.04 | J9: 39五粮液
A10: 5 | B10: 长嘴剪刀 | D10: 12 | E10: 6.05 | F10: 72.63 | H10: 72.63 | J10: 53五粮液
A11: 6 | B11: 刨子 | D11: 26 | E11: 0.49 | F11: 12.75 | H11: 12.75 | J11: 38茅台
A12: 7 | B12: 信封 | D12: 1 | E12: 0.08 | F12: 0.08 | H12: 0.08 | J12: 52小酒仙
A13: 8 | B13: PICC防水护套 | D13: 7 | E13: 71.55 | F13: 500.86 | H13: 500.86 | J13: 水井坊
A14: 9 | B14: 定制红色皮颈套 | D14: 3 | E14: 14.61 | F14: 43.82 | H14: 43.82 | J14: 精品伊力36度半斤
A15: 10 | B15: 手部固定带（约束手套） | D15: 114 | E15: 14.56 | F15: 1,660.19 | H15: 1,660.19 | J15: 伊力特五年陈
A16: 11 | B16: 白浴巾（沈升） | D16: 41 | E16: 25.20 | F16: 1,033.20 | H16: 1,033.20 | J16: 38度小酒仙
A17: 12 | B17: 吉豆全棉内衣（男/女） | D17: 9 | E17: 25.44 | F17: 229.00 | H17: 229.00 | J17: 38度稻花香半斤
A18: 13 | B18: 加宽腰围 | D18: 9 | E18: 435.24 | F18: 3,917.19 | H18: 3,917.19 | J18: 芝华威士忌
A19: 14 | B19: 加宽腰围 | D19: 10 | E19: 435.24 | F19: 4,352.44 | H19: 4,352.44 | J19: 新天干红
A20: 15 | B20: 踝关节固定带 | D20: 17 | E20: 87.93 | F20: 1,494.83 | H20: 1,494.83 | J20: 女儿红
A21: 16 | B21: 方巾（沈升） | D21: 43 | E21: 1.60 | F21: 68.80 | H21: =F21+G21 -> 68.80
A22: 17 | B22: 弹力绷带（头部用） | D22: 251 | E22: =F22/D22 -> 7.76 | F22: 1,947.41 | H22: 1,947.41
A23: 18 | B23: 记忆棉伸膝压垫套装 | D23: 2 | E23: 205.17 | F23: 410.34 | H23: 410.34
A24: 19 | B24: 泡泡方巾 | D24: 254 | E24: 3.00 | F24: 762.00 | H24: 762.00
A25: 20 | B25: 泡泡童巾 | D25: 226 | E25: 5.10 | F25: 1,152.60 | H25: 1,152.60
A26: 21 | B26: 医用检查垫-中中单 | D26: 257 | E26: 0.86 | F26: 221.55 | H26: 221.55
A27: 22 | B27: 医用检查垫（大中单）150*80 | D27: 4832 | E27: 2.33 | F27: 11,246.90 | H27: 11,246.90
A28: 23 | B28: 小香袋 | D28: 720 | E28: 5.00 | F28: 3,600.00 | H28: 3,600.00
A29: 24 | B29: 耳温套 | D29: 4846 | E29: 0.50 | F29: 2,423.00 | H29: 2,423.00
A30: 25 | B30: 国产吸棒 | D30: 33 | E30: 13.68 | F30: 451.28 | H30: 451.28
A31: 26 | B31: 垃圾袋 | D31: 124 | E31: 8.62 | F31: 1,068.86 | H31: 1,068.86
A32: 27 | B32: 冰袋内三只 | D32: 18 | E32: 35.00 | F32: 630.00 | H32: 630.00
A33: 28 | B33: 冰袋内二只 | D33: 36 | E33: 30.00 | F33: 1,080.00 | H33: 1,080.00
A34: 29 | B34: 中药袋 | D34: 22 | E34: 20.00 | F34: 440.00 | H34: 440.00
A35: 30 | B35: 一次性奶瓶 | D35: 1010 | E35: 1.38 | F35: 1,393.10 | H35: 1,393.10
A36: 31 | B36: 眼罩（手套、脚套） | D36: 98 | E36: 37.93 | F36: 3,717.24 | H36: 3,717.24
A37: 32 | B37: 棉鞋 | D37: 42 | E37: 9.01 | F37: 378.42 | H37: 378.42
A38: 33 | B38: 蓝月亮洗衣液 | D38: 100 | E38: 39.50 | F38: 3,950.00 | H38: 3,950.00
A39: 34 | B39: 水垫 | D39: 177 | E39: 14.56 | F39: 2,577.67 | H39: 2,577.67
A40: 35 | B40: 花王尿不湿 | D40: 11 | E40: 88.79 | F40: 976.72 | H40: 976.72
A41: 36 | B41: 男/女棉拖鞋 | D41: 2 | E41: 8.14 | F41: 16.27 | H41: 16.27
A42: 37 | B42: 红纸包 | D42: 498 | E42: 0.17 | F42: 85.13 | H42: 85.13
A43: 38 | B43: 三角形垫 | D43: 21 | E43: 15.52 | F43: 325.86 | H43: 325.86
A44: 39 | B44: 棉签 | D44: 2319 | E44: 0.28 | F44: 639.52 | H44: 639.52
A45: 40 | B45: 1000ml塑料量杯 | D45: 975 | E45: 2.16 | F45: 2,109.53 | H45: 2,109.53
A46: 41 | B46: 痰盂 | D46: 109 | E46: 5.50 | F46: 599.50 | H46: 599.50
A47: 42 | B47: 肢体约束带 | D47: 161 | E47: 13.56 | F47: 2,182.52 | H47: 2,182.52
A48: 43 | B48: 小中单 | D48: 2642 | E48: 0.56 | F48: 1,480.43 | H48: 1,480.43
A49: 44 | B49: 铁衣架 | D49: 350 | E49: 1.60 | F49: 559.93 | H49: 559.93
A50: 45 | B50: 手提袋（70卡通） | D50: 31 | E50: 4.70 | F50: 145.76 | H50: 145.76
A51: 46 | B51: 多头腹带 | D51: 328 | E51: 16.80 | F51: 5,511.02 | H51: 5,511.02
A52: 47 | B52: 神州霞雨伞 | D52: 1 | E52: 7.56 | F52: 7.56 | H52: 7.56
A53: 48 | B53: 垃圾桶 | D53: 26 | E53: 4.28 | F53: 111.31 | H53: 111.31
A54: 49 | B54: 灭菌棉球25g | D54: 48 | E54: 3.07 | F54: 147.28 | H54: 147.28
A55: 50 | B55: 松紧口罩 | D55: 6210 | E55: 0.34 | F55: 2,141.38 | H55: 2,141.38
A56: 51 | B56: 丁字鞋（木板鞋） | D56: 37 | E56: 13.98 | F56: 517.14 | H56: 517.14
A57: 52 | B57: 脚圈 | D57: 89 | E57: 15.75 | F57: 1,402.17 | H57: 1,402.17
A58: 53 | B58: 男/女防滑凉拖鞋 | D58: 30 | E58: 8.50 | F58: 255.00 | H58: 255.00
A59: 54 | B59: 抬高垫 | D59: 14 | E59: 39.95 | F59: 559.27 | H59: 559.27
A60: 55 | B60: 350g蓝色便盆 | D60: 884 | E60: 5.17 | F60: 4,572.41 | H60: 4,572.41
A61: 56 | B61: 800ml女用尿壶 | D61: 369 | E61: 1.74 | F61: 640.41 | H61: 640.41
A62: 57 | B62: 1100ml男用尿壶 | D62: 567 | E62: 1.55 | F62: 879.83 | H62: 879.83
A63: 58 | B63: 1700ml接尿器 | D63: 637 | E63: 3.71 | F63: 2,361.24 | H63: 2,361.24
A64: 59 | B64: R形垫 | D64: 176 | E64: 18.10 | F64: 3,186.21 | H64: 3,186.21
A65: 60 | B65: 梯形垫 | D65: 124 | E65: 24.14 | F65: 2,993.10 | H65: 2,993.10
A66: 61 | B66: 打火机 | D66: 50 | E66: 0.61 | F66: 30.30 | H66: 30.30
A67: 62 | B67: 塑料折凳 | D67: 17 | E67: 18.02 | F67: 306.42 | H67: 306.42
A68: 63 | B68: 棉被 | D68: 7 | E68: 56.00 | F68: 392.00 | H68: 392.00
A69: 64 | B69: 男用24小时集尿器 | D69: 230 | E69: 6.89 | F69: 1,585.43 | H69: 1,585.43
A70: 65 | B70: 儿童输液板 | D70: 2 | E70: 2.50 | F70: 5.00 | H70: 5.00
A71: 66 | B71: 吉利威锋剃须刀 | D71: 10 | E71: 11.50 | F71: 115.00 | H71: 115.00
A72: 67 | B72: 维达超韧4层纸手帕（无香） | D72: 934 | E72: 0.46 | F72: 427.31 | H72: 427.31
A73: 68 | B73: 玉泽身体乳（新） | D73: 16 | E73: 115.86 | F73: 1,853.79 | H73: 1,853.79
A74: 69 | B74: 玉泽精华乳 | D74: 41 | E74: 198.97 | F74: 8,157.71 | H74: 8,157.71
A75: 70 | B75: 船牌透明皂 | D75: 139 | E75: 3.48 | F75: 483.87 | H75: 483.87
A76: 71 | B76: 张小泉剪刀 红 | D76: 57 | E76: 8.00 | F76: 456.00 | H76: 456.00
A77: 72 | B77: 张小泉折刀（水果刀） | D77: 53 | E77: 6.80 | F77: 360.32 | H77: 360.32
A78: 73 | B78: 张小泉指甲钳 | D78: 120 | E78: 8.00 | F78: 960.00 | H78: 960.00
A79: 74 | B79: 佳洁士草本水晶牙膏 | D79: 239 | E79: 2.79 | F79: 667.43 | H79: 667.43
A80: 75 | B80: 护舒宝（夜用） | D80: 1 | E80: 6.80 | F80: 6.80 | H80: 6.80
A81: 76 | B81: 护舒宝护垫 | D81: 43 | E81: 3.15 | F81: 135.45 | H81: 135.45
A82: 77 | B82: 洗发水-精油去屑 | D82: 1 | E82: 12.00 | F82: 12.00 | H82: 12.00
A83: 78 | B83: 舒肤佳沐浴露（纯白清香） | D83: 17 | E83: 12.22 | F83: 207.68 | H83: 207.68
A84: 79 | B84: 护舒宝绵柔日用 | D84: 18 | E84: 2.80 | F84: 50.43 | H84: 50.43
A85: 80 | B85: 护舒宝绵柔夜用 | D85: 7 | E85: 3.77 | F85: 26.42 | H85: =F85+G85 -> 26.42
A86: 81 | B86: 飘柔洗发水-垂顺亮泽 | D86: 9 | E86: =F86/D86 -> 12.00 | F86: 108.00 | H86: 108.00
A87: 82 | B87: 舒肤佳香皂（新） | D87: 154 | E87: 4.50 | F87: 692.94 | H87: 692.94
A88: 83 | B88: 小袋装海飞丝洗发水 | D88: 379 | E88: 0.32 | F88: 122.64 | H88: 122.64
A89: 84 | B89: 洗发水-净爽去屑 | D89: 1 | E89: 12.00 | F89: 12.00 | H89: 12.00
A90: 85 | B90: 高露洁牙刷 | D90: 1 | E90: 2.02 | F90: 2.02 | H90: 2.02
A91: 86 | B91: PM2.5口罩 | D91: 1 | E91: 2.92 | F91: 2.92 | H91: 2.92
A92: 87 | B92: 青蛙牙刷 | D92: 307 | E92: 2.60 | F92: 798.20 | H92: 798.20
A93: 88 | B93: 白香皂 | D93: 3 | E93: 3.13 | F93: 9.39 | H93: 9.39
A94: 89 | B94: 电池七号 | D94: 12 | E94: 0.96 | F94: 11.49 | H94: 11.49
A95: 90 | B95: 天堂伞 | D95: 30 | E95: 16.49 | F95: 494.68 | H95: 494.68
A96: 91 | B96: 干洗洁肤液 | D96: 5 | E96: 82.05 | F96: 410.26 | H96: 410.26
A97: 92 | B97: 包大人经济型纸尿裤（M） | D97: 11 | E97: 16.21 | F97: 178.31 | H97: 178.31
A98: 93 | B98: 包大人经济型纸尿裤（L） | D98: 56 | E98: 19.40 | F98: 1,086.21 | H98: 1,086.21
A99: 94 | B99: 邦迪弹性创可贴 | D99: 914 | E99: 0.42 | F99: 379.95 | H99: 379.95
A100: 95 | B100: 东方丽君育发液 | D100: 20 | E100: 162.07 | F100: 3,241.42 | H100: 3,241.42
A101: 96 | B101: 超强高露洁 | D101: 1 | E101: 2.03 | F101: 2.03 | H101: 2.03
A102: 97 | B102: 高露洁草本牙膏（90g) | D102: 97 | E102: 3.18 | F102: 308.46 | H102: 308.46
A103: 98 | B103: 热水袋（绒） | D103: 24 | E103: 11.93 | F103: 286.32 | H103: 286.32
A104: 99 | B104: 嫦娥奔月面巾纸（彩色） | D104: 128 | E104: 4.50 | F104: 576.00 | H104: 576.00
A105: 100 | B105: 嫦娥奔月餐巾纸（白色） | D105: 1 | E105: 3.15 | F105: 3.15 | H105: 3.15
A106: 101 | B106: 清风手帕纸 | D106: 24 | E106: 0.30 | F106: 7.09 | H106: 7.09
A107: 102 | B107: 原木抽纸（清风） | D107: 534 | E107: 3.02 | F107: 1,612.68 | H107: 1,612.68
A108: 103 | B108: 婴幼儿退热贴 | D108: 63 | E108: 2.50 | F108: 157.77 | H108: 157.77
A109: 104 | B109: 马桶垫（5片） | D109: 27 | E109: 4.47 | F109: 120.57 | H109: 120.57
A110: 105 | B110: 星星婴儿柔棉湿巾（润肤） | D110: 197 | E110: 11.85 | F110: 2,333.84 | H110: 2,333.84
A111: 106 | B111: 星星婴儿柔棉湿巾（清爽） | D111: 17 | E111: 10.93 | F111: 185.83 | H111: 185.83
A112: 107 | B112: 橡胶手套 | D112: 7 | E112: 5.08 | F112: 35.53 | H112: 35.53
A113: 108 | B113: 修复因子(大) 雅莎尔 | D113: 13 | E113: 191.45 | F113: 2,488.89 | H113: 2,488.89
A114: 109 | B114: 倾城之恋筷子 | D114: 279 | E114: 0.30 | F114: 83.56 | H114: 83.56
A115: 110 | B115: 竹衣架 | D115: 141 | E115: 1.20 | F115: 169.16 | H115: 169.16
A116: 111 | B116: 擦擦净碘伏棉球 | D116: 9 | E116: 1.37 | F116: 12.31 | H116: 12.31
A117: 112 | B117: 红苹果宝宝爽 | D117: 23 | E117: 39.99 | F117: 919.85 | H117: 919.85
A118: 113 | B118: 食物保鲜万用袋 | D118: 125 | E118: 3.10 | F118: 386.88 | H118: 386.88
A119: 114 | B119: 微波炉碗 | D119: 122 | E119: 7.50 | F119: 915.00 | H119: 915.00
A120: 115 | B120: 新越然创伤修复凝胶 | D120: 12 | E120: 411.72 | F120: 4,940.69 | H120: 4,940.69
A121: 116 | B121: 豫可舒生物抗菌液 | D121: 1 | E121: 46.50 | F121: 46.50 | H121: 46.50
A122: 117 | B122: 新越然创伤修复凝胶 | D122: 56 | E122: 168.97 | F122: 9,462.07 | H122: 9,462.07
A123: 118 | B123: 新越然创伤抗菌液 | D123: 10 | E123: 114.66 | F123: 1,146.55 | H123: 1,146.55
A124: 119 | B124: 板刷 | D124: 9 | E124: 2.00 | F124: 17.98 | H124: 17.98
A125: 120 | B125: 棉棒 | D125: 1 | E125: 1.50 | F125: 1.50 | H125: 1.50
A126: 121 | B126: 纸杯 | D126: 207 | E126: 1.75 | F126: 362.50 | H126: 362.50
A127: 122 | B127: 牙签瓶装 | D127: 33 | E127: 2.24 | F127: 73.80 | H127: 73.80
A128: 123 | B128: 女袜 | D128: 49 | E128: 0.92 | F128: 45.10 | H128: 45.10
A129: 124 | B129: 女内裤 | D129: 192 | E129: 3.74 | F129: 717.74 | H129: 717.74
A130: 125 | B130: 信笺纸 | D130: 32 | E130: 2.00 | F130: 64.00 | H130: 64.00
A131: 126 | B131: 中性笔 | D131: 23 | E131: 1.00 | F131: 22.91 | H131: 22.91
A132: 127 | B132: 华亚真空休闲杯（HX-580-5) | D132: 59 | E132: 32.48 | F132: 1,916.24 | H132: 1,916.24
A133: 128 | B133: 传化洗衣粉 | D133: 1 | E133: 3.48 | F133: 3.48 | H133: 3.48
A134: 129 | B134: 传化洗洁精 | D134: 67 | E134: 2.80 | F134: 187.70 | H134: 187.70
A135: 130 | B135: 沁佳*宝宝肤康乐 | D135: 43 | E135: 34.91 | F135: 1,501.23 | H135: 1,501.23
A136: 131 | B136: 沁佳*宝宝益肤膏 | D136: 34 | E136: 28.89 | F136: 982.37 | H136: 982.37
A137: 132 | B137: 妇孕安抑菌洗液 | D137: 97 | E137: 54.31 | F137: 5,268.10 | H137: 5,268.10
A138: 133 | B138: 垃圾袋 | D138: 160 | E138: 1.24 | F138: 198.32 | H138: 198.32
A139: 134 | B139: 苏菲弹力贴身超熟睡350（夜用） | D139: 31 | E139: 6.50 | F139: 201.50 | H139: 201.50
A140: 135 | B140: 陶瓷口杯 | D140: 10 | E140: 9.02 | F140: 90.17 | H140: 90.17
A141: 136 | B141: 男式内裤 | D141: 2 | E141: 3.48 | F141: 6.95 | H141: 6.95
A142: 137 | B142: 小脸盆 | D142: 316 | E142: 3.70 | F142: 1,169.20 | H142: 1,169.20
A143: 138 | B143: 白吸管 | D143: 245 | E143: 0.60 | F143: 147.05 | H143: 147.05
A144: 139 | B144: 一次性胎心监护带 | D144: 63 | E144: 21.55 | F144: 1,357.76 | H144: 1,357.76
A145: 140 | B145: 伊珊左旋维他命C精华液 | D145: 9 | E145: 273.50 | F145: 2,461.54 | H145: 2,461.54
A146: 141 | B146: 洗碗布 | D146: 25 | E146: 2.92 | F146: 72.93 | H146: 72.93
A147: 142 | B147: 口杯 | D147: 241 | E147: 1.59 | F147: 383.38 | H147: 383.38
A148: 143 | B148: 养生壶 4L | D148: 2 | E148: 146.11 | F148: 292.21 | H148: 292.21
A149: 144 | B149: 福临壶 3.0L | D149: 14 | E149: 152.53 | F149: 2,135.44 | H149: =F149+G149 -> 2,135.44
A150: 145 | B150: 大毛巾（沈升） | D150: 506 | E150: =F150/D150 -> 6.90 | F150: 3,491.40 | H150: 3,491.40
A151: 146 | B151: 大脸盆 | D151: 333 | E151: 4.00 | F151: 1,332.00 | H151: 1,332.00
A152: 147 | B152: 保鲜膜 | D152: 79 | E152: 4.02 | F152: 317.52 | H152: 317.52
A153: 148 | B153: 塑料袋（大） | D153: 2635 | E153: 0.22 | F153: 583.92 | H153: 583.92
A154: 149 | B154: 泽芙雪积雪草修复霜 | D154: 24 | E154: 145.90 | F154: 3,501.60 | H154: 3,501.60
A155: 150 | B155: 泽芙雪乳酸铵角质修复乳 | D155: 65 | E155: 143.69 | F155: 9,339.97 | H155: 9,339.97
A156: 151 | B156: 泽芙雪传明酸精华霜 | D156: 40 | E156: 291.55 | F156: 11,662.19 | H156: 11,662.19
A157: 152 | B157: 热水瓶 | D157: 2 | E157: 16.00 | F157: 32.00 | H157: 32.00
A158: 153 | B158: 男式内裤 | D158: 167 | E158: 5.42 | F158: 905.34 | H158: 905.34
A159: 154 | B159: 小黑伞 | D159: 18 | E159: 16.96 | F159: 305.27 | H159: 305.27
A160: 155 | B160: 添宁全效防漏成人纸尿片10片M-L | D160: 10 | E160: 16.80 | F160: 167.98 | H160: 167.98
A161: 156 | B161: 添宁护理垫5片基本型60*90 | D161: 30 | E161: 7.41 | F161: 222.41 | H161: 222.41
A162: 157 | B162: 百能抗菌洗手液 | D162: 23 | E162: 8.62 | F162: 198.28 | H162: 198.28
A163: 158 | B163: 善佰利2%葡萄糖酸氯已定术前沐浴液 | D163: 105 | E163: 2.59 | F163: 271.52 | H163: 271.52
A164: 159 | B164: 林之语 屏障修护沐浴乳 | D164: 55 | E164: 78.64 | F164: 4,325.24 | H164: 4,325.24
A165: 160 | B165: 林之语 屏障修护保湿露 | D165: 136 | E165: 111.65 | F165: 15,184.47 | H165: 15,184.47
A166: 161 | B166: 林之语 屏障修护洁面乳 | D166: 65 | E166: 66.02 | F166: 4,291.26 | H166: 4,291.26
A167: 162 | B167: 腰椎固定带IV 方祥 S号 | D167: 10 | E167: 60.35 | F167: 603.45 | H167: 603.45
A168: 163 | B168: 腰椎固定带IV 方祥 M号 | D168: 7 | E168: 60.34 | F168: 422.41 | H168: 422.41
A169: 164 | B169: 腰椎固定带IV 方祥 L号 | D169: 16 | E169: 60.35 | F169: 965.52 | H169: 965.52
A170: 165 | B170: 腰椎固定带IV 方祥 XL号 | D170: 9 | E170: 60.34 | F170: 543.10 | H170: 543.10
A171: 166 | B171: 腰椎固定带IV 方祥 XL号 | D171: 8 | E171: 60.35 | F171: 482.76 | H171: 482.76
A172: 167 | B172: 乐亿多保鲜盒 | D172: 1 | E172: 13.13 | F172: 13.13 | H172: 13.13
A173: 168 | B173: 圣爱天使（20抽） | D173: 116 | E173: 2.14 | F173: 247.86 | H173: 247.86
A174: 169 | B174: 俪韵多效修护冰晶 | D174: 10 | E174: 177.78 | F174: 1,777.78 | H174: 1,777.78
A175: 170 | B175: 术泰复-皮肤修护凝胶 | D175: 15 | E175: 130.38 | F175: 1,955.74 | H175: 1,955.74
A176: 171 | B176: 女式纯棉内裤 | D176: 103 | E176: 5.30 | F176: 546.11 | H176: 546.11
A177: 172 | B177: 钢勺子 | D177: 25 | E177: 1.60 | F177: 40.00 | H177: 40.00
A178: 173 | B178: 雪肌亮肤精华液 | D178: 4 | E178: 129.66 | F178: 518.62 | H178: 518.62
A179: 174 | B179: 盆底肌肉治疗头（理疗电极、润滑剂） | D179: 3 | E179: 264.25 | F179: 792.75 | H179: 792.75
A180: 175 | B180: 洗必泰卫生湿巾（伽玛） | D180: 206 | E180: 20.69 | F180: 4,261.87 | H180: 4,261.87
A181: 176 | B181: 通用湿巾 | D181: 52 | E181: 21.55 | F181: 1,120.69 | H181: 1,120.69
A182: 177 | B182: 男袜（竹纤维） | D182: 117 | E182: 0.83 | F182: 97.61 | H182: 97.61
A183: 178 | B183: 弹性绷带 | D183: 312 | E183: 2.72 | F183: 849.93 | H183: 849.93
A184: 179 | B184: 域发款冬去屑止痒洗发露 | D184: 15 | E184: 67.59 | F184: 1,013.79 | H184: 1,013.79
A185: 180 | B185: 域发头皮营养液 | D185: 23 | E185: 136.55 | F185: 3,140.69 | H185: 3,140.69
A186: 181 | B186: 域发白柳皮控油平衡洗发露 | D186: 7 | E186: 67.59 | F186: 473.10 | H186: 473.10
A187: 182 | B187: 卓氏消毒湿巾 | D187: 50 | E187: 8.53 | F187: 426.72 | H187: 426.72
A188: 183 | B188: 采植轩诺发康嘉韵育发液 | D188: 50 | E188: 145.09 | F188: 7,254.31 | H188: 7,254.31
A189: 184 | B189: 采植轩多效修护精华乳 | D189: 35 | E189: 137.76 | F189: 4,821.43 | H189: 4,821.43
A190: 185 | B190: 采植轩清痘修护凝胶（新） | D190: 174 | E190: 94.84 | F190: 16,502.81 | H190: 16,502.81
A191: 186 | B191: 采植轩舒敏修护保湿喷雾 | D191: 29 | E191: 117.64 | F191: 3,411.49 | H191: 3,411.49
A192: 187 | B192: 喜美恩保湿舒缓洁面乳 | D192: 6 | E192: 198.62 | F192: 1,191.72 | H192: 1,191.72
A193: 188 | B193: 喜美恩舒缓修护浓缩原液 | D193: 6 | E193: 205.52 | F193: 1,233.10 | H193: 1,233.10
A194: 189 | B194: 喜美恩 舒缓保湿特护乳 15g | D194: 15 | E194: 46.90 | F194: 703.45 | H194: 703.45
A195: 190 | B195: 喜美恩 舒缓保湿特护乳 50g | D195: 4 | E195: 150.35 | F195: 601.38 | H195: 601.38
A196: 191 | B196: 喜美恩 舒缓保湿洁面乳 80g | D196: 6 | E196: 108.97 | F196: 653.79 | H196: 653.79
A197: 192 | B197: 伊珊肌肤修护精华液 | D197: 8 | E197: 198.29 | F197: 1,586.35 | H197: 1,586.35
A198: 193 | B198: 吉兰 漱口水 | D198: 11 | E198: 68.10 | F198: 749.14 | H198: 749.14
A199: 194 | B199: 耐高压输液港型中心静脉导管及附件 | D199: 64 | E199: 74.48 | F199: 4,766.90 | H199: 4,766.90
A200: 195 | B200: 耐高压输液港型中心静脉导管及附件 | D200: 80 | E200: 74.48 | F200: 5,958.62 | H200: 5,958.62
... 375 more rows

Sheet 3.4.1.2低值易耗品 (hidden)
B1: 存货----低值易耗品清查明细表
A2: =存货清查汇总表!A3 -> 清查基准日：2018年12月31日
A3: =存货—开发产品明细表!A4 -> 资产占有单位名称：杭州中惠医疗器械有限公司 | I3: 金额单位：人民币元
A4: 序号 | B4: 名 称 | C4: 单位 | D4: 账 面 值 | G4: 调整数 | H4: 清查数 | I4: 备注
D5: 数量 | E5: 单价 | F5: 金额
A6: 1 | B6: 签字笔（蓝） | C6: 个 | H6: =F6+G6 -> 0.00
A7: 2 | B7: 活动铅笔 | C7: 个 | H7: =F7+G7 -> 0.00
A8: 3 | B8: 铅芯 | C8: 个 | H8: 0.00
A9: 4 | B9: 派克笔芯 | C9: 个 | H9: 0.00
A10: 5 | B10: 回形针 | C10: 个 | H10: 0.00
A11: 6 | B11: 大头针 | C11: 个 | H11: 0.00
A12: 7 | B12: 订书钉 | C12: 个 | H12: 0.00
A13: 8 | B13: 图钉 | C13: 个 | H13: 0.00
A14: 9 | B14: 修正液 | C14: 个 | H14: 0.00
A15: 10 | B15: 橡皮 | C15: 个 | H15: 0.00
A16: 11 | B16: 墨盒 | C16: 个 | H16: 0.00
A17: 12 | B17: 色带 | C17: 个 | H17: 0.00
A18: 13 | B18: 鼠标垫 | C18: 个 | H18: 0.00
A19: 14 | B19: 水彩笔 | C19: 个 | H19: 0.00
A20: 15 | B20: 牛皮筋 | C20: 个 | H20: 0.00
A21: 16 | B21: A4板夹 | C21: 个 | H21: 0.00
A22: 17 | B22: 300K框 | C22: 个 | H22: 0.00
A23: 18 | B23: 修正液 | C23: 个 | H23: 0.00
A24: 19 | B24: 双翻服务夹 | C24: 个 | H24: 0.00
A25: 20 | B25: 铝合金人字梯 | C25: 个 | H25: 0.00
A26: 21 | B26: 便签夹 | C26: 个 | H26: 0.00
A27: 22 | B27: A4纸(红） | C27: 个 | H27: 0.00
A28: 23 | B28: 透明胶 | C28: 个 | H28: 0.00
A29: 24 | B29: 记号笔 | C29: 个 | H29: 0.00
A30: 25 | B30: 双面胶 | C30: 个 | H30: 0.00
A31: 26 | B31: 皮头铅笔 | C31: 个 | H31: 0.00
A32: 27 | B32: 软盘 | C32: 个 | H32: 0.00
A33: 28 | B33: 税控机色带 | C33: 个 | H33: 0.00
A34: 29 | B34: 白卷纸 | C34: 个 | H34: 0.00
A35: 30 | B35: 标价签 | C35: 个 | H35: 0.00
A36: 31 | B36: 0.9胶带纸 | C36: 个 | H36: 0.00
A37: 32 | B37: 硬面抄 | C37: 个 | H37: 0.00
A38: 33 | B38: 硬面抄 | C38: 个 | H38: 0.00
A39: 34 | B39: 生日贺卡 | C39: 个 | H39: 0.00
A40: 35 | B40: 0.38水笔芯 | C40: 个 | H40: 0.00
A41: 36 | B41: 0.39水笔芯 | C41: 个 | H41: 0.00
A42: 37 | B42: 软盘 | C42: 个 | H42: 0.00
A43: 38 | B43: 监控色带 | C43: 个 | H43: 0.00
A44: 39 | B44: 签字笔(红） | C44: 个 | H44: 0.00
A45: 40 | B45: 施乐墨粉 | C45: 个 | H45: 0.00
A46: 41 | B46: 硒鼓 | C46: 个 | H46: 0.00
A47: 42 | B47: 本子 | C47: 个 | H47: 0.00
A48: 43 | B48: 闹钟 | C48: 个 | H48: 0.00
A49: 44 | B49: 雨伞 | C49: 个 | H49: 0.00
A50: 45 | B50: 雨披 | C50: 个 | H50: 0.00
A51: 46 | B51: 练习本 | C51: 个 | H51: 0.00
A52: 47 | B52: 胶水 | C52: 个 | H52: 0.00
A53: 48 | B53: 碧丽珠 | C53: 个 | H53: 0.00
A54: 49 | B54: 杯垫 | C54: 个 | H54: 0.00
A55: 50 | B55: 黄白牙具 | C55: 个 | H55: 0.00
A56: 51 | B56: 简装牙具 | C56: 个 | H56: 0.00
A57: 52 | B57: 3g小牙膏 | C57: 个 | H57: 0.00
A58: 53 | B58: 梳子 | C58: 个 | H58: 0.00
A59: 54 | B59: 简装梳子 | C59: 个 | H59: 0.00
A60: 55 | B60: 简装浴帽 | C60: 个 | H60: 0.00
A61: 56 | B61: 浴帽 | C61: 个 | H61: 0.00
A62: 57 | B62: 拖鞋 | C62: 个 | H62: 0.00
A63: 58 | B63: 指甲挫 | C63: 个 | H63: 0.00
A64: 59 | B64: 毛头 | C64: 个 | H64: 0.00
A65: 60 | B65: 指甲挫 | C65: 个 | H65: 0.00
A66: 61 | B66: 消毒水 | C66: 个 | H66: 0.00
A67: 62 | B67: 毛巾拖鞋 | C67: 个 | H67: 0.00
A68: 63 | B68: 擦鞋袋 | C68: 个 | H68: 0.00
A69: 64 | B69: 针线包 | C69: 个 | H69: 0.00
A70: 65 | B70: 手提袋 | C70: 个 | H70: 0.00
A71: 66 | B71: 挂衣袋 | C71: 个 | H71: =F71+G71 -> 0.00
A72: 67 | B72: 大床垫 | C72: 个 | H72: =F72+G72 -> 0.00
A73: 68 | B73: 小床垫 | C73: 个 | H73: 0.00
A74: 69 | B74: 毛毯 | C74: 个 | H74: 0.00
A75: 70 | B75: 90尘拖布 | C75: 个 | H75: 0.00
A76: 71 | B76: 尘拖杆 | C76: 个 | H76: 0.00
A77: 72 | B77: 擦铜水 | C77: 个 | H77: 0.00
A78: 73 | B78: 小香皂 | C78: 个 | H78: 0.00
A79: 74 | B79: 纸手帕 | C79: 个 | H79: 0.00
A80: 75 | B80: 卫生袋 | C80: 个 | H80: 0.00
A81: 76 | B81: 伞袋 | C81: 个 | H81: 0.00
A82: 77 | B82: 4M百洁布（绿） | C82: 个 | H82: 0.00
A83: 78 | B83: 板刷 | C83: 个 | H83: 0.00
A84: 79 | B84: 剃须刀 | C84: 个 | H84: 0.00
A85: 80 | B85: 柔巾纸 | C85: 个 | H85: 0.00
A86: 81 | B86: 台裙夹 | C86: 个 | H86: 0.00
A87: 82 | B87: 洗衣袋 | C87: 个 | H87: 0.00
A88: 83 | B88: 浴帘布 | C88: 个 | H88: 0.00
A89: 84 | B89: 竹编三角三层架 | C89: 个 | H89: 0.00
A90: 85 | B90: 竹编纸巾盒 | C90: 个 | H90: 0.00
A91: 86 | B91: 竹编椭圆茶盒 | C91: 个 | H91: 0.00
A92: 87 | B92: 冷水樽 | C92: 个 | H92: 0.00
A93: 88 | B93: 冷水樽 | C93: 个 | H93: 0.00
A94: 89 | B94: 浴巾 | C94: 个 | H94: 0.00
A95: 90 | B95: 棉织品框 | C95: 个 | H95: 0.00
A96: 91 | B96: 低泡地毯水 | C96: 个 | H96: 0.00
A97: 92 | B97: 玻璃水 | C97: 个 | H97: 0.00
A98: 93 | B98: 漱口杯B0409（低杯） | C98: 个 | H98: 0.00
A99: 94 | B99: 盖杯 | C99: 个 | H99: 0.00
A100: 95 | B100: 4#贝壳碟 | C100: 个 | H100: 0.00
A101: 96 | B101: 竹编椭圆茶盒 | C101: 个 | H101: 0.00
A102: 97 | B102: 裙架 | C102: 个 | H102: 0.00
A103: 98 | B103: 烟缸 | C103: 个 | H103: 0.00
A104: 99 | B104: 花瓶 | C104: 个 | H104: 0.00
A105: 100 | B105: 冰桶 | C105: 个 | H105: 0.00
A106: 101 | B106: 垃圾桶 | C106: 个 | H106: 0.00
A107: 102 | B107: 浴缸刷 | C107: 个 | H107: 0.00
A108: 103 | B108: 感应皂液器 | C108: 个 | H108: 0.00
A109: 104 | B109: 飘香器 | C109: 个 | H109: 0.00
A110: 105 | B110: 雪华冷水壶 | C110: 个 | H110: 0.00
A111: 106 | B111: 氨水 | C111: 个 | H111: 0.00
A112: 107 | B112: 玻璃刀片 | C112: 个 | H112: 0.00
A113: 108 | B113: 防滑垫 | C113: 个 | H113: 0.00
A114: 109 | B114: 鞋拔 | C114: 个 | H114: 0.00
A115: 110 | B115: 衣刷 | C115: 个 | H115: 0.00
A116: 111 | B116: 西装衣架 | C116: 个 | H116: 0.00
A117: 112 | B117: 衬衫衣架 | C117: 个 | H117: 0.00
A118: 113 | B118: 芳香球 | C118: 个 | H118: 0.00
A119: 114 | B119: 17寸抛光垫 | C119: 个 | H119: 0.00
A120: 115 | B120: 洗衣液 | C120: 个 | H120: 0.00
A121: 116 | B121: 单面刀片 | C121: 个 | H121: 0.00
A122: 117 | B122: 漂白水 | C122: 个 | H122: 0.00
A123: 118 | B123: 拖把头40*10 | C123: 个 | H123: 0.00
A124: 119 | B124: 尘拖 | C124: 个 | H124: 0.00
A125: 120 | B125: 3M思高百洁布 | C125: 个 | H125: 0.00
A126: 121 | B126: 新大床单 | C126: 个 | H126: 0.00
A127: 122 | B127: 新大被套 | C127: 个 | H127: 0.00
A128: 123 | B128: 新小被套 | C128: 个 | H128: 0.00
A129: 124 | B129: 新靠垫套 | C129: 个 | H129: 0.00
A130: 125 | B130: 新小床单 | C130: 个 | H130: 0.00
A131: 126 | B131: 新枕套 | C131: 个 | H131: 0.00
A132: 127 | B132: 大床垫 | C132: 个 | H132: 0.00
A133: 128 | B133: 小床垫 | C133: 个 | H133: 0.00
A134: 129 | B134: 小棉被 | C134: 个 | H134: =F134+G134 -> 0.00
A135: 130 | B135: 靠垫套 | C135: 个 | H135: 0.00
A136: 131 | B136: 糖果枕 | C136: 个 | H136: 0.00
A137: 132 | B137: 糖果枕套 | C137: 个 | H137: 0.00
A138: 133 | B138: 绒靠垫套 | C138: 个 | H138: 0.00
A139: 134 | B139: 新大棉被 | C139: 个 | H139: 0.00
A140: 135 | B140: 被套 | C140: 个 | H140: 0.00
A141: 136 | B141: 羽绒枕芯 | C141: 个 | H141: 0.00
A142: 137 | B142: 大床单 | C142: 个 | H142: 0.00
A143: 138 | B143: 小床单 | C143: 个 | H143: 0.00
A144: 139 | B144: 地巾 | C144: 个 | H144: 0.00
A145: 140 | B145: 面巾（毛巾） | C145: 个 | H145: 0.00
A146: 141 | B146: 欢迎卡 | C146: 个 | H146: 0.00
A147: 142 | B147: 酒店名片 | C147: 个 | H147: 0.00
A148: 143 | B148: 欢迎卡插页 | C148: 个 | H148: 0.00
A149: 144 | B149: 服务指南（两面内印） | C149: 个 | H149: 0.00
A150: 145 | B150: 电话指南 | C150: 个 | H150: 0.00
A151: 146 | B151: 请柬 | C151: 个 | H151: 0.00
A152: 147 | B152: 晚安卡 | C152: 个 | H152: 0.00
A153: 148 | B153: 月卡 | C153: 个 | H153: 0.00
A154: 149 | B154: IC卡 | C154: 个 | H154: 0.00
A155: 150 | B155: 房卡 | C155: 个 | H155: 0.00
A156: 151 | B156: PVC普通卡 | C156: 个 | H156: 0.00
A157: 152 | B157: 宾客介绍单1 | C157: 个 | H157: 0.00
A158: 153 | B158: 宾客介绍单 | C158: 个 | H158: 0.00
A159: 154 | B159: 房价表 | C159: 个 | H159: 0.00
A160: 155 | B160: 折扣申请单1 | C160: 个 | H160: 0.00
A161: 156 | B161: 接待任务单 | C161: 个 | H161: 0.00
A162: 157 | B162: 内部接待单 | C162: 个 | H162: 0.00
A163: 158 | B163: 内部调拨单 | C163: 个 | H163: 0.00
A164: 159 | B164: 物品申购单 | C164: 个 | H164: 0.00
A165: 160 | B165: 验收入库单 | C165: 个 | H165: 0.00
A166: 161 | B166: 柴油入库单 | C166: 个 | H166: 0.00
A167: 162 | B167: 领料单 | C167: 个 | H167: 0.00
A168: 163 | B168: 客房饮料单 | C168: 个 | H168: 0.00
A169: 164 | B169: 直耗领料单 | C169: 个 | H169: 0.00
A170: 165 | B170: 楼层消耗品领料单 | C170: 个 | H170: 0.00
A171: 166 | B171: 暂借物品单 | C171: 个 | H171: 0.00
A172: 167 | B172: 物品出门单 | C172: 个 | H172: 0.00
A173: 168 | B173: 客衣接受单 | C173: 个 | H173: 0.00
A174: 169 | B174: 洗衣单 | C174: 个 | H174: 0.00
A175: 170 | B175: 收银帐单 | C175: 个 | H175: 0.00
A176: 171 | B176: 商务中心签账单 | C176: 个 | H176: 0.00
A177: 172 | B177: 用款申请单 | C177: 个 | H177: 0.00
A178: 173 | B178: 现金支出证明单 | C178: 个 | H178: 0.00
A179: 174 | B179: 报销单 | C179: 个 | H179: 0.00
A180: 175 | B180: 催款单 | C180: 个 | H180: 0.00
A181: 176 | B181: 商务中心预收款单 | C181: 个 | H181: 0.00
A182: 177 | B182: 客房预收预款 | C182: 个 | H182: 0.00
A183: 178 | B183: 定单 | C183: 个 | H183: 0.00
A184: 179 | B184: 点菜单 | C184: 个 | H184: 0.00
A185: 180 | B185: 工作联系单 | C185: 个 | H185: 0.00
A186: 181 | B186: 提醒单 | C186: 个 | H186: 0.00
A187: 182 | B187: 维修单 | C187: 个 | H187: 0.00
A188: 183 | B188: 杂项单 | C188: 个 | H188: 0.00
A189: 184 | B189: 住宿登记单 | C189: 个 | H189: 0.00
A190: 185 | B190: 请勿打扰卡 | C190: 个 | H190: 0.00
A191: 186 | B191: 不干胶赠品 | C191: 个 | H191: 0.00
A192: 187 | B192: 请假单1 | C192: 个 | H192: 0.00
A193: 188 | B193: 房价表 | C193: 个 | H193: 0.00
A194: 189 | B194: 房间状况表 | C194: 个 | H194: 0.00
A195: 190 | B195: 保险箱收款登记表 | C195: 个 | H195: 0.00
A196: 191 | B196: 楼层服务员日报表 | C196: 个 | H196: 0.00
A197: 192 | B197: 商务中心营业日报表 | C197: 个 | H197: 0.00
A198: 193 | B198: 商场销售日报表 | C198: 个 | H198: =F198+G198 -> 0.00
A199: 194 | B199: 餐饮每日营收报表 | C199: 个 | H199: 0.00
A200: 195 | B200: 楼层酒水耗用日报表 | C200: 个 | H200: 0.00
... 198 more rows

Sheet 存货—开发产品明细表 (hidden)
B1: 存货----产成品清查明细表
A3: =存货清查汇总表!A3 -> 清查基准日：2018年12月31日
A4: =存货清查汇总表!A4 -> 资产占有单位名称：杭州中惠医疗器械有限公司 | G4: 金额单位：人民币元
A5: 序号 | B5: 名 称 | C5: 检验等级 | D5: 单位 | E5: 账 面 值 | H5: 清查调整数 | I5: 清查数
E6: 数量 | F6: 单价 | G6: 金额
A7: 1 | G7: =E7*F7 -> 0.00 | I7: =G7 -> 0.00
A8: 2 | G8: =E8*F8 -> 0.00 | I8: 0.00
A9: 3 | G9: 0.00 | I9: 0.00
A10: 4 | G10: 0.00 | I10: 0.00
A11: 5 | G11: 0.00 | I11: 0.00
A12: 6 | G12: 0.00 | I12: 0.00
A13: 7 | G13: 0.00 | I13: 0.00
A14: 8 | G14: 0.00 | I14: 0.00
A15: 9 | G15: 0.00 | I15: 0.00
A16: 10 | G16: 0.00 | I16: 0.00
A17: 11 | G17: 0.00 | I17: 0.00
A18: 12 | G18: 0.00 | I18: 0.00
A19: 13 | G19: 0.00 | I19: 0.00
A20: 14 | G20: 0.00 | I20: 0.00
A21: 15 | G21: 0.00 | I21: 0.00
A22: 16 | G22: 0.00 | I22: 0.00
A23: 17 | G23: 0.00 | I23: 0.00
A24: 18 | G24: 0.00 | I24: 0.00
A25: 19 | G25: 0.00 | I25: 0.00
A26: 20 | G26: 0.00 | I26: 0.00
A27: 21 | G27: 0.00 | I27: 0.00
A28: 22 | G28: 0.00 | I28: 0.00
A29: 23 | G29: 0.00 | I29: 0.00
A30: 24 | G30: 0.00 | I30: 0.00
A31: 25 | G31: 0.00 | I31: 0.00
A32: 26 | G32: 0.00 | I32: 0.00
A33: 27 | G33: 0.00 | I33: 0.00
A34: 28 | G34: 0.00 | I34: 0.00
A35: 29 | G35: 0.00 | I35: 0.00
A36: 30 | G36: 0.00 | I36: 0.00
A37: 31 | G37: 0.00 | I37: 0.00
A38: 32 | G38: 0.00 | I38: 0.00
A39: 33 | G39: 0.00 | I39: 0.00
A40: 34 | G40: 0.00 | I40: 0.00
A41: 35 | G41: 0.00 | I41: 0.00
A42: 36 | G42: 0.00 | I42: 0.00
A43: 37 | G43: 0.00 | I43: 0.00
A44: 38 | G44: 0.00 | I44: 0.00
A45: 39 | G45: 0.00 | I45: 0.00
A46: 40 | G46: 0.00 | I46: 0.00
A47: 41 | G47: 0.00 | I47: 0.00
A48: 42 | G48: 0.00 | I48: 0.00
A49: 43 | G49: 0.00 | I49: 0.00
A50: 44 | G50: 0.00 | I50: 0.00
A51: 45 | G51: 0.00 | I51: 0.00
A52: 46 | G52: 0.00 | I52: 0.00
A53: 47 | G53: 0.00 | I53: 0.00
A54: 48 | G54: 0.00 | I54: 0.00
A55: 49 | G55: 0.00 | I55: 0.00
A56: 50 | G56: 0.00 | I56: 0.00
A57: 51 | G57: 0.00 | I57: 0.00
A58: 52 | G58: 0.00 | I58: 0.00
A59: 53 | G59: 0.00 | I59: 0.00
A60: 54 | G60: 0.00 | I60: 0.00
A61: 55 | G61: 0.00 | I61: 0.00
A62: 56 | G62: 0.00 | I62: 0.00
A63: 57 | G63: 0.00 | I63: 0.00
A64: 58 | G64: 0.00 | I64: 0.00
A65: 59 | G65: 0.00 | I65: 0.00
A66: 60 | G66: 0.00 | I66: 0.00
A67: 61 | G67: 0.00 | I67: 0.00
A68: 62 | G68: 0.00 | I68: 0.00
A69: 63 | G69: 0.00 | I69: 0.00
A70: 64 | G70: 0.00 | I70: 0.00
A71: 65 | G71: 0.00 | I71: =G71 -> 0.00
A72: 66 | G72: =E72*F72 -> 0.00 | I72: 0.00
A73: 67 | G73: 0.00 | I73: 0.00
A74: 68 | G74: 0.00 | I74: 0.00
A75: 69 | G75: 0.00 | I75: 0.00
A76: 70 | G76: 0.00 | I76: 0.00
A77: 71 | G77: 0.00 | I77: 0.00
A78: 72 | G78: 0.00 | I78: 0.00
A79: 73 | G79: 0.00 | I79: 0.00
A80: 74 | G80: 0.00 | I80: 0.00
A81: 75 | G81: 0.00 | I81: 0.00
A82: 76 | G82: 0.00 | I82: 0.00
A83: 77 | G83: 0.00 | I83: 0.00
A84: 78 | G84: 0.00 | I84: 0.00
A85: 79 | G85: 0.00 | I85: 0.00
A86: 80 | G86: 0.00 | I86: 0.00
A87: 81 | G87: 0.00 | I87: 0.00
A88: 82 | G88: 0.00 | I88: 0.00
A89: 83 | G89: 0.00 | I89: 0.00
A90: 84 | G90: 0.00 | I90: 0.00
A91: 85 | G91: 0.00 | I91: 0.00
A92: 86 | G92: 0.00 | I92: 0.00
A93: 87 | G93: 0.00 | I93: 0.00
A94: 88 | G94: 0.00 | I94: 0.00
A95: 89 | G95: 0.00 | I95: 0.00
A96: 90 | G96: 0.00 | I96: 0.00
A97: 91 | G97: 0.00 | I97: 0.00
A98: 92 | G98: 0.00 | I98: 0.00
A99: 93 | G99: 0.00 | I99: 0.00
A100: 94 | G100: 0.00 | I100: 0.00
A101: 95 | G101: 0.00 | I101: 0.00
A102: 96 | G102: 0.00 | I102: 0.00
A103: 97 | G103: 0.00 | I103: 0.00
A104: 98 | G104: 0.00 | I104: 0.00
A105: 99 | G105: 0.00 | I105: 0.00
A106: 100 | G106: 0.00 | I106: 0.00
A107: 101 | G107: 0.00 | I107: 0.00
A108: 102 | G108: 0.00 | I108: 0.00
A109: 103 | G109: 0.00 | I109: 0.00
A110: 104 | G110: 0.00 | I110: 0.00
A111: 105 | G111: 0.00 | I111: 0.00
A112: 106 | G112: 0.00 | I112: 0.00
A113: 107 | G113: 0.00 | I113: 0.00
A114: 108 | G114: 0.00 | I114: 0.00
A115: 109 | G115: 0.00 | I115: 0.00
A116: 110 | G116: 0.00 | I116: 0.00
A117: 111 | G117: 0.00 | I117: 0.00
A118: 112 | G118: 0.00 | I118: 0.00
A119: 113 | G119: 0.00 | I119: 0.00
A120: 114 | G120: 0.00 | I120: 0.00
A121: 115 | G121: 0.00 | I121: 0.00
A122: 116 | G122: 0.00 | I122: 0.00
A123: 117 | G123: 0.00 | I123: 0.00
A124: 118 | G124: 0.00 | I124: 0.00
A125: 119 | G125: 0.00 | I125: 0.00
A126: 120 | G126: 0.00 | I126: 0.00
A127: 121 | G127: 0.00 | I127: 0.00
A128: 122 | G128: 0.00 | I128: 0.00
A129: 123 | G129: 0.00 | I129: 0.00
A130: 124 | G130: 0.00 | I130: 0.00
A131: 125 | G131: 0.00 | I131: 0.00
A132: 126 | G132: 0.00 | I132: 0.00
A133: 127 | G133: 0.00 | I133: 0.00
A134: 128 | G134: 0.00 | I134: 0.00
A135: 129 | G135: 0.00 | I135: =G135 -> 0.00
A136: 130 | G136: =E136*F136 -> 0.00 | I136: 0.00
A137: 131 | G137: 0.00 | I137: 0.00
A138: 132 | G138: 0.00 | I138: 0.00
A139: 133 | G139: 0.00 | I139: 0.00
A140: 134 | G140: 0.00 | I140: 0.00
A141: 135 | G141: 0.00 | I141: 0.00
A142: 136 | G142: 0.00 | I142: 0.00
A143: 137 | G143: 0.00 | I143: 0.00
A144: 138 | G144: 0.00 | I144: 0.00
A145: 139 | G145: 0.00 | I145: 0.00
A146: 140 | G146: 0.00 | I146: 0.00
A147: 141 | G147: 0.00 | I147: 0.00
A148: 142 | G148: 0.00 | I148: 0.00
A149: 143 | G149: 0.00 | I149: 0.00
A150: 144 | G150: 0.00 | I150: 0.00
A151: 145 | G151: 0.00 | I151: 0.00
A152: 146 | G152: 0.00 | I152: 0.00
A153: 147 | G153: 0.00 | I153: 0.00
A154: 148 | G154: 0.00 | I154: 0.00
A155: 149 | G155: 0.00 | I155: 0.00
A156: 150 | G156: 0.00 | I156: 0.00
A157: 151 | G157: 0.00 | I157: 0.00
A158: 152 | G158: 0.00 | I158: 0.00
A159: 153 | G159: 0.00 | I159: 0.00
A160: 154 | G160: 0.00 | I160: 0.00
A161: 155 | G161: 0.00 | I161: 0.00
A162: 156 | G162: 0.00 | I162: 0.00
A163: 157 | G163: 0.00 | I163: 0.00
A164: 158 | G164: 0.00 | I164: 0.00
A165: 159 | G165: 0.00 | I165: 0.00
A166: 160 | G166: 0.00 | I166: 0.00
A167: 161 | G167: 0.00 | I167: 0.00
A168: 162 | G168: 0.00 | I168: 0.00
A169: 163 | G169: 0.00 | I169: 0.00
A170: 164 | G170: 0.00 | I170: 0.00
A171: 165 | G171: 0.00 | I171: 0.00
A172: 166 | G172: 0.00 | I172: 0.00
A173: 167 | G173: 0.00 | I173: 0.00
A174: 168 | G174: 0.00 | I174: 0.00
A175: 169 | G175: 0.00 | I175: 0.00
A176: 170 | G176: 0.00 | I176: 0.00
A177: 171 | G177: 0.00 | I177: 0.00
A178: 172 | G178: 0.00 | I178: 0.00
A179: 173 | G179: 0.00 | I179: 0.00
A180: 174 | G180: 0.00 | I180: 0.00
A181: 175 | G181: 0.00 | I181: 0.00
A182: 176 | G182: 0.00 | I182: 0.00
A183: 177 | G183: 0.00 | I183: 0.00
A184: 178 | G184: 0.00 | I184: 0.00
A185: 179 | G185: 0.00 | I185: 0.00
A186: 180 | G186: 0.00 | I186: 0.00
A187: 181 | G187: 0.00 | I187: 0.00
A188: 182 | G188: 0.00 | I188: 0.00
A189: 183 | G189: 0.00 | I189: 0.00
A190: 184 | G190: 0.00 | I190: 0.00
A191: 185 | G191: 0.00 | I191: 0.00
A192: 186 | G192: 0.00 | I192: 0.00
A193: 187 | G193: 0.00 | I193: 0.00
A194: 188 | G194: 0.00 | I194: 0.00
A195: 189 | G195: 0.00 | I195: 0.00
A196: 190 | G196: 0.00 | I196: 0.00
A200: 本 页 小 计 | E200: =SUM(E7:E196) -> 0.00
A201: 合计 | E201: =E200 -> 0.00 | G201: =SUM(G7:G200) -> 0.00 | H201: 0.00 | I201: 0.00

Sheet 3.4.1.2库存商品---客房用品明细 (hidden)
B1: 存货----库存商品清查明细表
A3: =存货清查汇总表!A3 -> 清查基准日：2018年12月31日
A4: =存货—开发产品明细表!A4 -> 资产占有单位名称：杭州中惠医疗器械有限公司 | I4: 金额单位：人民币元
A5: 序号 | B5: 名 称 | C5: 单位 | D5: 账 面 值 | G5: 调整数 | H5: 清查数 | I5: 备注
D6: 数量 | E6: 单价 | F6: 金额
A7: 1 | B7: 碧丽珠 | C7: 个 | D7: 16 | E7: 35.00 | F7: =D7*E7 -> 560.00 | H7: =F7 -> 560.00
A8: 2 | B8: 杯垫 | C8: 个 | D8: 473 | E8: 2.50 | F8: 1,182.50 | H8: 1,182.50
A9: 3 | B9: 黄白牙具 | C9: 个 | D9: 4180 | E9: 0.56 | F9: 2,340.80 | H9: 2,340.80
A10: 4 | B10: 简装牙具 | C10: 个 | D10: 1200 | E10: 0.40 | F10: 480.00 | H10: 480.00
A11: 5 | B11: 3g小牙膏 | C11: 个 | D11: 750 | E11: 0.17 | F11: 127.50 | H11: 127.50
A12: 6 | B12: 梳子 | C12: 个 | D12: 4940 | E12: 0.28 | F12: 1,383.20 | H12: 1,383.20
A13: 7 | B13: 简装梳子 | C13: 个 | D13: 700 | E13: 0.16 | F13: 112.00 | H13: 112.00
A14: 8 | B14: 简装浴帽 | C14: 个 | D14: 1880 | E14: 0.12 | F14: 225.60 | H14: 225.60
A15: 9 | B15: 浴帽 | C15: 个 | D15: 5900 | E15: 0.26 | F15: 1,534.00 | H15: 1,534.00
A16: 10 | B16: 拖鞋 | C16: 个 | D16: 5380 | E16: 0.70 | F16: =D16*E16 -> 3,766.00 | H16: =F16 -> 3,766.00
A17: 11 | B17: 指甲挫 | C17: 个 | D17: 5550 | E17: 0.13 | F17: 721.50 | H17: 721.50
A18: 12 | B18: 毛头 | C18: 个 | D18: 4 | E18: 8.00 | F18: 32.00 | H18: 32.00
A19: 13 | B19: 指甲挫 | C19: 个 | D19: 420 | E19: 0.22 | F19: 92.40 | H19: 92.40
A20: 14 | B20: 消毒水 | C20: 个 | D20: 14 | E20: 33.00 | F20: 462.00 | H20: 462.00
A21: 15 | B21: 毛巾拖鞋 | C21: 个 | D21: 167 | E21: 1.90 | F21: 317.30 | H21: 317.30
A22: 16 | B22: 擦鞋袋 | C22: 个 | D22: 11500 | E22: 0.08 | F22: 920.00 | H22: 920.00
A23: 17 | B23: 针线包 | C23: 个 | D23: 180 | E23: 0.22 | F23: 39.60 | H23: 39.60
A24: 18 | B24: 手提袋 | C24: 个 | D24: 4540 | E24: 1.20 | F24: 5,448.00 | H24: 5,448.00
A25: 19 | B25: 挂衣袋 | C25: 个 | D25: 3200 | E25: 0.75 | F25: 2,400.00 | H25: 2,400.00
A26: 20 | B26: 背心袋 | C26: 个 | D26: 0 | E26: 0.18 | F26: 0.00 | H26: 0.00
A27: 21 | B27: 大床垫 | C27: 个 | D27: 3 | E27: 68.00 | F27: 204.00 | H27: 204.00
A28: 22 | B28: 小床垫 | C28: 个 | D28: 14 | E28: 48.00 | F28: 672.00 | H28: 672.00
A29: 23 | B29: 毛毯 | C29: 个 | D29: 10 | E29: 260.00 | F29: 2,600.00 | H29: 2,600.00
A30: 24 | B30: 90尘拖布 | C30: 个 | D30: 3 | E30: 30.00 | F30: 90.00 | H30: 90.00
A31: 25 | B31: 尘拖杆 | C31: 个 | D31: 1 | E31: 18.00 | F31: 18.00 | H31: 18.00
A32: 26 | B32: 擦铜水 | C32: 个 | D32: 37 | E32: 70.00 | F32: 2,590.00 | H32: 2,590.00
A33: 27 | B33: 小香皂 | C33: 个 | D33: 600 | E33: 0.36 | F33: 216.00 | H33: 216.00
A34: 28 | B34: 纸手帕 | C34: 个 | D34: 5 | E34: 10.00 | F34: 50.00 | H34: 50.00
A35: 29 | B35: 卫生袋 | C35: 个 | D35: 600 | E35: 0.21 | F35: 126.00 | H35: 126.00
A36: 30 | B36: 伞袋 | C36: 个 | D36: 2600 | E36: 0.06 | F36: 156.00 | H36: 156.00
A37: 31 | B37: 4M百洁布（绿） | C37: 个 | D37: 33 | E37: 2.70 | F37: 89.10 | H37: 89.10
A38: 32 | B38: 板刷 | C38: 个 | D38: 2 | E38: 3.00 | F38: 6.00 | H38: 6.00
A39: 33 | B39: 剃须刀 | C39: 个 | D39: 100 | E39: 0.60 | F39: 60.00 | H39: 60.00
A40: 34 | B40: 柔巾纸 | C40: 个 | D40: 8 | E40: 20.00 | F40: 160.00 | H40: 160.00
A41: 35 | B41: 台裙夹 | C41: 个 | D41: 100 | E41: 0.90 | F41: =D41*E41 -> 90.00 | H41: =F41 -> 90.00
A42: 36 | B42: 洗衣袋 | C42: 个 | D42: 23 | E42: 7.00 | F42: 161.00 | H42: 161.00
A43: 37 | B43: 浴帘布 | C43: 个 | D43: 15 | E43: 33.00 | F43: 495.00 | H43: 495.00
A44: 38 | B44: 竹编三角三层架 | C44: 个 | D44: 45 | E44: 48.00 | F44: 2,160.00 | H44: 2,160.00
A45: 39 | B45: 竹编纸巾盒 | C45: 个 | D45: 62 | E45: 25.00 | F45: 1,550.00 | H45: 1,550.00
A46: 40 | B46: 竹编椭圆茶盒 | C46: 个 | D46: 1 | E46: 6.50 | F46: 6.50 | H46: 6.50
A47: 41 | B47: 冷水樽 | C47: 个 | D47: 10 | E47: 31.00 | F47: 310.00 | H47: 310.00
A48: 42 | B48: 冷水樽 | C48: 个 | D48: 49 | E48: 18.00 | F48: 882.00 | H48: 882.00
A49: 43 | B49: 浴巾 | C49: 个 | D49: 139 | E49: 26.50 | F49: 3,683.50 | H49: 3,683.50
A50: 44 | B50: 棉织品框 | C50: 个 | D50: 4 | E50: 74.00 | F50: 296.00 | H50: 296.00
A51: 45 | B51: 低泡地毯水 | C51: 个 | D51: 4 | E51: 77.50 | F51: 310.00 | H51: 310.00
A52: 46 | B52: 玻璃水 | C52: 个 | D52: 2 | E52: 75.00 | F52: 150.00 | H52: 150.00
A53: 47 | B53: 漱口杯B0409（低杯） | C53: 个 | D53: 11 | E53: 3.20 | F53: 35.20 | H53: 35.20
A54: 48 | B54: 盖杯 | C54: 个 | D54: 33 | E54: 4.00 | F54: 132.00 | H54: 132.00
A55: 49 | B55: 4#贝壳碟 | C55: 个 | D55: 29 | E55: 1.85 | F55: 53.65 | H55: 53.65
A56: 50 | B56: 竹编椭圆茶盒 | C56: 个 | D56: 30 | E56: 14.00 | F56: 420.00 | H56: 420.00
A57: 51 | B57: 裙架 | C57: 个 | D57: 28 | E57: 5.00 | F57: 140.00 | H57: 140.00
A58: 52 | B58: 烟缸 | C58: 个 | D58: 6 | E58: 2.00 | F58: 12.00 | H58: =F58 -> 12.00
A59: 53 | B59: 花瓶 | C59: 个 | D59: 45 | E59: 7.80 | F59: 351.00 | H59: 351.00
A60: 54 | B60: 冰桶 | C60: 个 | D60: 12 | E60: 60.00 | F60: 720.00 | H60: 720.00
A61: 55 | B61: 垃圾桶 | C61: 个 | D61: 2 | E61: 48.00 | F61: 96.00 | H61: 96.00
A62: 56 | B62: 浴缸刷 | C62: 个 | D62: 1 | E62: 5.00 | F62: 5.00 | H62: 5.00
A63: 57 | B63: 感应皂液器 | C63: 个 | D63: 2 | E63: 600.00 | F63: =D63*E63 -> 1,200.00 | H63: 1,200.00
A64: 58 | B64: 飘香器 | C64: 个 | D64: 1 | E64: 290.00 | F64: 290.00 | H64: 290.00
A65: 59 | B65: 雪华冷水壶 | C65: 个 | D65: 15 | E65: 160.00 | F65: 2,400.00 | H65: 2,400.00
A66: 60 | B66: 氨水 | C66: 个 | D66: 13 | E66: 5.50 | F66: 71.50 | H66: 71.50
A67: 61 | B67: 玻璃刀片 | C67: 个 | D67: 2 | E67: 85.00 | F67: 170.00 | H67: 170.00
A68: 62 | B68: 防滑垫 | C68: 个 | D68: 10 | E68: 19.00 | F68: 190.00 | H68: 190.00
A69: 63 | B69: 鞋拔 | C69: 个 | D69: 22 | E69: 18.50 | F69: 407.00 | H69: 407.00
A70: 64 | B70: 衣刷 | C70: 个 | D70: 125 | E70: 22.00 | F70: 2,750.00 | H70: 2,750.00
A71: 65 | B71: 西装衣架 | C71: 个 | D71: 21 | E71: 12.00 | F71: 252.00 | H71: 252.00
A72: 66 | B72: 衬衫衣架 | C72: 个 | D72: 13 | E72: 4.00 | F72: 52.00 | H72: 52.00
A73: 67 | B73: 芳香球 | C73: 个 | D73: 10 | E73: 10.00 | F73: 100.00 | H73: 100.00
A74: 68 | B74: 17寸抛光垫 | C74: 个 | D74: 4 | E74: 40.00 | F74: 160.00 | H74: 160.00
A75: 69 | B75: 洗衣液 | C75: 个 | D75: 1 | E75: 27.75 | F75: 27.75 | H75: 27.75
A76: 70 | B76: 单面刀片 | C76: 个 | D76: 1 | E76: 38.00 | F76: 38.00 | H76: 38.00
A77: 71 | B77: 漂白水 | C77: 个 | D77: 5 | E77: 7.80 | F77: 39.00 | H77: 39.00
A78: 72 | B78: 拖把头40*10 | C78: 个 | D78: 1 | E78: 14.00 | F78: 14.00 | H78: 14.00
A79: 73 | B79: 尘拖 | C79: 个 | D79: 1 | E79: 74.00 | F79: 74.00 | H79: 74.00
A80: 74 | B80: 3M思高百洁布 | C80: 个 | D80: 6 | E80: 5.00 | F80: 30.00 | H80: 30.00
A85: 本 页 小 计 | F85: =SUM(F7:F84) -> 49,505.60 | G85: =SUM(G7:G84) -> 0.00 | H85: =SUM(H7:H84) -> 49,505.60
A86: 合 计 | C86: ** | E86: ** | F86: =F85 -> 49,505.60 | G86: =G85 -> 0.00 | H86: =H85 -> 49,505.60

Sheet 3.4.1.3库存商品---棉织品明细 (hidden)
B1: 存货----库存商品清查明细表
A3: =存货清查汇总表!A3 -> 清查基准日：2018年12月31日
A4: =存货—开发产品明细表!A4 -> 资产占有单位名称：杭州中惠医疗器械有限公司 | I4: 金额单位：人民币元
A5: 序号 | B5: 名 称 | C5: 单位 | D5: 账 面 值 | G5: 调整数 | H5: 清查数 | I5: 备注
D6: 数量 | E6: 单价 | F6: 金额
A7: 1 | B7: 新大床单 | C7: 个 | D7: 35 | E7: 103.00 | F7: =D7*E7 -> 3,605.00 | H7: =F7 -> 3,605.00
A8: 2 | B8: 新大被套 | C8: 个 | D8: 35 | E8: 150.00 | F8: 5,250.00 | H8: 5,250.00
A9: 3 | B9: 新小被套 | C9: 个 | D9: 18 | E9: 110.00 | F9: 1,980.00 | H9: 1,980.00
A10: 4 | B10: 新靠垫套 | C10: 个 | D10: 24 | E10: 17.00 | F10: 408.00 | H10: 408.00
A11: 5 | B11: 新小床单 | C11: 个 | D11: 83 | E11: 80.00 | F11: 6,640.00 | H11: 6,640.00
A12: 6 | B12: 新枕套 | C12: 个 | D12: 36 | E12: 17.50 | F12: 630.00 | H12: 630.00
A13: 7 | B13: 大床垫 | C13: 个 | D13: 3 | E13: 68.00 | F13: 204.00 | H13: 204.00
A14: 8 | B14: 小床垫 | C14: 个 | D14: 14 | E14: 48.00 | F14: 672.00 | H14: 672.00
A15: 9 | B15: 小棉被 | C15: 个 | D15: 14 | E15: 210.00 | F15: 2,940.00 | H15: 2,940.00
A16: 10 | B16: 靠垫套 | C16: 个 | D16: 34 | E16: 28.00 | F16: 952.00 | H16: 952.00
A17: 11 | B17: 糖果枕 | C17: 个 | D17: 8 | E17: 20.00 | F17: 160.00 | H17: 160.00
A18: 12 | B18: 糖果枕套 | C18: 个 | D18: 8 | E18: 20.00 | F18: 160.00 | H18: 160.00
A19: 13 | B19: 绒靠垫套 | C19: 个 | D19: 7 | E19: 40.00 | F19: 280.00 | H19: 280.00
A20: 14 | B20: 新大棉被 | C20: 个 | D20: 1 | E20: 750.00 | F20: 750.00 | H20: 750.00
A21: 15 | B21: 被套 | C21: 个 | D21: 9 | E21: 45.00 | F21: 405.00 | H21: 405.00
A22: 16 | B22: 羽绒枕芯 | C22: 个 | D22: 32 | E22: 35.00 | F22: 1,120.00 | H22: 1,120.00
A23: 17 | B23: 大床单 | C23: 个 | D23: 9 | E23: 42.00 | F23: 378.00 | H23: 378.00
A24: 18 | B24: 小床单 | C24: 个 | D24: 5 | E24: 35.50 | F24: 177.50 | H24: 177.50
A25: 19 | B25: 地巾 | C25: 个 | D25: 144 | E25: 17.50 | F25: 2,520.00 | H25: 2,520.00
A26: 20 | B26: 面巾（毛巾） | C26: 个 | D26: 24 | E26: 6.00 | F26: 144.00 | H26: 144.00
A35: 本 页 小 计 | F35: =SUM(F7:F34) -> 29,375.50 | G35: =SUM(G7:G34) -> 0.00 | H35: =SUM(H7:H34) -> 29,375.50
A36: 合 计 | C36: ** | E36: ** | F36: =F35 -> 29,375.50 | G36: 0.00 | H36: 29,375.50

Sheet 3.4.1.4库存商品---表单明细 (hidden)
B1: 存货----库存商品清查明细表
A3: =存货清查汇总表!A3 -> 清查基准日：2018年12月31日
A4: =存货—开发产品明细表!A4 -> 资产占有单位名称：杭州中惠医疗器械有限公司 | I4: 金额单位：人民币元
A5: 序号 | B5: 名 称 | C5: 单位 | D5: 账 面 值 | G5: 调整数 | H5: 清查数 | I5: 备注
D6: 数量 | E6: 单价 | F6: 金额
A7: 1 | B7: 欢迎卡 | C7: 个 | D7: 7850 | E7: 0.40 | F7: =D7*E7 -> 3,140.00 | H7: =F7 -> 3,140.00
A8: 2 | B8: 酒店名片 | C8: 个 | D8: 17 | E8: 15.00 | F8: 255.00 | H8: 255.00
A9: 3 | B9: 欢迎卡插页 | C9: 个 | D9: 10000 | E9: 0.05 | F9: 500.00 | H9: 500.00
A10: 4 | B10: 服务指南（两面内印） | C10: 个 | D10: 126 | E10: 5.00 | F10: 630.00 | H10: 630.00
A11: 5 | B11: 电话指南 | C11: 个 | D11: 88 | E11: 4.50 | F11: 396.00 | H11: 396.00
A12: 6 | B12: 请柬 | C12: 个 | D12: 48 | E12: 4.60 | F12: 220.80 | H12: 220.80
A13: 7 | B13: 晚安卡 | C13: 个 | D13: 919 | E13: 1.60 | F13: 1,470.40 | H13: 1,470.40
A14: 8 | B14: 月卡 | C14: 个 | D14: 3 | E14: 15.00 | F14: 45.00 | H14: 45.00
A15: 9 | B15: IC卡 | C15: 个 | D15: 397 | E15: 10.00 | F15: 3,970.00 | H15: 3,970.00
A16: 10 | B16: 房卡 | C16: 个 | D16: 50 | E16: 27.00 | F16: =D16*E16 -> 1,350.00 | H16: =F16 -> 1,350.00
A17: 11 | B17: PVC普通卡 | C17: 个 | D17: 388 | E17: 2.78 | F17: 1,078.64 | H17: 1,078.64
A18: 12 | B18: 宾客介绍单1 | C18: 个 | D18: 13250 | E18: 0.87 | F18: 11,527.50 | H18: 11,527.50
A19: 13 | B19: 宾客介绍单 | C19: 个 | D19: 4310 | E19: 1.80 | F19: 7,758.00 | H19: 7,758.00
A20: 14 | B20: 房价表 | C20: 个 | D20: 400 | E20: 0.45 | F20: 180.00 | H20: 180.00
A21: 15 | B21: 折扣申请单1 | C21: 个 | D21: 33 | E21: 38.95 | F21: 1,285.35 | H21: 1,285.35
A22: 16 | B22: 接待任务单 | C22: 个 | D22: 27 | E22: 3.90 | F22: 105.30 | H22: 105.30
A23: 17 | B23: 内部接待单 | C23: 个 | D23: 22 | E23: 2.80 | F23: 61.60 | H23: 61.60
A24: 18 | B24: 内部调拨单 | C24: 个 | D24: 103 | E24: 2.40 | F24: 247.20 | H24: 247.20
A25: 19 | B25: 物品申购单 | C25: 个 | D25: 72 | E25: 4.50 | F25: 324.00 | H25: 324.00
A26: 20 | B26: 验收入库单 | C26: 个 | D26: 150 | E26: 4.40 | F26: 660.00 | H26: 660.00
A27: 21 | B27: 柴油入库单 | C27: 个 | D27: 7 | E27: 8.00 | F27: 56.00 | H27: 56.00
A28: 22 | B28: 领料单 | C28: 个 | D28: 112 | E28: 3.00 | F28: 336.00 | H28: 336.00
A29: 23 | B29: 客房饮料单 | C29: 个 | D29: 20 | E29: 10.00 | F29: 200.00 | H29: 200.00
A30: 24 | B30: 直耗领料单 | C30: 个 | D30: 88 | E30: 3.60 | F30: 316.80 | H30: 316.80
A31: 25 | B31: 楼层消耗品领料单 | C31: 个 | D31: 68 | E31: 2.50 | F31: 170.00 | H31: 170.00
A32: 26 | B32: 暂借物品单 | C32: 个 | D32: 46 | E32: 4.60 | F32: 211.60 | H32: 211.60
A33: 27 | B33: 物品出门单 | C33: 个 | D33: 23 | E33: 2.00 | F33: 46.00 | H33: 46.00
A34: 28 | B34: 客衣接受单 | C34: 个 | D34: 16 | E34: 4.20 | F34: 67.20 | H34: 67.20
A35: 29 | B35: 洗衣单 | C35: 个 | D35: 245 | E35: 17.50 | F35: 4,287.50 | H35: 4,287.50
A36: 30 | B36: 收银帐单 | C36: 个 | D36: 10 | E36: 8.40 | F36: 84.00 | H36: 84.00
A37: 31 | B37: 商务中心签账单 | C37: 个 | D37: 7 | E37: 1.90 | F37: 13.30 | H37: 13.30
A38: 32 | B38: 用款申请单 | C38: 个 | D38: 5 | E38: 1.50 | F38: 7.50 | H38: 7.50
A39: 33 | B39: 现金支出证明单 | C39: 个 | D39: 29 | E39: 6.50 | F39: 188.50 | H39: 188.50
A40: 34 | B40: 报销单 | C40: 个 | D40: 4 | E40: 1.50 | F40: 6.00 | H40: 6.00
A41: 35 | B41: 催款单 | C41: 个 | D41: 90 | E41: 1.80 | F41: 162.00 | H41: 162.00
A42: 36 | B42: 商务中心预收款单 | C42: 个 | D42: 930 | E42: 9.60 | F42: 8,928.00 | H42: 8,928.00
A43: 37 | B43: 客房预收预款 | C43: 个 | D43: 50 | E43: 3.00 | F43: 150.00 | H43: 150.00
A44: 38 | B44: 定单 | C44: 个 | D44: 702 | E44: 3.20 | F44: 2,246.40 | H44: 2,246.40
A45: 39 | B45: 收款收据 | C45: 个 | D45: 0 | E45: 0.96 | F45: 0.00 | H45: 0.00
A46: 40 | B46: 点菜单 | C46: 个 | D46: 170 | E46: 9.90 | F46: 1,683.00 | H46: 1,683.00
A47: 41 | B47: 工作联系单 | C47: 个 | D47: 20 | E47: 7.00 | F47: 140.00 | H47: 140.00
A48: 42 | B48: 提醒单 | C48: 个 | D48: 180 | E48: 9.75 | F48: 1,755.00 | H48: 1,755.00
A49: 43 | B49: 维修单 | C49: 个 | D49: 4 | E49: 3.00 | F49: 12.00 | H49: 12.00
A50: 44 | B50: 杂项单 | C50: 个 | D50: 34 | E50: 1.90 | F50: 64.60 | H50: 64.60
A51: 45 | B51: 住宿登记单 | C51: 个 | D51: 209 | E51: 9.00 | F51: 1,881.00 | H51: 1,881.00
A52: 46 | B52: 请勿打扰卡 | C52: 个 | D52: 300 | E52: 0.72 | F52: 216.00 | H52: 216.00
A53: 47 | B53: 不干胶赠品 | C53: 个 | D53: 20 | E53: 2.20 | F53: 44.00 | H53: 44.00
A54: 48 | B54: 请假单1 | C54: 个 | D54: 39 | E54: 2.80 | F54: 109.20 | H54: 109.20
A55: 49 | B55: 房价表 | C55: 个 | D55: 5000 | E55: 0.40 | F55: 2,000.00 | H55: 2,000.00
A56: 50 | B56: 房间状况表 | C56: 个 | D56: 195 | E56: 7.50 | F56: 1,462.50 | H56: 1,462.50
A57: 51 | B57: 保险箱收款登记表 | C57: 个 | D57: 26 | E57: 3.80 | F57: 98.80 | H57: 98.80
A58: 52 | B58: 楼层服务员日报表 | C58: 个 | D58: 136 | E58: 5.50 | F58: 748.00 | H58: 748.00
A59: 53 | B59: 商务中心营业日报表 | C59: 个 | D59: 37 | E59: 4.50 | F59: 166.50 | H59: 166.50
A60: 54 | B60: 商场销售日报表 | C60: 个 | D60: 127 | E60: 2.90 | F60: =D60*E60 -> 368.30 | H60: =F60 -> 368.30
A61: 55 | B61: 餐饮每日营收报表 | C61: 个 | D61: 25 | E61: 2.50 | F61: 62.50 | H61: 62.50
A62: 56 | B62: 楼层酒水耗用日报表 | C62: 个 | D62: 79 | E62: 5.50 | F62: 434.50 | H62: 434.50
A63: 57 | B63: 酒水日报表 | C63: 个 | D63: 180 | E63: 3.50 | F63: 630.00 | H63: 630.00
A64: 58 | B64: 娱乐部营业日报表 | C64: 个 | D64: 19 | E64: 3.00 | F64: 57.00 | H64: 57.00
A65: 59 | B65: 客房消耗品汇总表 | C65: 个 | D65: 15 | E65: 8.00 | F65: 120.00 | H65: 120.00
A66: 60 | B66: 能耗日报表（31张/本） | C66: 个 | D66: 110 | E66: 3.70 | F66: 407.00 | H66: 407.00
A67: 61 | B67: 维修保养周表 | C67: 个 | D67: 800 | E67: 0.25 | F67: 200.00 | H67: 200.00
A68: 62 | B68: 公共区域日查表（31张/本) | C68: 个 | D68: 3 | E68: 6.20 | F68: 18.60 | H68: 18.60
A69: 63 | B69: 楼层领班工作报告表 | C69: 个 | D69: 55 | E69: 3.90 | F69: 214.50 | H69: 214.50
A70: 64 | B70: 早班服务员日报表 | C70: 个 | D70: 19 | E70: 8.00 | F70: 152.00 | H70: 152.00
A71: 65 | B71: 中班服务员日报表 | C71: 个 | D71: 101 | E71: 8.00 | F71: 808.00 | H71: 808.00
A72: 66 | B72: 部门用盘存表 | C72: 个 | D72: 18 | E72: 6.50 | F72: 117.00 | H72: 117.00
A73: 67 | B73: 月末盘存表 | C73: 个 | D73: 108 | E73: 6.80 | F73: 734.40 | H73: 734.40
A74: 68 | B74: 25K封面 | C74: 个 | D74: 1 | E74: 1.50 | F74: 1.50 | H74: 1.50
A75: 69 | B75: 25K账页封面 | C75: 个 | D75: 3 | E75: 2.50 | F75: 7.50 | H75: 7.50
A76: 70 | B76: 五号西式信封 | C76: 个 | D76: 150 | E76: 0.40 | F76: 60.00 | H76: 60.00
A77: 71 | B77: 点歌单 | C77: 个 | D77: 152 | E77: 3.90 | F77: 592.80 | H77: 592.80
A78: 72 | B78: 公安出入境表（境外人员） | C78: 个 | D78: 90 | E78: 2.90 | F78: 261.00 | H78: 261.00
A79: 73 | B79: 菜谱 | C79: 个 | D79: 5 | E79: 400.00 | F79: 2,000.00 | H79: 2,000.00
A80: 74 | B80: 遗留物品招领处理表 | C80: 个 | D80: 15 | E80: 2.00 | F80: 30.00 | H80: 30.00
A81: 75 | B81: 员工出勤表 | C81: 个 | D81: 810 | E81: 0.08 | F81: 64.80 | H81: 64.80
A82: 76 | B82: 员工过失表 | C82: 个 | D82: 101 | E82: 6.00 | F82: 606.00 | H82: 606.00
A83: 77 | B83: 员工资料 | C83: 个 | D83: 2 | E83: 10.00 | F83: 20.00 | H83: 20.00
A84: 78 | B84: 大堂副理值班记录 | C84: 个 | D84: 40 | E84: 2.50 | F84: 100.00 | H84: 100.00
A85: 79 | B85: 值班情况记录 | C85: 个 | D85: 45 | E85: 4.00 | F85: 180.00 | H85: 180.00
A86: 80 | B86: 工程部交接班纪录 | C86: 个 | D86: 10 | E86: 6.00 | F86: 60.00 | H86: 60.00
A87: 81 | B87: 保安值班工作记录 | C87: 个 | D87: 95 | E87: 5.00 | F87: 475.00 | H87: 475.00
A88: 82 | B88: 宾客意见书 | C88: 个 | D88: 3500 | E88: 0.40 | F88: 1,400.00 | H88: 1,400.00
A89: 83 | B89: 职工调动函 | C89: 个 | D89: 110 | E89: 0.40 | F89: 44.00 | H89: 44.00
A90: 84 | B90: 宾客留言 | C90: 个 | D90: 290 | E90: 9.50 | F90: 2,755.00 | H90: 2,755.00
A91: 85 | B91: 名片夹 | C91: 个 | D91: 1 | E91: 24.00 | F91: 24.00 | H91: 24.00
A92: 86 | B92: 介绍信 | C92: 个 | D92: 4 | E92: 12.50 | F92: =D92*E92 -> 50.00 | H92: =F92 -> 50.00
A93: 87 | B93: 档案袋 | C93: 个 | D93: 19 | E93: 0.75 | F93: 14.25 | H93: 14.25
A94: 88 | B94: 销货日报表 | C94: 个 | D94: 10 | E94: 1.50 | F94: 15.00 | H94: 15.00
A95: 89 | B95: 找银袋 | C95: 个 | D95: 7840 | E95: 0.35 | F95: 2,744.00 | H95: 2,744.00
A96: 90 | B96: 中餐券 | C96: 个 | D96: 8 | E96: 5.50 | F96: 44.00 | H96: 44.00
A97: 91 | B97: 中餐券 | C97: 个 | D97: 400 | E97: 0.04 | F97: 16.00 | H97: 16.00
A98: 92 | B98: 职工餐券 | C98: 个 | D98: 45 | E98: 0.33 | F98: 14.85 | H98: 14.85
A99: 93 | B99: 早餐卷 | C99: 个 | D99: 145 | E99: 1.80 | F99: 261.00 | H99: 261.00
A100: 94 | B100: 消费券 | C100: 个 | D100: 487 | E100: 0.24 | F100: 116.88 | H100: 116.88
A101: 95 | B101: 美容消费券 | C101: 个 | D101: 2511 | E101: 0.22 | F101: 552.42 | H101: 552.42
A102: 96 | B102: 员工物品领用清单 | C102: 个 | D102: 50 | E102: 3.00 | F102: 150.00 | H102: 150.00
A103: 97 | B103: 客房红色小单 | C103: 个 | D103: 4000 | E103: 0.80 | F103: 3,200.00 | H103: 3,200.00
A104: 98 | B104: 传真纸 | C104: 个 | D104: 20 | E104: 11.00 | F104: 220.00 | H104: 220.00
A105: 99 | B105: 绿色饭店卡 | C105: 个 | D105: 1 | E105: 16.00 | F105: 16.00 | H105: 16.00
A106: 100 | B106: 电视节目表 | C106: 个 | D106: 320 | E106: 2.05 | F106: 656.00 | H106: 656.00
A107: 101 | B107: 竖牌 | C107: 个 | D107: 800 | E107: 0.80 | F107: 640.00 | H107: 640.00
A108: 102 | B108: 管理人员工作日志 | C108: 个 | D108: 29 | E108: 3.50 | F108: 101.50 | H108: 101.50
A109: 103 | B109: 行李牌 | C109: 个 | D109: 650 | E109: 0.40 | F109: 260.00 | H109: 260.00
A110: 104 | B110: 存货分类账（大） | C110: 个 | D110: 3 | E110: 6.50 | F110: 19.50 | H110: 19.50
A111: 105 | B111: 厨师烹饪凭证 | C111: 个 | D111: 94 | E111: 5.80 | F111: 545.20 | H111: 545.20
A112: 106 | B112: 16K存货分类账封面 | C112: 个 | D112: 3 | E112: 3.00 | F112: 9.00 | H112: 9.00
A113: 107 | B113: 241—2电脑打印纸 | C113: 个 | D113: 2 | E113: 45.00 | F113: 90.00 | H113: 90.00
A114: 108 | B114: A3彩色复印纸（红） | C114: 个 | D114: 10 | E114: 13.00 | F114: 130.00 | H114: 130.00
A115: 109 | B115: A3复印纸 | C115: 个 | D115: 4 | E115: 36.00 | F115: 144.00 | H115: 144.00
A116: 110 | B116: 娱乐营业日报表 | C116: 个 | D116: 100 | E116: 2.80 | F116: 280.00 | H116: 280.00
A117: 111 | B117: 16K复印纸 | C117: 个 | D117: 138 | E117: 25.00 | F117: 3,450.00 | H117: 3,450.00
A118: 112 | B118: 8K复印纸 | C118: 个 | D118: 3 | E118: 50.00 | F118: 150.00 | H118: 150.00
A119: 113 | B119: 传真纸 | C119: 个 | D119: 2 | E119: 10.50 | F119: 21.00 | H119: 21.00
A120: 114 | B120: 打码纸 | C120: 个 | D120: 1 | E120: 1.80 | F120: 1.80 | H120: 1.80
A121: 115 | B121: 团体会议用房单 | C121: 个 | D121: 150 | E121: 3.00 | F121: 450.00 | H121: 450.00
A122: 116 | B122: 红头文件纸 | C122: 个 | D122: 430 | E122: 0.20 | F122: 86.00 | H122: 86.00
A123: 117 | B123: 贵宾卡 | C123: 个 | D123: 3000 | E123: 0.90 | F123: 2,700.00 | H123: 2,700.00
A124: 118 | B124: 伍拾，贰拾消费券 | C124: 个 | D124: 81 | E124: 0.90 | F124: =D124*E124 -> 72.90 | H124: =F124 -> 72.90
A125: 119 | B125: 大便笺（红） | C125: 个 | D125: 94 | E125: 3.90 | F125: 366.60 | H125: 366.60
A126: 120 | B126: 大便笺（蓝）1 | C126: 个 | D126: 25 | E126: 5.50 | F126: 137.50 | H126: 137.50
A127: 121 | B127: 伍拾，贰拾消费券 | C127: 个 | D127: 1000 | E127: 0.50 | F127: 500.00 | H127: 500.00
A128: 122 | B128: 房租变更通知单 | C128: 个 | D128: 29 | E128: 8.00 | F128: 232.00 | H128: 232.00
A129: 123 | B129: 厨房水果每日汇总表 | C129: 个 | D129: 103 | E129: 4.00 | F129: 412.00 | H129: 412.00
A130: 124 | B130: 境外人员登记单 | C130: 个 | D130: 4 | E130: 6.00 | F130: 24.00 | H130: 24.00
A131: 125 | B131: 停车记录 | C131: 个 | D131: 63 | E131: 2.90 | F131: 182.70 | H131: 182.70
A132: 126 | B132: 停车记录凭证 | C132: 个 | D132: 177 | E132: 13.00 | F132: 2,301.00 | H132: 2,301.00
A133: 127 | B133: 员工离职单 | C133: 个 | D133: 39 | E133: 3.50 | F133: 136.50 | H133: 136.50
A134: 128 | B134: 泵房安全检查记录表 | C134: 个 | D134: 33 | E134: 4.00 | F134: 132.00 | H134: 132.00
A135: 129 | B135: 小便笺（红） | C135: 个 | D135: 305 | E135: 1.90 | F135: 579.50 | H135: 579.50
A136: 130 | B136: 小便笺（蓝）1 | C136: 个 | D136: 56 | E136: 3.50 | F136: 196.00 | H136: 196.00
A137: 131 | B137: 16K大便笺 | C137: 个 | D137: 40 | E137: 7.50 | F137: 300.00 | H137: 300.00
A138: 132 | B138: 32K中便笺 | C138: 个 | D138: 11200 | E138: 0.06 | F138: 672.00 | H138: 672.00
A139: 133 | B139: 64K小便笺 | C139: 个 | D139: 45 | E139: 4.50 | F139: 202.50 | H139: 202.50
A140: 134 | B140: 旅客行李寄存领取单 | C140: 个 | D140: 1 | E140: 3.00 | F140: 3.00 | H140: 3.00
A141: 135 | B141: 筷套 | C141: 个 | D141: 8100 | E141: 0.10 | F141: 769.50 | H141: 769.50
A142: 136 | B142: 消防疏通图 | C142: 个 | D142: 53 | E142: 4.00 | F142: 212.00 | H142: 212.00
A143: 137 | B143: 地图 | C143: 个 | D143: 29 | E143: 0.90 | F143: 26.10 | H143: 26.10
A144: 138 | B144: 员工手册 | C144: 个 | D144: 27 | E144: 2.30 | F144: =D144*E144 -> 62.10 | H144: 62.10
A145: 139 | B145: 订房确认书 | C145: 个 | D145: 7 | E145: 6.00 | F145: 42.00 | H145: 42.00
A146: 140 | B146: 订房确认书（三联） | C146: 个 | D146: 100 | E146: 6.50 | F146: 650.00 | H146: 650.00
A147: 141 | B147: 宾客账单 | C147: 个 | D147: 30 | E147: 3.70 | F147: 111.00 | H147: 111.00
A148: 142 | B148: 25K存货分类封面 | C148: 个 | D148: 1 | E148: 3.80 | F148: 3.80 | H148: 3.80
A149: 143 | B149: 物品报损通知单 | C149: 个 | D149: 48 | E149: 1.70 | F149: 81.60 | H149: 81.60
A150: 144 | B150: 报损表 | C150: 个 | D150: 43 | E150: 8.00 | F150: 344.00 | H150: 344.00
A151: 145 | B151: 预订早餐单 | C151: 个 | D151: 297 | E151: 2.00 | F151: 594.00 | H151: 594.00
A152: 146 | B152: 借据 | C152: 个 | D152: 2 | E152: 0.80 | F152: 1.60 | H152: 1.60
A153: 147 | B153: 客房部单（红色） | C153: 个 | D153: 600 | E153: 0.10 | F153: 60.00 | H153: 60.00
A154: 148 | B154: 无烟提示卡 | C154: 个 | D154: 5700 | E154: 0.30 | F154: 1,710.00 | H154: 1,710.00
A155: 149 | B155: 招工登记表 | C155: 个 | D155: 74 | E155: 13.00 | F155: 962.00 | H155: 962.00
A156: 150 | B156: 航空信封 | C156: 个 | D156: 3844 | E156: 0.23 | F156: 884.12 | H156: 884.12
A157: 151 | B157: 能耗日报表（三联） | C157: 个 | D157: 10 | E157: 8.00 | F157: 80.00 | H157: 80.00
A158: 152 | B158: 处方笺 | C158: 个 | D158: 40 | E158: 2.00 | F158: 80.00 | H158: 80.00
A159: 153 | B159: 绿色饭店卡 | C159: 个 | D159: 10 | E159: 15.00 | F159: 150.00 | H159: 150.00
A160: 154 | B160: 工资表 | C160: 个 | D160: 5 | E160: 2.50 | F160: 12.50 | H160: 12.50
A161: 155 | B161: 营销部每日提成报表 | C161: 个 | D161: 25 | E161: 8.00 | F161: 200.00 | H161: 200.00
A162: 156 | B162: 工程部巡查表 | C162: 个 | D162: 59 | E162: 13.00 | F162: 767.00 | H162: 767.00
A163: 157 | B163: 接待（收银员）提成报表 | C163: 个 | D163: 55 | E163: 8.00 | F163: 440.00 | H163: 440.00
A164: 158 | B164: 旅客行李登记本 | C164: 个 | D164: 65 | E164: 8.90 | F164: 578.50 | H164: 578.50
A165: 159 | B165: 水电油日报表 | C165: 个 | D165: 34 | E165: 3.50 | F165: 119.00 | H165: 119.00
A166: 160 | B166: 存货分类帐帐页（小） | C166: 个 | D166: 4 | E166: 3.50 | F166: 14.00 | H166: 14.00
A167: 161 | B167: 客房员工计件报表 | C167: 个 | D167: 35 | E167: 8.00 | F167: 280.00 | H167: 280.00
A168: 162 | B168: 考勤卡 | C168: 个 | D168: 2 | E168: 7.50 | F168: 15.00 | H168: 15.00
A173: 本 页 小 计 | F173: =SUM(F7:F172) -> 108,916.01 | G173: =SUM(G7:G172) -> 0.00 | H173: =F173+G173 -> 108,916.01
A174: 合 计 | C174: ** | E174: ** | F174: =F173 -> 108,916.01 | G174: 0.00 | H174: 108,916.01

Sheet 3.4.1.5库存商品---工程物资明细 (hidden)
B1: 存货----库存商品清查明细表
A3: =存货清查汇总表!A3 -> 清查基准日：2018年12月31日
A4: =存货—开发产品明细表!A4 -> 资产占有单位名称：杭州中惠医疗器械有限公司 | I4: 金额单位：人民币元
A5: 序号 | B5: 名 称 | C5: 单位 | D5: 账 面 值 | G5: 调整数 | H5: 清查数 | I5: 备注
D6: 数量 | E6: 单价 | F6: 金额
A7: 1 | B7: 烟感 | C7: 个 | D7: 10 | E7: 480.00 | F7: =D7*E7 -> 4,800.00 | H7: =F7 -> 4,800.00
A8: 2 | B8: 烟香 | C8: 个 | D8: 2 | E8: 60.00 | F8: 120.00 | H8: 120.00
A9: 3 | B9: 消防水带 | C9: 个 | D9: 40 | E9: 17.00 | F9: 680.00 | H9: 680.00
A10: 4 | B10: 节扣 | C10: 个 | D10: 2 | E10: 50.00 | F10: 100.00 | H10: 100.00
A11: 5 | B11: 消防栓铜内接 | C11: 个 | D11: 1 | E11: 80.00 | F11: 80.00 | H11: 80.00
A12: 6 | B12: G25彩色金属卤化物灯 | C12: 个 | D12: 3 | E12: 38.00 | F12: 114.00 | H12: 114.00
A13: 7 | B13: 画灯灯泡 | C13: 个 | D13: 18 | E13: 6.00 | F13: 108.00 | H13: 108.00
A14: 8 | B14: 客房灯箱用灯泡 | C14: 个 | D14: 16 | E14: 6.00 | F14: 96.00 | H14: 96.00
A15: 9 | B15: 台灯灯泡 | C15: 个 | D15: 9 | E15: 15.00 | F15: 135.00 | H15: 135.00
A16: 10 | B16: 台球房吊灯 | C16: 个 | D16: 1 | E16: 268.00 | F16: 268.00 | H16: 268.00
A17: 11 | B17: 壁灯灯罩 | C17: 个 | D17: 35 | E17: 25.00 | F17: 875.00 | H17: 875.00
A18: 12 | B18: 台灯灯罩 | C18: 个 | D18: 29 | E18: 35.00 | F18: 1,015.00 | H18: 1,015.00
A19: 13 | B19: 太平元灯罩 | C19: 个 | D19: 2 | E19: 12.00 | F19: 24.00 | H19: 24.00
A20: 14 | B20: 配电箱 | C20: 个 | D20: 2 | E20: 16.50 | F20: 33.00 | H20: 33.00
A21: 15 | B21: 美容美发用塑料工具箱 | C21: 个 | D21: 1 | E21: 38.00 | F21: 38.00 | H21: 38.00
A30: 本 页 小 计 | F30: =SUM(F7:F29) -> 8,486.00 | G30: =SUM(G7:G29) -> 0.00 | H30: =SUM(H7:H29) -> 8,486.00
A31: 合 计 | C31: ** | E31: ** | F31: =F30 -> 8,486.00 | G31: 0.00 | H31: 8,486.00

Sheet 3.4.1.6库存商品---美容美发明细 (hidden)
B1: 存货----库存商品清查明细表
A3: =存货清查汇总表!A3 -> 清查基准日：2018年12月31日
A4: =存货—开发产品明细表!A4 -> 资产占有单位名称：杭州中惠医疗器械有限公司 | I4: 金额单位：人民币元
A5: 序号 | B5: 名 称 | C5: 单位 | D5: 账 面 值 | G5: 调整数 | H5: 清查数 | I5: 备注
D6: 数量 | E6: 单价 | F6: 金额
A7: 1 | B7: 纯米洗发水 | C7: 个 | D7: 4 | E7: 98.00 | F7: =D7*E7 -> 392.00 | H7: =F7 -> 392.00
A8: 2 | B8: 纯米护发素 | C8: 个 | D8: 2 | E8: 98.00 | F8: =D8*E8 -> 196.00 | H8: =F8 -> 196.00
A19: 本 页 小 计 | F19: =SUM(F7:F18) -> 588.00 | G19: =SUM(G7:G18) -> 0.00 | H19: =SUM(H7:H18) -> 588.00
A20: 合 计 | C20: ** | E20: ** | F20: =F19 -> 588.00 | G20: 0.00 | H20: 588.00

Sheet 3.4.1.7库存商品---日用品明细 (hidden)
B1: 存货----库存商品清查明细表
A3: =存货清查汇总表!A3 -> 清查基准日：2018年12月31日
A4: =存货—开发产品明细表!A4 -> 资产占有单位名称：杭州中惠医疗器械有限公司 | I4: 金额单位：人民币元
A5: 序号 | B5: 名 称 | C5: 单位 | D5: 账 面 值 | G5: 调整数 | H5: 清查数 | I5: 备注
D6: 数量 | E6: 单价 | F6: 金额
A7: 1 | B7: 音响 | C7: 个 | D7: 1 | E7: 800.00 | F7: =D7*E7 -> 800.00 | H7: =F7 -> 800.00
A8: 2 | B8: 3#国旗 | C8: 个 | D8: 1 | E8: 50.00 | F8: 50.00 | H8: 50.00
A9: 3 | B9: 镜框 | C9: 个 | D9: 3 | E9: 11.00 | F9: 33.00 | H9: 33.00
A10: 4 | B10: 扑克牌 | C10: 个 | D10: 10 | E10: 1.10 | F10: 11.00 | H10: 11.00
A11: 5 | B11: 旧被套 | C11: 个 | D11: 30 | E11: 5.00 | F11: 150.00 | H11: 150.00
A12: 6 | B12: 白手套 | C12: 个 | D12: 47 | E12: 1.50 | F12: 70.50 | H12: 70.50
A13: 7 | B13: 白手套 | C13: 个 | D13: 2 | E13: 1.80 | F13: 3.60 | H13: 3.60
A14: 8 | B14: 滑石粉 | C14: 个 | D14: 4 | E14: 8.00 | F14: 32.00 | H14: 32.00
A15: 9 | B15: 乒乓球 | C15: 个 | D15: 2 | E15: 10.00 | F15: 20.00 | H15: 20.00
A16: 10 | B16: 拉链袋 | C16: 个 | D16: 5 | E16: 1.20 | F16: 6.00 | H16: 6.00
A17: 11 | B17: 2#碱性电池 | C17: 个 | D17: 32 | E17: 2.00 | F17: 64.00 | H17: 64.00
A18: 12 | B18: 空白磁带 | C18: 个 | D18: 13 | E18: 5.00 | F18: 65.00 | H18: 65.00
A19: 13 | B19: A盘 | C19: 个 | D19: 5 | E19: 5.00 | F19: 25.00 | H19: 25.00
A49: 本 页 小 计 | F49: =SUM(F7:F48) -> 1,330.10 | G49: =SUM(G7:G48) -> 0.00 | H49: =SUM(H7:H48) -> 1,330.10
A50: 合 计 | C50: ** | E50: ** | F50: =F49 -> 1,330.10 | G50: 0.00 | H50: 1,330.10

Sheet 3.4.1.8库存商品---服装明细 (hidden)
B1: 存货----库存商品清查明细表
A3: =存货清查汇总表!A3 -> 清查基准日：2018年12月31日
A4: =存货—开发产品明细表!A4 -> 资产占有单位名称：杭州中惠医疗器械有限公司 | I4: 金额单位：人民币元
A5: 序号 | B5: 名 称 | C5: 单位 | D5: 账 面 值 | G5: 调整数 | H5: 清查数 | I5: 备注
D6: 数量 | E6: 单价 | F6: 金额
A7: 1 | B7: 男款西装（套） | C7: 件 | D7: 5 | E7: 450.00 | F7: =D7*E7 -> 2,250.00 | H7: =F7 -> 2,250.00
A8: 2 | B8: 保安冬装（长袖+肩章） | C8: 件 | D8: 18 | E8: 150.00 | F8: 2,700.00 | H8: 2,700.00
A9: 3 | B9: 女款西装（衣+裙） | C9: 件 | D9: 13 | E9: 260.00 | F9: 3,380.00 | H9: 3,380.00
A10: 4 | B10: 男款西装（套） | C10: 件 | D10: 12 | E10: 300.00 | F10: 3,600.00 | H10: 3,600.00
A11: 5 | B11: 女款长袖衬衣 | C11: 件 | D11: 25 | E11: 50.00 | F11: 1,250.00 | H11: 1,250.00
A12: 6 | B12: 女款西装（衣+裙） | C12: 件 | D12: 15 | E12: 420.00 | F12: 6,300.00 | H12: 6,300.00
A13: 7 | B13: 男式衬衫 | C13: 件 | D13: 1 | E13: 22.00 | F13: 22.00 | H13: 22.00
A14: 8 | B14: 大堂副理裙 | C14: 件 | D14: 2 | E14: 80.00 | F14: 160.00 | H14: 160.00
A15: 9 | B15: 足浴裤 | C15: 件 | D15: 6 | E15: 16.00 | F15: 96.00 | H15: 96.00
A16: 10 | B16: 短袖工程服上衣 | C16: 件 | D16: 4 | E16: 49.40 | F16: 197.60 | H16: 197.60
A17: 11 | B17: 餐饮部围裙 | C17: 件 | D17: 26 | E17: 6.00 | F17: 156.00 | H17: 156.00
A18: 12 | B18: PA工作服 | C18: 件 | D18: 2 | E18: 90.00 | F18: 180.00 | H18: 180.00
A19: 13 | B19: 领带 | C19: 件 | D19: 4 | E19: 10.00 | F19: 40.00 | H19: 40.00
A20: 14 | B20: 女式皮鞋 | C20: 件 | D20: 3 | E20: 65.00 | F20: 195.00 | H20: 195.00
A21: 15 | B21: 头花 | C21: 件 | D21: 24 | E21: 2.50 | F21: 60.00 | H21: 60.00
A22: 16 | B22: 保龄球袜 | C22: 件 | D22: 500 | E22: 0.18 | F22: 90.00 | H22: 90.00
A23: 17 | B23: 男皮鞋 | C23: 件 | D23: 1 | E23: 75.00 | F23: 75.00 | H23: 75.00
A24: 18 | B24: 保安服 | C24: 件 | D24: 6 | E24: 170.00 | F24: 1,020.00 | H24: 1,020.00
A25: 19 | B25: 窗帘（花） | C25: 件 | D25: 37 | E25: 235.00 | F25: 8,695.00 | H25: 8,695.00
A26: 20 | B26: 窗帘（素） | C26: 件 | D26: 10 | E26: 180.00 | F26: 1,800.00 | H26: 1,800.00
A27: 21 | B27: 布鞋 | C27: 件 | D27: 10 | E27: 8.85 | F27: 88.52 | H27: 88.52
A28: 22 | B28: 绿衬衫（新） | C28: 件 | D28: 4 | E28: 18.00 | F28: 72.00 | H28: 72.00
A29: 23 | B29: 黑裙（新） | C29: 件 | D29: 3 | E29: 17.00 | F29: 51.00 | H29: 51.00
A30: 24 | B30: 保安衬衫（新） | C30: 件 | D30: 14 | E30: 19.00 | F30: 266.00 | H30: 266.00
A31: 25 | B31: 藏青裤（新） | C31: 件 | D31: 10 | E31: 26.00 | F31: 260.00 | H31: 260.00
A32: 26 | B32: 布鞋 | C32: 件 | D32: 2 | E32: 15.00 | F32: 30.00 | H32: 30.00
A39: 本 页 小 计 | F39: =SUM(F7:F38) -> 33,034.12 | G39: =SUM(G7:G38) -> 0.00 | H39: =SUM(H7:H38) -> 33,034.12
A40: 合 计 | C40: ** | E40: ** | F40: =F39 -> 33,034.12 | G40: 0.00 | H40: 33,034.12

Sheet 3.4.1.9库存商品---食品明细 (hidden)
B1: 存货----库存商品清查明细表
A3: =存货清查汇总表!A3 -> 清查基准日：2018年12月31日
A4: =存货—开发产品明细表!A4 -> 资产占有单位名称：杭州中惠医疗器械有限公司 | I4: 金额单位：人民币元
A5: 序号 | B5: 名 称 | C5: 单位 | D5: 账 面 值 | G5: 调整数 | H5: 清查数 | I5: 备注
D6: 数量 | E6: 单价 | F6: 金额
A7: 1 | B7: 38小糊涂仙 半斤 | C7: 瓶 | D7: 7 | E7: 40.00 | F7: =D7*E7 -> 280.00 | H7: =F7 -> 280.00
A8: 2 | B8: 38小糊涂仙 1斤 | C8: 瓶 | D8: 2 | E8: 75.00 | F8: 150.00 | H8: 150.00
A9: 3 | B9: 29五粮液 | C9: 瓶 | D9: 2 | E9: 168.00 | F9: 336.00 | H9: 336.00
A10: 4 | B10: 39五粮液 | C10: 瓶 | D10: 9 | E10: 280.00 | F10: 2,520.00 | H10: 2,520.00
A11: 5 | B11: 53五粮液 | C11: 瓶 | D11: 5 | E11: 548.00 | F11: 2,740.00 | H11: 2,740.00
A12: 6 | B12: 38茅台 | C12: 瓶 | D12: 3 | E12: 235.00 | F12: 705.00 | H12: 705.00
A13: 7 | B13: 38度小湖涂仙1斤 | C13: 瓶 | D13: 12 | E13: 75.00 | F13: 900.00 | H13: 900.00
A14: 8 | B14: 水井坊 | C14: 瓶 | D14: 1 | E14: 420.00 | F14: 420.00 | H14: 420.00
A15: 9 | B15: 精品伊力36度半斤 | C15: 瓶 | D15: 9 | E15: 35.00 | F15: 315.00 | H15: 315.00
A16: 10 | B16: 伊力特五年陈 | C16: 瓶 | D16: 2 | E16: 28.00 | F16: 56.00 | H16: 56.00
A17: 11 | B17: 38度小酒仙 | C17: 瓶 | D17: 7 | E17: 168.00 | F17: 1,176.00 | H17: 1,176.00
A18: 12 | B18: 38度稻花香半斤 | C18: 瓶 | D18: 2 | E18: 16.00 | F18: 32.00 | H18: 32.00
A19: 13 | B19: 芝华威士忌 | C19: 瓶 | D19: 1 | E19: 208.00 | F19: 208.00 | H19: 208.00
A20: 14 | B20: 新天干红 | C20: 瓶 | D20: 4 | E20: 38.00 | F20: 152.00 | H20: 152.00
A21: 15 | B21: 米 | C21: 袋 | D21: 5 | E21: 72.00 | F21: 360.00 | H21: 360.00
A22: 16 | B22: 耗油 | C22: 瓶 | D22: 4 | E22: 7.92 | F22: 31.68 | H22: 31.68
A23: 17 | B23: 蒸鱼豉油 | C23: 瓶 | D23: 4 | E23: 24.00 | F23: 96.00 | H23: 96.00
A24: 18 | B24: 料酒 | C24: 瓶 | D24: 31 | E24: 1.75 | F24: 54.25 | H24: 54.25
A25: 19 | B25: 生抽 | C25: 瓶 | D25: 3 | E25: 15.83 | F25: 47.50 | H25: 47.50
A26: 20 | B26: 老抽 | C26: 瓶 | D26: 6 | E26: 15.83 | F26: 94.98 | H26: 94.98
A27: 21 | B27: 豆腐乳 | C27: 瓶 | D27: 17 | E27: 8.50 | F27: 144.50 | H27: 144.50
A28: 22 | B28: 老干妈 | C28: 瓶 | D28: 13 | E28: 8.13 | F28: 105.63 | H28: 105.63
A29: 23 | B29: 大麻油 | C29: 瓶 | D29: 12 | E29: 28.50 | F29: 342.00 | H29: 342.00
A35: 本 页 小 计 | F35: =SUM(F7:F34)+0.01 -> 11,266.54 | G35: =SUM(G7:G34) -> 0.00 | H35: =F35+G35 -> 11,266.54
A36: 合 计 | C36: ** | E36: ** | F36: =F35 -> 11,266.54 | G36: 0.00 | H36: 11,266.54

Sheet 其他流动资产 (hidden)
A1: 其他流动资产清查汇总表
A3: 清查基准日：2018年12月31日
A4: ='3.4.1.2低值易耗品'!A3 -> 资产占有单位名称：杭州中惠医疗器械有限公司 | K4: 金额单位：人民币元
A5: 序号 | B5: 项目 | C5: 发生日期 | D5: 原始发生额 | E5: 摊销月数 | F5: 未摊月数 | G5: 月摊金额 | H5: 附明细表页数 | I5: 账面值 | J5: 清查调整数 | K5: 清查值 | L5: 备注
A7: 1 | B7: 待报废资产 | H7: 19 | K7: =I7+J7 -> 0.00
A17: 本 页 小 计 | D17: =SUM(D7:D16) -> 0.00 | I17: =SUM(I7:I16) -> 0.00 | J17: =SUM(J7:J16) -> 0.00 | K17: =SUM(K7:K16) -> 0.00
A18: 合 计 | C18: ** | D18: =D17 -> 0.00 | E18: ** | F18: ** | G18: ** | I18: =I17 -> 0.00 | J18: =J17 -> 0.00 | K18: =K17 -> 0.00

Sheet 长期待摊费用 (hidden)
A1: 长期待摊费用清查明细表
A3: 清查基准日：2018年12月31日
A4: 资产占有单位名称：台州市农副产品集配中心有限公司 | J4: 金额单位：人民币元
A5: 序号 | B5: 费 用 内 容 | C5: 发生日期 | D5: 原始发生额 | E5: 摊销月数 | F5: 未摊月数 | G5: 月摊金额 | H5: 账面值 | I5: 清查调整数 | J5: 清查值 | K5: 备注
A7: 1 | G7: =D7/E7 ->  | I7: =ROUND(G7*F7-H7,2) ->  | J7: =H7+I7 -> 
A8: =A7+1 -> 2 | G8: =D8/E8 ->  | I8: =ROUND(G8*F8-H8,2) ->  | J8: =H8+I8 -> 
A9: 3
A10: 4
A11: 5
A12: 6
A13: 7
A14: 8
A15: 9
A16: 10
A17: 11
A18: 12
A19: 13
A20: 14
A21: 15 | K21: 尚未竣工交付使用
A22: 16
A23: 17 | G23: =D23/E23 -> 
A24: 18
A25: 19
A26: 20
A27: 21
A28: 22 | J28: =H28+I28 -> 
A29: 23
A30: 24
A31: 25
A32: 26
A33: 27
A34: 28 | J34: =H34+I34 -> 
A35: 本 页 小 计 | D35: =SUM(D7:D34) -> 0.00 | H35: =SUM(H7:H34) -> 0.00 | I35: =SUM(I7:I34) ->  | J35: =SUM(J7:J34) -> 
A36: 合 计 | C36: ** | D36: =D35 -> 0.00 | E36: ** | F36: ** | G36: ** | H36: =H35 -> 0.00 | I36: =I35 ->  | J36: =J35 -> 

Sheet 长期股权投资明细表
A1: 长期股权投资清查明细表
A3: =其他流动资产!A3 -> 清查基准日：2018年12月31日
A4: ='3.4.1.1库存商品'!A3 -> 资产占有单位名称：杭州中惠医疗器械有限公司 | H4: 金额单位：人民币元
A5: 序号 | B5: 被投资单位名称 | C5: 投资日期 | D5: 原始投资(万元) | E5: 投资比例% | F5: 账面值 | G5: 清查调整数 | H5: 清查值 | I5: 备注
A7: 1 | B7: 杭州欣仁祥药房有限公司 | C7: 2014-1-17 | D7: 325,000.00 | E7: 65.00% | F7: 325,000.00 | H7: =F7+G7 -> 325,000.00
A8: 2 | H8: =F8+G8 -> 0.00 | K8: =32.5/50 -> 0.65
A9: 3 | H9: =F9+G9 -> 0.00
A10: 4 | H10: =F10+G10 -> 0.00
A16: 本 页 小 计 | D16: =SUM(D7:D10) -> 325,000.00 | F16: =SUM(F7:F15) -> 325,000.00 | G16: =SUM(G7:G15) -> 0.00 | H16: =SUM(H7:H15) -> 325,000.00
A17: 合 计 | D17: =D16 -> 325,000.00 | F17: =F16 -> 325,000.00 | G17: =G16 -> 0.00 | H17: =H16 -> 325,000.00

Sheet 其他流动资产-待报废资产 (hidden)
B1: 其他流动资产-待报废资产清查明细表
A2: =存货清查汇总表!A3 -> 清查基准日：2018年12月31日
A3: =存货—开发产品明细表!A4 -> 资产占有单位名称：杭州中惠医疗器械有限公司 | I3: 金额单位：人民币元
A4: 序号 | B4: 名 称 | C4: 单位 | D4: 数量 | E4: 单价 | F4: 账面数 | G4: 调整数 | H4: 清查数 | I4: 备注
A6: 1 | H6: =F6+G6 -> 0.00
A7: 2 | H7: 0.00
A8: 3 | H8: 0.00
A9: 4 | H9: 0.00
A10: 5 | H10: 0.00
A11: 6 | H11: 0.00
A12: 7 | H12: 0.00
A13: 8 | H13: 0.00
A14: 9 | H14: 0.00
A15: 10 | H15: 0.00
A16: 11 | H16: 0.00
A17: 12 | H17: 0.00
A18: 13 | H18: 0.00
A19: 14 | H19: 0.00
A20: 15 | H20: 0.00
A21: 16 | H21: 0.00
A22: 17 | H22: 0.00
A23: 18 | H23: 0.00
A24: 19 | H24: 0.00
A25: 20 | H25: 0.00
A26: 21 | H26: 0.00
A27: 22 | H27: 0.00
A28: 23 | H28: 0.00
A29: 24 | H29: 0.00
A30: 25 | H30: 0.00
A31: 26 | H31: 0.00
A32: 27 | H32: 0.00
A33: 28 | H33: 0.00
A34: 29 | H34: 0.00
A35: 30 | H35: 0.00
A36: 31 | H36: 0.00
A37: 32 | H37: 0.00
A38: 33 | H38: 0.00
A39: 34 | H39: 0.00
A40: 35 | H40: 0.00
A41: 36 | H41: 0.00
A42: 37 | H42: 0.00
A43: 38 | H43: 0.00
A44: 39 | H44: 0.00
A45: 40 | H45: 0.00
A46: 41 | H46: 0.00
A47: 42 | H47: 0.00
A48: 43 | H48: 0.00
A49: 44 | H49: 0.00
A50: 45 | H50: 0.00
A51: 46 | H51: 0.00
A52: 47 | H52: 0.00
A53: 48 | H53: 0.00
A54: 49 | H54: 0.00
A55: 50 | H55: 0.00
A56: 51 | H56: 0.00
A57: 52 | H57: 0.00
A58: 53 | H58: 0.00
A59: 54 | H59: 0.00
A60: 55 | H60: 0.00
A61: 56 | H61: 0.00
A62: 57 | H62: 0.00
A63: 58 | H63: 0.00
A64: 59 | H64: 0.00
A65: 60 | H65: 0.00
A66: 61 | H66: 0.00
A67: 62 | H67: 0.00
A68: 63 | H68: 0.00
A69: 64 | H69: 0.00
A70: 65 | H70: =F70+G70 -> 0.00
A71: 66 | H71: 0.00
A72: 67 | H72: 0.00
A73: 68 | H73: 0.00
A74: 69 | H74: 0.00
A75: 70 | H75: 0.00
A76: 71 | H76: 0.00
A77: 72 | H77: 0.00
A78: 73 | H78: 0.00
A79: 74 | H79: 0.00
A80: 75 | H80: 0.00
A81: 76 | H81: 0.00
A82: 77 | H82: 0.00
A83: 78 | H83: 0.00
A84: 79 | H84: 0.00
A85: 80 | H85: 0.00
A86: 81 | H86: 0.00
A87: 82 | H87: 0.00
A88: 83 | H88: 0.00
A89: 84 | H89: 0.00
A90: 85 | H90: 0.00
A91: 86 | H91: 0.00
A92: 87 | H92: 0.00
A93: 88 | H93: 0.00
A94: 89 | H94: 0.00
A95: 90 | H95: 0.00
A96: 91 | H96: 0.00
A97: 92 | H97: 0.00
A98: 93 | H98: 0.00
A99: 94 | H99: 0.00
A100: 95 | H100: 0.00
A101: 96 | H101: 0.00
A102: 97 | H102: 0.00
A103: 98 | H103: 0.00
A104: 99 | H104: 0.00
A105: 100 | H105: 0.00
A106: 101 | H106: 0.00
A107: 102 | H107: 0.00
A108: 103 | H108: 0.00
A109: 104 | H109: 0.00
A110: 105 | H110: 0.00
A111: 106 | H111: 0.00
A112: 107 | H112: 0.00
A113: 108 | H113: 0.00
A114: 109 | H114: 0.00
A115: 110 | H115: 0.00
A116: 111 | H116: 0.00
A117: 112 | H117: 0.00
A118: 113 | H118: 0.00
A119: 114 | H119: 0.00
A120: 115 | H120: 0.00
A121: 116 | H121: 0.00
A122: 117 | H122: 0.00
A123: 118 | H123: 0.00
A124: 119 | H124: 0.00
A125: 120 | H125: 0.00
A126: 121 | H126: 0.00
A127: 122 | H127: 0.00
A128: 123 | H128: 0.00
A129: 124 | H129: 0.00
A130: 125 | H130: 0.00
A131: 126 | H131: 0.00
A132: 127 | H132: 0.00
A133: 128 | H133: 0.00
A134: 129 | H134: =F134+G134 -> 0.00
A135: 130 | H135: 0.00
A136: 131 | H136: 0.00
A137: 132 | H137: 0.00
A138: 133 | H138: 0.00
A139: 134 | H139: 0.00
A140: 135 | H140: 0.00
A141: 136 | H141: 0.00
A142: 137 | H142: 0.00
A143: 138 | H143: 0.00
A144: 139 | H144: 0.00
A145: 140 | H145: 0.00
A146: 141 | H146: 0.00
A147: 142 | H147: 0.00
A148: 143 | H148: 0.00
A149: 144 | H149: 0.00
A150: 145 | H150: 0.00
A151: 146 | H151: 0.00
A152: 147 | H152: 0.00
A153: 148 | H153: 0.00
A154: 149 | H154: 0.00
A155: 150 | H155: 0.00
A156: 151 | H156: 0.00
A157: 152 | H157: 0.00
A158: 153 | H158: 0.00
A159: 154 | H159: 0.00
A160: 155 | H160: 0.00
A161: 156 | H161: 0.00
A162: 157 | H162: 0.00
A163: 158 | H163: 0.00
A164: 159 | H164: 0.00
A165: 160 | H165: 0.00
A166: 161 | H166: 0.00
A167: 162 | H167: 0.00
A168: 163 | H168: 0.00
A169: 164 | H169: 0.00
A170: 165 | H170: 0.00
A171: 166 | H171: 0.00
A172: 167 | H172: 0.00
A173: 168 | H173: 0.00
A174: 169 | H174: 0.00
A175: 170 | H175: 0.00
A176: 171 | H176: 0.00
A177: 172 | H177: 0.00
A178: 173 | H178: 0.00
A179: 174 | H179: 0.00
A180: 175 | H180: 0.00
A181: 176 | H181: 0.00
A182: 177 | H182: 0.00
A183: 178 | H183: 0.00
A184: 179 | H184: 0.00
A185: 180 | H185: 0.00
A186: 181 | H186: 0.00
A187: 182 | H187: 0.00
A188: 183 | H188: 0.00
A189: 184 | H189: 0.00
A190: 185 | H190: 0.00
A191: 186 | H191: 0.00
A192: 187 | H192: 0.00
A193: 188 | H193: 0.00
A194: 189 | H194: 0.00
A195: 190 | H195: 0.00
A196: 191 | H196: 0.00
A197: 192 | H197: 0.00
A198: 193 | H198: =F198+G198 -> 0.00
A199: 194 | H199: 0.00
A200: 195 | H200: 0.00
A201: 196 | H201: 0.00
... 165 more rows

Sheet 固定资产清查汇总表
A1: 固定资产清查汇总表
A3: 清查基准日：2018年12月31日
A4: =存货清查汇总表!A4 -> 资产占有单位名称：杭州中惠医疗器械有限公司 | I4: 金额单位：人民币元
A5: 序号 | B5: 项 目 | C5: 附明细表页数 | D5: 账面值 | F5: 调整数 | H5: 清查值
D6: 原值 | E6: 净值 | F6: 原值 | G6: 净值 | H6: 原值 | I6: 净值 | L6: =H7-I7 -> 113239.35
B7: 一、机器设备小计 | D7: =SUM(D8:D11) -> 130,851.61 | E7: =SUM(E8:E11) -> 17,612.26 | F7: 0 | G7: 0 | H7: =D7+F7 -> 130,851.61 | I7: =E7+G7 -> 17,612.26 | K7: =H7-I7 -> 113239.35
A8: 5-1-1 | B8: 电子设备 | C8: 2 | D8: =电子设备清查明细表!F33 -> 130,851.61 | E8: =电子设备清查明细表!G33 -> 17,612.26 | F8: =电子设备清查明细表!H33 -> 0 | G8: =电子设备清查明细表!I33 -> 0 | H8: =D8+F8 -> 130,851.61 | I8: 17,612.26
A9: 5-1-2 | B9: 运输设备 | D9: =运输设备清查明细表!H25 -> 0 | E9: =运输设备清查明细表!I25 -> 0 | F9: =运输设备清查明细表!J25 -> 0 | G9: =运输设备清查明细表!K25 -> 0 | H9: 0 | I9: 0
A10: 5-1-3 | B10: 办公家具 | D10: ='办公家具清查明细表 '!F74 -> 0 | E10: ='办公家具清查明细表 '!G74 -> 0 | F10: ='办公家具清查明细表 '!H74 -> 0 | G10: ='办公家具清查明细表 '!I74 -> 0 | H10: 0 | I10: 0
A11: 5-1-4 | B11: 其他设备 | D11: ='其他设备清查明细表 '!F68 -> 0 | E11: ='其他设备清查明细表 '!G68 -> 0 | F11: ='其他设备清查明细表 '!H68 -> 0 | G11: ='其他设备清查明细表 '!I68 -> 0 | H11: 0 | I11: 0
B12: 二、房屋建筑物小计 | D12: =SUM(D13:D15) -> 0 | E12: =SUM(E13:E15) -> 0 | F12: =SUM(F13:F15) -> 0 | G12: =SUM(G13:G15) -> 0 | H12: 0 | I12: 0
A13: 5-2-1 | B13: 房屋建筑物 | D13: =房屋建筑物!L18 -> 0 | E13: =房屋建筑物!M18 -> 0 | F13: =房屋建筑物!N18 -> 0 | G13: =房屋建筑物!O18 -> 0 | H13: 0 | I13: 0
A14: 5-2-2 | B14: 构筑物
A15: 5-2-3 | B15: 装饰工程
B16: 三、在建工程小计
A17: 5-3-1 | B17: 土建工程
A18: 5-3-2 | B18: 设备安装工程
A19: 5-3-3 | B19: 工程物资
A20: 5-4 | B20: 四、固定资产清理
A21: 5-5 | B21: 五、待处理固定资产损失
A22: 合 计 | C22: ** | D22: =D16+D7+D12 -> 130,851.61 | E22: 17,612.26 | F22: 0 | G22: 0 | H22: 130,851.61 | I22: 17,612.26

Sheet 电子设备清查明细表
A1: 固定资产----电子设备清查明细表
A3: =固定资产清查汇总表!A3 -> 清查基准日：2018年12月31日
A4: =固定资产清查汇总表!A4 -> 资产占有单位名称：杭州中惠医疗器械有限公司 | J4: 金额单位：人民币元
A5: 序号 | B5: 固定资产名称 | C5: 单位 | D5: 数量 | E5: 启用 日期 | F5: 账 面 价 值 | H5: 清查调整数 | J5: 清查数
C6: 量 | F6: 原值 | G6: 净值 | H6: 原值 | I6: 净值 | J6: 原值 | K6: 净值
A7: 1 | B7: 货架 | C7: 个 | D7: 1 | E7: 2011-10-01 | F7: 5,820.00 | G7: 0 | J7: =F7+H7 -> 5,820.00 | K7: =G7+I7 -> 0
A8: 2 | B8: 电脑1 | C8: 台 | D8: 1 | E8: 2011-11-01 | F8: 3,560.00 | G8: 0 | J8: =F8+H8 -> 3,560.00 | K8: =G8+I8 -> 0
A9: 3 | B9: 打印机1 | C9: 台 | D9: 1 | E9: 2011-11-01 | F9: 2,100.00 | G9: 0 | J9: 2,100.00 | K9: 0
A10: 4 | B10: 电脑2 | C10: 台 | D10: 1 | E10: 2011-11-01 | F10: 3,560.00 | G10: 0 | J10: 3,560.00 | K10: 0
A11: 5 | B11: 打印机2 | C11: 台 | D11: 1 | E11: 2011-11-01 | F11: 2,085.00 | G11: 0 | J11: 2,085.00 | K11: 0
A12: 6 | B12: 收款机 | C12: 台 | D12: 1 | E12: 2011-12-01 | F12: 4,300.00 | G12: 0 | J12: 4,300.00 | K12: 0
A13: 7 | B13: 收款机扫描平台 | C13: 台 | D13: 1 | E13: 2011-12-01 | F13: 1,300.00 | G13: 0 | J13: 1,300.00 | K13: 0
A14: 8 | B14: 防盗电子门 | C14: 扇 | D14: 1 | E14: 2011-12-01 | F14: 4,450.00 | G14: 0 | J14: 4,450.00 | K14: 0
A15: 9 | B15: 验钞机 | C15: 台 | D15: 1 | E15: 2012-06-01 | F15: 1,750.00 | G15: 0 | J15: 1,750.00 | K15: 0
A16: 10 | B16: 电脑3 | C16: 台 | D16: 1 | E16: 2012-07-01 | F16: 4,690.00 | G16: 0 | J16: 4,690.00 | K16: 0
A17: 11 | B17: 打印机3 | C17: 台 | D17: 1 | E17: 2012-07-01 | F17: 2,850.00 | G17: 0 | J17: 2,850.00 | K17: 0
A18: 12 | B18: 货架1 | C18: 个 | D18: 1 | E18: 2013-04-01 | F18: 2,704.00 | G18: 0 | J18: 2,704.00 | K18: 0
A19: 13 | B19: 电脑4 | C19: 台 | D19: 1 | E19: 2013-10-01 | F19: 3,700.00 | G19: 0 | J19: 3,700.00 | K19: 0
A20: 14 | B20: 保险柜 | C20: 个 | D20: 1 | E20: 2013-12-01 | F20: 2,200.00 | G20: 0 | J20: 2,200.00 | K20: 0
A21: 15 | B21: 电脑5 | C21: 台 | D21: 1 | E21: 2013-12-01 | F21: 5,604.86 | G21: 0 | J21: 5,604.86 | K21: 0
A22: 16 | B22: 微波炉 | C22: 台 | D22: 1 | E22: 2013-12-01 | F22: 798.00 | G22: 0 | J22: 798.00 | K22: 0
A23: 17 | B23: 打印机4 | C23: 台 | D23: 1 | E23: 2013-12-01 | F23: 2,748.00 | G23: 0 | J23: 2,748.00 | K23: 0
A24: 18 | B24: 冷藏柜 | C24: 个 | D24: 1 | E24: 2013-12-01 | F24: 25,000.00 | G24: 0 | J24: 25,000.00 | K24: 0
A25: 19 | B25: 点钞机 | C25: 台 | D25: 1 | E25: 2013-12-01 | F25: 1,250.00 | G25: 0 | J25: 1,250.00 | K25: 0
A26: 20 | B26: 空气消毒柜 | C26: 个 | D26: 1 | E26: 2014-12-01 | F26: 5,128.21 | G26: 0 | J26: 5,128.21 | K26: 0
A27: 21 | B27: 眼科设备 | C27: 台 | D27: 1 | E27: 2016-02-01 | F27: 14,358.97 | G27: 4,188.04 | J27: 14,358.97 | K27: 4,188.04
A28: 22 | B28: 展示柜 | C28: 个 | D28: 1 | E28: 2016-09-01 | F28: 11,760.00 | G28: 5,145.00 | J28: 11,760.00 | K28: 5,145.00
A29: 23 | B29: 咖啡机 | C29: 台 | D29: 1 | E29: 2016-11-01 | F29: 10,032.00 | G29: 4,807.00 | J29: 10,032.00 | K29: 4,807.00
A30: 24 | B30: 电脑6 | C30: 台 | D30: 1 | E30: 2017-02-27 | F30: 3,547.01 | G30: 0 | J30: 3,547.01 | K30: 0
A31: 25 | B31: 服务器 | C31: 台 | D31: 1 | E31: 2017-06-22 | F31: 5,555.56 | G31: 3,472.22 | J31: 5,555.56 | K31: 3,472.22
A32: 本 页 小 计 | C32: =SUM(C7:C31) -> 0 | E32: *** | F32: =SUM(F7:F31) -> 130,851.61 | G32: 17,612.26 | H32: 0 | I32: 0 | J32: 130,851.61 | K32: 17,612.26
A33: 合 计 | F33: =SUM(F7:F31) -> 130,851.61 | G33: =SUM(G7:G31) -> 17,612.26 | H33: =H32 -> 0 | I33: =I32 -> 0 | J33: =J32 -> 130,851.61 | K33: =K32 -> 17,612.26

Sheet 运输设备清查明细表 (hidden)
A1: 固定资产----运输设备清查明细表
A3: =电子设备清查明细表!A3 -> 清查基准日：2018年12月31日
A4: =电子设备清查明细表!A4 -> 资产占有单位名称：杭州中惠医疗器械有限公司 | L4: 金额单位：人民币元
A5: 序号 | B5: 固定资产名称 | C5: 车牌号码 | D5: 已行驶公里数 | E5: 单位 | F5: 数量 | G5: 购入日期 | H5: 账 面 价 值 | J5: 清查调整数 | L5: 清查数
H6: 原值 | I6: 净值 | J6: 原值 | K6: 净值 | L6: 原值 | M6: 净值
A7: 1 | L7: =H7 -> 0.00
L8: =H8 -> 0 | M8: 0
L9: 0 | M9: 0
L10: 0 | M10: 0
L11: 0 | M11: 0
L12: 0 | M12: 0
L13: 0 | M13: 0
L14: 0 | M14: 0
L15: 0 | M15: 0
L16: 0 | M16: 0
L17: 0 | M17: 0
A24: 本 页 小 计 | F24: =SUM(F7:F23) -> 0 | H24: =SUM(H7:H23) -> 0 | I24: 0 | J24: 0.00 | K24: 0.00 | L24: 0.00 | M24: 0.00
A25: 合 计 | E25: ** | F25: 14 | G25: ** | H25: =H24 -> 0 | I25: 0 | J25: 0.00 | K25: 0.00 | L25: 0.00 | M25: 0.00

Sheet 办公家具清查明细表 (hidden)
A1: 固定资产----办公家具清查明细表
A3: =固定资产清查汇总表!A3 -> 清查基准日：2018年12月31日
A4: =运输设备清查明细表!A4 -> 资产占有单位名称：杭州中惠医疗器械有限公司 | J4: 金额单位：人民币元
A5: 序号 | B5: 固定资产名称 | C5: 单位 | D5: 数量 | E5: 启用 日期 | F5: 账 面 价 值 | H5: 清查调整数 | J5: 清查数
C6: 量 | F6: 原值 | G6: 净值 | H6: 原值 | I6: 净值 | J6: 原值 | K6: 净值
A7: 1
A8: 2
A9: 3
A10: 4
A11: 5
A12: 6
A13: 7
A14: 8
A15: 9 | M15: 借：营业外支出
A16: 10 | M16: 累计折旧 | O16: 41685
A17: 11 | M17: 贷：固定资产 | O17: 41685
A18: 12
A19: 13
A20: 14
A21: 15
A22: 16
A23: 17
A24: 18
A25: 19
A26: 20
A27: 21
A28: 22
A29: 23
A30: 24
A31: 25
A32: 26
A33: 27 | L33: 报废4台
A34: 28
A35: 29
A36: 30
A37: 31
A38: 32
A39: 33
A40: 34
A41: 35
A42: 36
A43: 37
A44: 38
A45: 39
A46: 40
A47: 41
A48: 42
A49: 43
A50: 44
A51: 45
A52: 46
A53: 47
A54: 48
A55: 49
A56: 50
A57: 51
A58: 52
A59: 53 | M59: 44.04 | N59: 27.01
A60: 54 | M60: 690.144 | N60: 423.324
A61: 55 | M61: 234.624 | N61: 143.914
A62: 56 | M62: 3916.5 | N62: 2402.35
A63: 57 | M63: 857.9 | N63: 526.23
A64: 58 | M64: 5757.36 | N64: 3531.51
A65: 59
J72: =F72+H72 -> 0 | K72: =G72+I72 -> 0
A73: 本 页 小 计 | C73: =SUM(C7:C72) -> 0 | E73: *** | F73: =SUM(F7:F72) -> 0 | G73: 0 | H73: 0 | I73: 0 | J73: 0 | K73: 0
A74: 合 计 | C74: =SUM(C7:C72) -> 0 | F74: =F73 -> 0 | G74: 0 | H74: 0 | I74: 0 | J74: 0 | K74: 0

Sheet 其他设备清查明细表 (hidden)
A1: 固定资产----其他设备清查明细表
A3: =固定资产清查汇总表!A3 -> 清查基准日：2018年12月31日
A4: ='办公家具清查明细表 '!A4 -> 资产占有单位名称：杭州中惠医疗器械有限公司 | J4: 金额单位：人民币元
A5: 序号 | B5: 固定资产名称 | C5: 单位 | D5: 数量 | E5: 启用 日期 | F5: 账 面 价 值 | H5: 清查调整数 | J5: 清查数
C6: 量 | F6: 原值 | G6: 净值 | H6: 原值 | I6: 净值 | J6: 原值 | K6: 净值
A7: 1 | K7: =G7+I7 -> 0
A8: 2 | K8: 0
A9: 3 | K9: 0 | L9: 借：营业外支出
A10: 4 | K10: 0 | L10: 累计折旧 | M10: 17801
A11: 5 | K11: 0 | L11: 贷：固定资产 | M11: 17801
A12: 6 | K12: 0
A13: 7 | K13: 0
A14: 8 | K14: =G14+I14 -> 0
A15: 9 | K15: 0
A16: 10 | K16: 0
A17: 11 | K17: 0
A18: 12 | K18: 0
A19: 13 | K19: 0
A20: 14 | K20: 0
A21: 15 | K21: 0
A22: 16 | K22: 0
A23: 17 | K23: 0
A24: 18 | K24: 0
A25: 19 | K25: 0
A26: 20 | K26: 0
A27: 21 | K27: 0
A28: 22 | K28: 0
A29: 23 | K29: 0
A30: 24 | K30: 0 | L30: 报废1只
A31: 25 | K31: 0
A32: 26 | K32: 0
A33: 27 | K33: 0
A34: 28 | K34: 0
A35: 29 | K35: 0
A36: 30 | K36: 0
A37: 31 | K37: 0
A38: 32 | K38: 0
A39: 33 | K39: 0
A40: 34 | K40: 0
A41: 35 | K41: 0
A42: 36 | K42: 0
A43: 37 | K43: 0
A44: 38 | K44: 0
A45: 39 | K45: =G45+I45 -> 0
A46: 40 | K46: 0
A47: 41 | K47: 0
A48: 42 | K48: 0
A49: 43 | K49: 0
A50: 44 | K50: 0
A51: 45 | K51: 0
A52: 46 | K52: 0
A53: 47 | K53: 0
A54: 48 | K54: 0
A55: 49 | K55: 0
A56: 50 | K56: 0
A57: 51 | K57: 0
K58: 0
K59: 0
K60: 0
K61: 0
K62: 0
K63: 0
G64: 0 | J64: 0 | K64: 0
G65: 0 | J65: =F65+H65 -> 0 | K65: 0
G66: 0 | J66: 0 | K66: 0
A67: 本 页 小 计 | C67: =SUM(C7:C66) -> 0 | E67: *** | F67: =SUM(F7:F66) -> 0 | G67: =SUM(G7:G66) -> 0 | H67: 0 | I67: 0 | J67: 0 | K67: 0
A68: 合 计 | C68: =SUM(C7:C66) -> 0 | F68: =F67 -> 0 | G68: =G67 -> 0 | H68: 0 | I68: 0 | J68: 0 | K68: 0

Sheet 房屋建筑物 (hidden)
A1: 房屋建筑物清查明细表
A3: =固定资产清查汇总表!A3 -> 清查基准日：2018年12月31日
A4: =固定资产清查汇总表!A4 -> 资产占有单位名称：杭州中惠医疗器械有限公司 | Q4: 金额单位：人民币元
A5: 房屋 编号 | B5: 序号 | C5: 房屋建筑物名称 | D5: 房产证号码 | E5: 单位 | F5: 数量 | G5: 结构 | H5: 竣工 日期 | I5: 用途 | J5: 占地 面积 | K5: 建筑 面积 | L5: 账 面 价 值 | N5: 清查调整数 | P5: 清查数
L6: 原值 | M6: 净值 | N6: 原值 | O6: 净值 | P6: 原值 | Q6: 净值
P7: =L7+N7 -> 0.00 | Q7: =M7+O7 -> 0.00
P8: =L8+N8 -> 0.00 | Q8: =M8+O8 -> 0.00
A17: 本 页 小 计 | B17: 本页小计 | L17: =SUM(L7:L16) -> 0.00 | M17: 0.00 | N17: 0.00 | O17: 0.00 | P17: 0.00 | Q17: 0.00
A18: 合 计 | B18: 合计 | D18: ** | E18: ** | F18: ** | G18: ** | L18: =L17 -> 0.00 | M18: 0.00 | N18: 0.00 | O18: 0.00 | P18: 0.00 | Q18: 0.00

Sheet 无形资产
A1: 无形资产清查明细表
A3: ='其他设备清查明细表 '!A3:K3 -> 清查基准日：2018年12月31日
A4: ='其他设备清查明细表 '!A4 -> 资产占有单位名称：杭州中惠医疗器械有限公司 | G4: 金额单位：人民币元
A5: 编号 | B5: 资产名称 | C5: 取得方式 | D5: 原始成本（万元） | E5: 账 面 值 | F5: 清查调整数 | G5: 清查值
A6: 6-1 | B6: 车辆免取卡系统 | C6: 外购 | D6: 88,000.00 | E6: 29,333.33 | F6: 0.00 | G6: =E6+F6 -> 29,333.33
A7: 6-2 | B7: 停车场免取卡收费系统 | C7: 外购 | D7: 201,426.72 | E7: 191,355.38 | G7: =E7+F7 -> 191,355.38
A19: 合 计 | C19: ** | D19: =SUM(D6:D18) -> 289,426.72 | E19: =SUM(E6:E18) -> 220,688.71 | F19: =SUM(F6:F18) -> 0.00 | G19: =SUM(G6:G18) -> 220,688.71

Sheet 无形资产-土地使用权 (hidden)
A1: 土地使用权清查明细表
A3: =无形资产!A3 -> 清查基准日：2018年12月31日
A4: =无形资产!A4 -> 资产占有单位名称：杭州中惠医疗器械有限公司 | I4: 金额单位：人民币元
A5: 序号 | B5: 地块位置 | C5: 土地证号码 | D5: 取得 方式 | E5: 用 途 | F5: 使用 年限 | G5: 面积(m2) | H5: 账面值 | I5: 清查调整数 | J5: 清查值
F6: 年限 | G6: (m2)
A7: 1 | J7: =H7+I7 -> 0.00
A22: 本 页 小 计 | G22: =SUM(G7:G21) -> 0
A23: 合 计 | C23: ** | G23: =G22 -> 0 | H23: =SUM(H7:H22) -> 0.00 | I23: =SUM(I7:I22) -> 0.00 | J23: =SUM(J7:J22) -> 0.00

Sheet 无形资产-其他 (hidden)
A1: 其他无形资产明细表
A3: ='无形资产-土地使用权'!A3:J3 -> 清查基准日：2018年12月31日
A4: ='无形资产-土地使用权'!A4 -> 资产占有单位名称：杭州中惠医疗器械有限公司 | G4: 金额单位：人民币元
A5: 序号 | B5: 资产名称 | C5: 取得方式 | D5: 原始成本(万元) | E5: 账 面 值 | F5: 清查调整数 | G5: 清查值
D6: （万元） | F6: 调整数 | G6: 账面值
A7: 1
A8: 2
A9: 3
A10: 4
A11: 5
A12: 6
A13: 7
A14: 8
A15: 9
A16: 10
A17: 11
A18: 12
A19: 13
A20: 14
A21: 15
A22: 16
A23: 17
A24: 18
A25: 19
A26: 20
A27: 21
A28: 22
A29: 23
A30: 24
A31: 25
A32: 26
A33: 27
A34: 28
A35: 29
A36: 30
A37: 31
A38: 32
A39: 33
A40: 34
A41: 35
A42: 36
A43: 本 页 小 计 | E43: =SUM(E7:E42) -> 0.00 | F43: =SUM(F7:F42) -> 0.00 | G43: =SUM(G7:G42) -> 0.00
A44: 合 计 | C44: ** | E44: =E43 -> 0.00 | F44: =F43 -> 0.00 | G44: =G43 -> 0.00

Sheet 其他非流动资产 (hidden)
A1: 其他非流动资产清查明细表
A3: 清查基准日：2018年12月31日
A4: ='3.4.1.2低值易耗品'!A3 -> 资产占有单位名称：杭州中惠医疗器械有限公司 | K4: 金额单位：人民币元
A5: 序号 | B5: 项目 | C5: 发生日期 | D5: 原始发生额 | E5: 摊销月数 | F5: 未摊月数 | G5: 月摊金额 | H5: 附明细表页数 | I5: 账面值 | J5: 清查调整数 | K5: 清查值 | L5: 备注
A7: 1 | B7: 待报废资产 | H7: 3 | K7: =I7+J7 -> 0.00
A17: 本 页 小 计 | D17: =SUM(D7:D16) -> 0.00 | I17: =SUM(I7:I16) -> 0.00 | J17: =SUM(J7:J16) -> 0.00 | K17: =SUM(K7:K16) -> 0.00
A18: 合 计 | C18: ** | D18: =D17 -> 0.00 | E18: ** | F18: ** | G18: ** | I18: =I17 -> 0.00 | J18: =J17 -> 0.00 | K18: =K17 -> 0.00

Sheet 其他非流动资产-待报废资产 (hidden)
A1: 其他非流动资产-待报废资产清查明细表
A3: =固定资产清查汇总表!A3 -> 清查基准日：2018年12月31日
A4: =固定资产清查汇总表!A4 -> 资产占有单位名称：杭州中惠医疗器械有限公司 | J4: 金额单位：人民币元
A5: 序号 | B5: 固定资产名称 | C5: 单位 | D5: 数量 | E5: 启用 日期 | F5: 账 面 价 值 | H5: 清查调整数 | J5: 清查数
C6: 量 | F6: 原值 | G6: 净值 | H6: 原值 | I6: 净值 | J6: 原值 | K6: 净值
A7: 1 | B7: 奥克斯-23空调 | C7: 台 | D7: 2 | E7: 2004.05 | H7: 1,998.00 | I7: 9.99 | J7: =F7+H7 -> 1,998.00 | K7: =G7+I7 -> 9.99 | L7: 报废2台
A8: 2 | B8: 海信-2318空调 | C8: 台 | D8: 1 | E8: 2004.05 | H8: 1,159.00 | I8: 0 | J8: =F8+H8 -> 1,159.00 | K8: =G8+I8 -> 0 | L8: -1159 | N8: =-L8 -> 1159 | O8: =-M8 -> 0
A9: 3 | B9: 网络安全系统设备 | C9: 台 | D9: 1 | E9: 2007.05 | H9: 7,500.00 | I9: 0 | J9: 7,500.00 | K9: 0 | L9: -7500 | N9: =-L9 -> 7500 | O9: =-M9 -> 0
A10: 4 | B10: 美的空调 | C10: 台 | D10: 2 | E10: 2007.06 | H10: 5,230.00 | I10: 0 | J10: 5,230.00 | K10: 0 | L10: -5230 | N10: 5230 | O10: 0
A11: 5 | B11: 松下传真机 | C11: 台 | D11: 1 | E11: 2007.07 | H11: 1,730.00 | I11: 0 | J11: 1,730.00 | K11: 0 | L11: -1730 | N11: 1730 | O11: 0
A12: 6 | B12: 格兰仕微波炉 | C12: 台 | D12: 1 | E12: 2007.07 | H12: 368.00 | I12: 0 | J12: 368.00 | K12: 0 | L12: -368 | N12: 368 | O12: 0
A13: 7 | B13: 32寸液晶电视机 | C13: 台 | D13: 1 | E13: 2007.10 | H13: 6,998.00 | I13: 34.99 | J13: 6,998.00 | K13: 34.99 | L13: -6998 | M13: -34.99 | N13: 6998 | O13: 34.99
A14: 8 | B14: 打卡机 | C14: 台 | D14: 1 | E14: 2007.12 | H14: 780.00 | I14: 0 | J14: 780.00 | K14: 0 | L14: -780 | N14: 780 | O14: 0
A15: 9 | B15: 客用小冰箱 | C15: 台 | D15: 4 | E15: 2008.05 | H15: 2,400.00 | I15: 0 | J15: 2,400.00 | K15: 0 | L15: -2400 | N15: 2400 | O15: 0
A16: 10 | B16: OKI1800打印机 | C16: 台 | D16: 2 | E16: 2008.11 | H16: 3,060.00 | I16: 0 | J16: 3,060.00 | K16: 0 | L16: -3060 | N16: 3060 | O16: 0
A17: 11 | B17: 三星空调机 | C17: 台 | D17: 1 | E17: 2009.08 | H17: 2,699.00 | I17: 13.49 | J17: 2,699.00 | K17: 13.49 | L17: -2699 | M17: -13.49 | N17: 2699 | O17: 13.49
A18: 12 | B18: 检漏控制器 | C18: 台 | D18: 1 | E18: 2014.01 | H18: 3,550.00 | I18: 0 | J18: 3,550.00 | K18: 0 | L18: -3550 | N18: 3550 | O18: 0
A19: 13 | B19: HP服务器 | C19: 台 | D19: 1 | E19: 2001.01 | H19: 12,500.00 | I19: 0 | J19: 12,500.00 | K19: 0 | L19: -12500 | N19: 12500 | O19: 0
A20: 14 | B20: 高压清洗机 | C20: 台 | D20: 1 | E20: 2002.06 | H20: 1,090.00 | I20: 0 | J20: 1,090.00 | K20: 0 | L20: -1090 | N20: 1090 | O20: 0
A21: 15 | B21: 50N东芝背投彩电 | C21: 台 | D21: 1 | E21: 2001.01 | H21: 19,300.00 | I21: 0 | J21: 19,300.00 | K21: 0 | L21: -19300 | M21: 0 | N21: 19300 | O21: 0
A22: 16 | B22: 43D东芝背投彩电 | C22: 台 | D22: 3 | E22: 2001.01 | H22: 45,000.00 | I22: 0 | J22: 45,000.00 | K22: 0 | L22: -45000 | M22: 0 | N22: 45000 | O22: 0
A23: 17 | B23: 榨汁机 | C23: 台 | D23: 2 | E23: 2001.03 | H23: 5,640.00 | I23: 0 | J23: 5,640.00 | K23: 0 | L23: -5640 | M23: 0 | N23: 5640 | O23: 0
A24: 18 | B24: 商用奶油搅拌机 | C24: 台 | D24: 1 | E24: 2001.03 | H24: 5,620.00 | I24: 0 | J24: 5,620.00 | K24: 0 | L24: -5620 | M24: 0 | N24: 5620 | O24: 0
A25: 19 | B25: 电子磅秤 | C25: 台 | D25: 1 | E25: 2001.03 | H25: 2,100.00 | I25: 0 | J25: 2,100.00 | K25: 0 | L25: -2100 | M25: 0 | N25: 2100 | O25: 0
A26: 20 | B26: 美容用摩奇按摩器 | C26: 台 | D26: 1 | E26: 2004.06 | H26: 776.00 | I26: 0 | J26: 776.00 | K26: 0 | L26: -776 | M26: 0 | N26: 776 | O26: 0
A27: 21 | B27: 三合一地毯抽洗机 | C27: 台 | D27: 1 | E27: 2001.01 | H27: 24,548.00 | I27: 0 | J27: 24,548.00 | K27: 0 | L27: -24548 | M27: 0 | N27: 24548 | O27: 0
A28: 22 | B28: 双头加热炉 | C28: 台 | D28: 1 | E28: 2001.03 | H28: 2,620.00 | I28: 0 | J28: 2,620.00 | K28: 0 | L28: -2620 | M28: 0 | N28: 2620 | O28: 0
A29: 23 | B29: 自助咖啡炉 | C29: 台 | D29: 2 | E29: 2001.03 | H29: 5,180.00 | I29: 0 | J29: 5,180.00 | K29: 0 | L29: -5180 | M29: 0 | N29: 5180 | O29: 0
A30: 24 | B30: 前厅用扫描仪 | C30: 台 | D30: 1 | E30: 2004.12 | H30: 500.00 | I30: 0 | J30: 500.00 | K30: 0 | L30: -500 | M30: 0 | N30: 500 | O30: 0
A31: 25 | B31: 12#绞肉机 | C31: 台 | D31: 1 | E31: 2006.04 | H31: 700.00 | I31: 0 | J31: 700.00 | K31: 0 | L31: -700 | M31: 0 | N31: 700 | O31: 0
A32: 26 | B32: 奥的斯空调(员工宿舍) | C32: 台 | D32: 4 | E32: 2007.06 | H32: 9,920.00 | I32: 49.57 | J32: 9,920.00 | K32: 49.57 | L32: -9920 | M32: -49.57 | N32: 9920 | O32: 49.57
A33: 27 | B33: 热能数码烫机 | C33: 台 | D33: 1 | E33: 2007.06 | H33: 960.00 | I33: 4.80 | J33: 960.00 | K33: 4.80 | L33: -960 | M33: -4.8 | N33: 960 | O33: 4.8
A34: 28 | B34: 吸尘器 | C34: 台 | D34: 1 | E34: 2008.07 | H34: 615.00 | I34: 0 | J34: 615.00 | K34: 0 | L34: -615 | M34: 0 | N34: 615 | O34: 0
A35: 29 | B35: 小白兔绞肉机 | C35: 台 | D35: 1 | E35: 2009.02 | H35: 950.00 | I35: 0 | J35: 950.00 | K35: 0 | L35: -950 | M35: 0 | N35: 950 | O35: 0
A36: 30 | B36: 绞伴机 | C36: 台 | D36: 1 | E36: 2009.05 | H36: 360.00 | I36: 0 | J36: 360.00 | K36: 0 | L36: -360 | M36: 0 | N36: 360 | O36: 0
A37: 31 | B37: 双门消毒柜 | C37: 台 | D37: 1 | E37: 2010.1 | H37: 6,800.00 | I37: 0 | J37: 6,800.00 | K37: 0 | L37: -6800 | M37: 0 | N37: 6800 | O37: 0
A38: 32 | B38: 榨汁机 | C38: 台 | D38: 1 | E38: 2015.01 | H38: 980.00 | I38: 9.80 | J38: 980.00 | K38: 9.80 | L38: -980 | M38: -9.8 | N38: 980 | O38: 9.8
A39: 33 | B39: 不锈钢货架 | C39: 张 | D39: 2 | E39: 2007.08 | H39: 2,750.00 | J39: =F39+H39 -> 2,750.00 | K39: =G39+I39 -> 0
A40: 34 | B40: 床垫 | C40: 张 | D40: 4 | E40: 2009.08 | H40: 3,360.00 | J40: 3,360.00 | K40: 0 | L40: -900 | M40: =-L40 -> 900
A41: 35 | B41: 折叠桌 | C41: 张 | D41: 2 | E41: 2009.09 | H41: 900.00 | J41: 900.00 | K41: 0 | L41: -15000 | M41: =-L41 -> 15000
A42: 36 | B42: 绅迪美式桌球台 | C42: 张 | D42: 1 | E42: 2001.02 | H42: 15,000.00 | J42: 15,000.00 | K42: 0 | L42: -2080 | M42: 2080
A43: 37 | B43: 会议桌（长） | C43: 张 | D43: 4 | E43: 2001.04 | H43: 2,080.00 | J43: 2,080.00 | K43: 0 | L43: -13500 | M43: 13500
A44: 38 | B44: 圆台（折叠） | C44: 张 | D44: 25 | E44: 2001.04 | H44: 13,500.00 | J44: 13,500.00 | K44: 0 | L44: -6760 | M44: 6760
A45: 39 | B45: 餐桌椅 | C45: 把 | D45: 15 | E45: 2001.04 | H45: 6,760.00 | J45: 6,760.00 | K45: 0 | L45: -5335 | M45: 5335
A46: 40 | B46: 茶几 | C46: 张 | D46: 11 | E46: 2001.04 | H46: 5,335.00 | J46: 5,335.00 | K46: 0 | L46: -4100 | M46: 4100
A47: 41 | B47: 大班台 | C47: 张 | D47: 1 | E47: 2001.04 | H47: 4,100.00 | J47: 4,100.00 | K47: 0 | L47: -1600 | M47: 1600
A48: 42 | B48: 大班椅 | C48: 把 | D48: 1 | E48: 2001.04 | H48: 1,600.00 | J48: 1,600.00 | K48: 0 | L48: -1300 | M48: 1300
A49: 43 | B49: 班前椅 | C49: 把 | D49: 2 | E49: 2001.04 | H49: 1,300.00 | J49: 1,300.00 | K49: 0
A50: 44 | B50: 益银点钞机 | C50: 台 | D50: 1 | E50: 2007.08 | H50: 1,380.00 | I50: 0 | J50: 1,380.00 | K50: 0 | L50: -1380 | N50: =-L50 -> 1380 | O50: =-M50 -> 0
A51: 45 | B51: 发卡机 | C51: 台 | D51: 1 | E51: 2008.05 | H51: 1,800.00 | I51: 0 | J51: 1,800.00 | K51: 0 | L51: -1800 | N51: =-L51 -> 1800 | O51: =-M51 -> 0
A52: 46 | B52: 财务软件 | C52: 批 | D52: 1 | E52: 2009.03 | H52: 4,140.00 | I52: 0 | J52: 4,140.00 | K52: 0 | L52: -4140 | N52: 4140 | O52: 0
A53: 47 | B53: 小花瓶 | C53: 只 | D53: 5 | E53: 2001.02 | H53: 720.00 | I53: 0 | J53: 720.00 | K53: 0 | L53: -720 | N53: 720 | O53: 0
A54: 48 | B54: 花瓶 | C54: 只 | D54: 1 | E54: 2001.02 | H54: 251.00 | I54: 0 | J54: 251.00 | K54: 0 | L54: -251 | N54: 251 | O54: 0
A55: 49 | B55: 26头标花嘴 | C55: 只 | D55: 1 | E55: 2001.03 | H55: 2,340.00 | I55: 0 | J55: 2,340.00 | K55: 0 | L55: -2340 | N55: 2340 | O55: 0
A56: 50 | B56: 二层车 | C56: 台 | D56: 1 | E56: 2001.06 | H56: 850.00 | I56: 0 | J56: 850.00 | K56: 0 | L56: -850 | N56: 850 | O56: 0
A57: 51 | B57: 氩弧焊机 | C57: 只 | D57: 1 | E57: 2004.02 | H57: 2,100.00 | I57: 0 | J57: 2,100.00 | K57: 0 | L57: -2100 | N57: 2100 | O57: 0
A58: 52 | B58: 财务软件升级 | C58: 批 | D58: 1 | E58: 2012.12 | H58: 4,220.00 | I58: 0 | J58: 4,220.00 | K58: 0 | L58: -4220 | N58: 4220 | O58: 0
A59: 53 | B59: 砚台 | C59: 个 | D59: 1 | E59: 2001.02 | H59: 600.00 | I59: 0 | J59: 600.00 | K59: 0 | L59: -600 | M59: 0 | N59: 600 | O59: 0
A60: 54 | B60: 冰船 | C60: 只 | D60: 1 | E60: 2001.03 | H60: 3,265.00 | I60: 0 | J60: 3,265.00 | K60: 0 | L60: -3265 | M60: 0 | N60: 3265 | O60: 0
A61: 55 | B61: 汤锅 | C61: 只 | D61: 2 | E61: 2001.06 | H61: 3,300.00 | I61: 0 | J61: 3,300.00 | K61: 0 | L61: -3300 | M61: 0 | N61: 3300 | O61: 0
A62: 56 | B62: 雕刻刀 | C62: 把 | D62: 2 | E62: 2001.06 | H62: 2,240.00 | I62: 0 | J62: 2,240.00 | K62: 0 | L62: -2240 | M62: 0 | N62: 2240 | O62: 0
A63: 57 | B63: 设备配件 | C63: 批 | D63: 1 | E63: 2001.01 | H63: 113,950.00 | I63: 0 | J63: 113,950.00 | K63: 0 | L63: -113950 | M63: 0 | N63: 113950 | O63: 0
A64: 58 | B64: 系统集成费 | C64: 批 | D64: 1 | E64: 2001.01 | H64: 75,000.00 | I64: 0 | J64: 75,000.00 | K64: 0 | L64: -75000 | M64: 0 | N64: 75000 | O64: 0
A65: 59 | B65: 1.5W离心泵 | C65: 台 | D65: 1 | E65: 2002.06 | H65: 1,180.00 | I65: 0 | J65: 1,180.00 | K65: 0 | L65: -1180 | M65: 0 | N65: 1180 | O65: 0
A66: 60 | B66: 轮椅 | C66: 把 | D66: 1 | E66: 2001.01 | H66: 945.00 | I66: 4.73 | J66: 945.00 | K66: 4.73 | L66: -945 | M66: -4.73 | N66: 945 | O66: 4.73
A67: 61 | B67: 打泡箱(含水箱) | C67: 只 | D67: 1 | E67: 2007.04 | H67: 7,760.00 | I67: 0 | J67: 7,760.00 | K67: 0 | L67: -7760 | M67: 0 | N67: 7760 | O67: 0
A68: 62 | B68: 健伍TK-3207J对讲机 | C68: 只 | D68: 6 | E68: 2007.04 | H68: 6,900.00 | I68: 0 | J68: 6,900.00 | K68: 0 | L68: -6900 | M68: 0 | N68: 6900 | O68: 0
A69: 63 | B69: 房价牌 | C69: 个 | D69: 1 | E69: 2008.05 | H69: 2,300.00 | I69: 0 | J69: 2,300.00 | K69: 0 | L69: -2300 | M69: 0 | N69: 2300 | O69: 0
A70: 64 | B70: 对讲机 | C70: 只 | D70: 2 | E70: 2008.05 | H70: 1,060.00 | I70: 0 | J70: 1,060.00 | K70: 0 | L70: -1060 | M70: 0 | N70: 1060 | O70: 0
A71: 65 | B71: 光纤工程调试费 | C71: 批 | D71: 1 | E71: 2009.01 | H71: 25,400.00 | I71: 0 | J71: 25,400.00 | K71: 0 | L71: -25400 | M71: 0 | N71: 25400 | O71: 0
A72: 66 | B72: 电站改造 | C72: 批 | D72: 1 | E72: 2010.1 | G72: 0 | H72: 20,500.00 | I72: 0 | J72: 20,500.00 | K72: 0 | L72: -20500 | M72: 0 | N72: 20500 | O72: 0
A74: 本 页 小 计 | E74: *** | F74: =SUM(F7:F38) -> 0 | G74: =SUM(G7:G38) -> 0 | H74: =SUM(H7:H72) -> 522,517.00 | I74: =SUM(I7:I72) -> 127.37 | J74: =SUM(J7:J72) -> 522,517.00 | K74: =SUM(K7:K72) -> 127.37
A75: 合 计 | F75: =SUM(F7:F38) -> 0 | G75: =SUM(G7:G38) -> 0 | H75: =H74 -> 522,517.00 | I75: 127.37 | J75: 522,517.00 | K75: 127.37

Sheet 应付账款清查明细表
A1: 应付账款清查明细表
A3: =固定资产清查汇总表!A3 -> 清查基准日：2018年12月31日
A4: =固定资产清查汇总表!A4 -> 资产占有单位名称：杭州中惠医疗器械有限公司 | G4: 金额单位：人民币元
A5: 序号 | B5: 户名(结算对象) | C5: 业务内容 | D5: 账龄(年) | E5: 账面值 | F5: 调整数 | G5: 清 查 值 | H5: 备 注
A7: 1 | B7: 杭州优普医疗器械有限公司 | C7: 货款 | D7: 2-3年 | E7: 5,922.25 | G7: =E7+F7 -> 5,922.25
A8: 2 | B8: 杭州新草科技有限公司 | C8: 货款 | D8: 1-2年 | E8: 11,487.18 | G8: =E8+F8 -> 11,487.18
A9: 3 | B9: 杭州桌氏科技有限公司 | C9: 货款 | D9: 1年以内 | E9: 2,406.99 | G9: 2,406.99
A10: 4 | B10: 华东医药器材化剂分公司 | C10: 货款 | D10: 1年以内 | E10: 51,872.36 | G10: 51,872.36
A11: 5 | B11: 诸暨市康健医疗用品有限公司 | C11: 货款 | D11: 1-2年 | E11: 1,380.00 | G11: 1,380.00
A12: 6 | B12: 杭州原华贸易有限公司 | C12: 货款 | D12: 1年以内 | E12: 14,133.39 | G12: 14,133.39
A13: 7 | B13: 杭州市下城区裕棋贸易商行 | C13: 货款 | D13: 1年以内 | E13: 9,888.02 | G13: 9,888.02
A14: 8 | B14: 杭州星星实业有限公司 | C14: 货款 | D14: 1年以内 | E14: 12,398.83 | G14: 12,398.83
A15: 9 | B15: 杭州思维医疗器械有限公司 | C15: 货款 | D15: 1年以内 | E15: 6,689.60 | G15: 6,689.60
A16: 10 | B16: （杭州雷高）杭州西子卫生消毒有限公司 | C16: 货款 | D16: 1年以内 | E16: 1,011.04 | G16: =E16+F16 -> 1,011.04
A17: 11 | B17: 耀申贸易公司 | C17: 货款 | D17: 3年以上 | E17: 800.00 | G17: 800.00
A18: 12 | B18: 杭州事特顺贸易有限公司 | C18: 货款 | D18: 1年以内 | E18: 5,233.56 | G18: 5,233.56
A19: 13 | B19: 杭州辰吉贸易有限公司 | C19: 货款 | D19: 1年以内 | E19: 4,230.66 | G19: 4,230.66
A20: 14 | B20: 杭州绿星有限公司 | C20: 货款 | D20: 1年以内 | E20: 3,621.77 | G20: 3,621.77
A21: 15 | B21: 浙江灵洋医疗器械有限公司 | C21: 货款 | D21: 3年以上 | E21: 1,000.00 | G21: 1,000.00
A22: 16 | B22: 江苏华东医疗器械实业有限公司 | C22: 货款 | D22: 1年以内 | E22: 20,470.31 | G22: 20,470.31
A23: 17 | B23: 南昌苏和医疗器械有限公司 | C23: 货款 | D23: 3年以上 | E23: 12,001.12 | G23: 12,001.12
A24: 18 | B24: 艾姆斯有限公司 | C24: 货款 | D24: 1年以内 | E24: 11,001.13 | G24: 11,001.13
A25: 19 | B25: 余红卫生用品有限公司 | C25: 货款 | D25: 3年以上 | E25: 541.21 | G25: 541.21
A26: 20 | B26: 吉纳有限公司 | C26: 货款 | D26: 3年以上 | E26: 1,457.35 | G26: 1,457.35
A27: 21 | B27: 徐军平 | C27: 货款 | D27: 1年以内 | E27: 9,917.14 | G27: 9,917.14
A28: 22 | B28: 杭州润宝有限公司 | C28: 货款 | D28: 1-2年 | E28: 1,859.03 | G28: 1,859.03
A29: 23 | B29: 台州健民有限公司 | C29: 货款 | D29: 1年以内 | E29: 27,124.75 | G29: 27,124.75
A30: 24 | B30: 杭州瑜亮贸易有限公司 | C30: 货款 | D30: 1年以内 | E30: 608.44 | G30: 608.44
A31: 25 | B31: 浙江来益医药有限公司 | C31: 货款 | D31: 1年以内 | E31: 12,115.32 | G31: 12,115.32
A32: 26 | B32: 杭州必正有限公司 | C32: 货款 | D32: 1年以内 | E32: 5,468.93 | G32: 5,468.93
A33: 27 | B33: 杭州东升服装小商品市场 | C33: 货款 | D33: 1年以内 | E33: 13.24 | G33: 13.24
A34: 28 | B34: 杭州慧达贸易有限公司 | C34: 货款 | D34: 1年以内 | E34: 4,884.50 | G34: 4,884.50
A35: 29 | B35: 安徽华泽医药有限公司 | C35: 货款 | D35: 3年以上 | E35: 2,393.16 | G35: 2,393.16
A36: 30 | B36: 汉库国际有限公司 | C36: 货款 | D36: 3年以上 | E36: 8,572.65 | G36: 8,572.65
A37: 31 | B37: 中山国宇有限公司 | C37: 货款 | D37: 2-3年 | E37: 0.02 | G37: 0.02
A38: 32 | B38: 湖州万事利有限公司 | C38: 货款 | D38: 3年以上 | E38: 0.66 | G38: 0.66
A39: 33 | B39: 杭州前茂有限公司 | C39: 货款 | D39: 2-3年 | E39: 3,888.82 | G39: 3,888.82
A40: 34 | B40: 杭州锦通有限公司 | C40: 货款 | D40: 1年以内 | E40: 1,422.24 | G40: 1,422.24
A41: 35 | B41: 杭州赫伯思有限公司 | C41: 货款 | D41: 3年以上 | E41: 4,328.14 | G41: 4,328.14
A42: 36 | B42: 杭州五丰冷食有限公司 | C42: 货款 | D42: 1年以内 | E42: 0.11 | G42: 0.11
A43: 37 | B43: 杭州壶通堂 | C43: 货款 | D43: 1-2年 | E43: 601.56 | G43: 601.56
A44: 38 | B44: 杭州恒强有限公司 | C44: 货款 | D44: 1年以内 | E44: 1,732.49 | G44: 1,732.49
A45: 39 | B45: 杭州华正有限公司 | C45: 货款 | D45: 3年以上 | E45: 2,585.55 | G45: 2,585.55
A46: 40 | B46: 杭州贝苗有限公司 | C46: 货款 | D46: 1-2年 | E46: 3,596.58 | G46: 3,596.58
A47: 41 | B47: 杭州市下城区新铭送水服务部 | C47: 货款 | D47: 3年以上 | E47: 225.60 | G47: 225.60
A48: 42 | B48: 杭州惠耳听力有限公司 | C48: 货款 | D48: 1-2年 | E48: 0.12 | G48: =E48+F48 -> 0.12
A49: 43 | B49: 武汉诺邦有限公司 | C49: 货款 | D49: 2-3年 | E49: 0.01 | G49: 0.01
A50: 44 | B50: 杭州康津医疗有限公司 | C50: 货款 | D50: 1年以内 | E50: 55,165.55 | G50: 55,165.55
A51: 45 | B51: 杭州莫汇科技有限公司 | C51: 货款 | D51: 3年以上 | E51: 2,106.84 | G51: 2,106.84
A52: 46 | B52: 海南汇海药业有限公司 | C52: 货款 | D52: 3年以上 | E52: 0.02 | G52: 0.02
A53: 47 | B53: 江苏巨光有限公司 | C53: 货款 | D53: 3年以上 | E53: 0.02 | G53: 0.02
A54: 48 | B54: 上海世基医疗器械有限公司 | C54: 货款 | D54: 1-2年 | E54: 0.01 | G54: 0.01
A55: 49 | B55: 林正商贸有限公司 | C55: 货款 | D55: 1年以内 | E55: 144,308.20 | G55: 144,308.20
A56: 50 | B56: 杭州瑞果有限公司 | C56: 货款 | D56: 1-2年 | E56: 246.14 | G56: 246.14
A57: 51 | B57: 杭州兴金健康科技有限公司 | C57: 货款 | D57: 1年以内 | E57: 3,448.14 | G57: 3,448.14
A58: 52 | B58: 杭州欣容轩有限公司 | C58: 货款 | D58: 1年以内 | E58: 29,162.95 | G58: 29,162.95
A59: 53 | B59: 重庆三合药业有限公司 | C59: 货款 | D59: 1年以内 | E59: 1,578.57 | G59: 1,578.57
A60: 54 | B60: 杭州史瑞有限公司 | C60: 货款 | D60: 1年以内 | E60: 212,167.62 | G60: 212,167.62
A61: 55 | B61: 绍兴麦康有限公司 | C61: 货款 | D61: 1年以内 | E61: 11,536.34 | G61: 11,536.34
A62: 56 | B62: 方祥医疗器械有限公司 | C62: 货款 | D62: 1年以内 | E62: 7,121.78 | G62: 7,121.78
A63: 57 | B63: 浙江伏尔特有限公司 | C63: 货款 | D63: 1-2年 | E63: 0.01 | G63: 0.01
A64: 58 | B64: 衢州三合有限公司 | C64: 货款 | D64: 1-2年 | E64: 5,000.00 | G64: 5,000.00
A65: 59 | B65: 杭州奕强有限公司 | C65: 货款 | D65: 1-2年 | E65: 0.05 | G65: 0.05
A66: 60 | B66: 宁波孚润康泽有限公司 | C66: 货款 | D66: 1-2年 | E66: 9,271.80 | G66: 9,271.80
A67: 61 | B67: 杭州森阔贸易有限公司 | C67: 货款 | D67: 1年以内 | E67: 45,549.49 | G67: 45,549.49
A68: 62 | B68: 昆明贝泰妮生物科技有限公司 | C68: 货款 | D68: 1-2年 | E68: 0.01 | G68: 0.01
A69: 63 | B69: 嘉兴沁雅有限公司 | C69: 货款 | D69: 1年以内 | E69: 5.56 | G69: 5.56
A70: 64 | B70: 杭州惠康有限公司 | C70: 货款 | D70: 1-2年 | E70: 0.07 | G70: 0.07
A71: 65 | B71: 杭州烨玖有限公司 | C71: 货款 | D71: 2-3年 | E71: 3,777.77 | G71: 3,777.77
A72: 66 | B72: 杭州擦擦净有限公司 | C72: 货款 | D72: 1-2年 | E72: 0.01 | G72: 0.01
A73: 67 | B73: 杭州华商贸易有限公司 | C73: 货款 | D73: 1年以内 | E73: 8,006.20 | G73: 8,006.20
A74: 68 | B74: 杭州蓝鲲有限公司 | C74: 货款 | D74: 1年以内 | E74: 26,230.39 | G74: 26,230.39
A75: 69 | B75: 广州新松医疗有限公司 | C75: 货款 | D75: 1年以内 | E75: 820.51 | G75: 820.51
A76: 70 | B76: 杭州爱博森（杭州百科生物科技有限公司） | C76: 货款 | D76: 1年以内 | E76: 15,727.22 | G76: 15,727.22
A77: 71 | B77: 浙江太古可口可乐公司 | C77: 货款 | D77: 1-2年 | E77: 658.21 | G77: 658.21
A78: 72 | B78: 宁波海曙有限公司 | C78: 货款 | D78: 1年以内 | E78: 18,535.32 | G78: 18,535.32
A79: 73 | B79: 杭州木吾木同有限公司 | C79: 货款 | D79: 1-2年 | E79: 1,128.21 | G79: 1,128.21
A80: 74 | B80: 杭州海根科技有限公司 | C80: 货款 | D80: 1年以内 | E80: 148,965.52 | G80: =E80+F80 -> 148,965.52
A81: 75 | B81: 杭州百优特有限公司 | C81: 货款 | D81: 1-2年 | E81: 2,487.18 | G81: 2,487.18
A82: 76 | B82: 杭州智宣科技有限公司 | C82: 货款 | D82: 1年以内 | E82: 25,660.18 | G82: 25,660.18
A83: 77 | B83: 江苏悦峰达有限公司 | C83: 货款 | D83: 1年以内 | E83: 63,649.70 | G83: 63,649.70
A84: 78 | B84: 杭州悦行优品有限公司 | C84: 货款 | D84: 1年以内 | E84: 64,544.39 | G84: 64,544.39
A85: 79 | B85: 杭州萌睿医疗器械有限公司 | C85: 货款 | D85: 1年以内 | E85: 34,262.10 | G85: 34,262.10
A86: 80 | B86: 杭州千瑞医疗有限公司 | C86: 货款 | D86: 1年以内 | E86: 620.69 | G86: 620.69
A87: 81 | B87: 杭州逗点有限公司 | C87: 货款 | D87: 1-2年 | E87: 13,820.48 | G87: 13,820.48
A88: 82 | B88: 杭州康禾医药有限公司 | C88: 货款 | D88: 1年以内 | E88: 9,291.52 | G88: 9,291.52
A89: 83 | B89: 杭州梵华医疗科技有限公司 | C89: 货款 | D89: 1-2年 | E89: 15,384.63 | G89: 15,384.63
A90: 84 | B90: 阜阳市福泰医疗有限公司 | C90: 货款 | D90: 1-2年 | E90: 0.01 | G90: 0.01
A91: 85 | B91: 杭州东兰贸易有限公司 | C91: 货款 | D91: 1年以内 | E91: 7,182.73 | G91: 7,182.73
A92: 86 | B92: 杭州贝瑞保健食品有限公司 | C92: 货款 | D92: 1年以内 | E92: 90,123.36 | G92: 90,123.36
A93: 87 | B93: 杭州旭美医疗器械有限公司 | C93: 货款 | D93: 1年以内 | E93: 103,936.78 | G93: 103,936.78
A94: 88 | B94: 杭州翰鼎医疗器械有限公司 | C94: 货款 | D94: 1年以内 | E94: 3,465.54 | G94: 3,465.54
A95: 89 | B95: 杭州营特有限公司 | C95: 货款 | D95: 1年以内 | E95: 1,008.32 | G95: 1,008.32
A96: 90 | B96: 杭州弘杰有限公司 | C96: 货款 | D96: 1年以内 | E96: 2,104.56 | G96: 2,104.56
A97: 91 | B97: 杭州海誉有限公司 | C97: 货款 | D97: 1年以内 | E97: 5,694.06 | G97: 5,694.06
A98: 92 | B98: 杭州玻尔有限公司 | C98: 货款 | D98: 1年以内 | E98: 8,226.49 | G98: 8,226.49
A99: 93 | B99: 杭州亚丽有限公司 | C99: 货款 | D99: 1年以内 | E99: 3,882.53 | G99: 3,882.53
A100: 94 | B100: 南京林之语医疗科技有限公司 | C100: 货款 | D100: 1年以内 | E100: 52,086.94 | G100: 52,086.94
A101: 95 | B101: 杭州芙泽生物科技有限公司 | C101: 货款 | D101: 1年以内 | E101: 66.49 | G101: 66.49
A102: 96 | B102: 杭州源秋医药科技有限公司 | C102: 货款 | D102: 1年以内 | E102: 49,997.63 | G102: 49,997.63
A103: 97 | B103: 西安高通科技发展有限公司 | C103: 货款 | D103: 1年以内 | E103: 6,837.62 | G103: 6,837.62
A104: 98 | B104: 上海苏迤（YI）医疗器械有限公司 | C104: 货款 | D104: 1年以内 | E104: 12,737.95 | G104: 12,737.95
A105: 99 | B105: 上海念成贸易发展有限公司 | C105: 货款 | D105: 1年以内 | E105: 6,483.96 | G105: 6,483.96
A106: 100 | B106: 杭州旺达医疗科技有限公司 | C106: 货款 | D106: 1-2年 | E106: 1,641.03 | G106: 1,641.03
A107: 101 | B107: 杭州康颂贸易有限公司 | C107: 货款 | D107: 1年以内 | E107: 83.03 | G107: 83.03
A108: 102 | B108: 杭州德邻医疗器械有限公司 | C108: 货款 | D108: 1-2年 | E108: 13,784.62 | G108: 13,784.62
A109: 103 | B109: 南京三生生物技术有限公司 | C109: 货款 | D109: 1年以内 | E109: 68,621.36 | G109: 68,621.36
A110: 104 | B110: 杭州瑞吉医疗科技有限公司 | C110: 货款 | D110: 1-2年 | E110: 598.29 | G110: 598.29
A111: 105 | B111: 杭州品宥医疗器械有限公司 | C111: 货款 | D111: 1-2年 | E111: 394.87 | G111: 394.87
A112: 106 | B112: 杭州扶遥医疗器械有限公司 | C112: 货款 | D112: 1年以内 | E112: 6,901.41 | G112: =E112+F112 -> 6,901.41
A113: 107 | B113: 杭州德弘医药有限公司 | C113: 货款 | D113: 1-2年 | E113: 10,341.88 | G113: 10,341.88
A114: 108 | B114: 杭州崧洋生物科技有限公司 | C114: 货款 | D114: 1-2年 | E114: 2,384.62 | G114: 2,384.62
A115: 109 | B115: 奥林巴斯贸易（上海）有限公司 | C115: 货款 | D115: 1-2年 | E115: 2,324.79 | G115: 2,324.79
A116: 110 | B116: 杭州临武医药科技有限公司 | C116: 货款 | D116: 1年以内 | E116: 7,790.84 | G116: 7,790.84
A117: 111 | B117: 杭州九曜医疗器械有限公司 | C117: 货款 | D117: 1-2年 | E117: 683.76 | G117: 683.76
A118: 112 | B118: 杭州浩仁生物科技有限公司 | C118: 货款 | D118: 1年以内 | E118: 2.57 | G118: 2.57
A119: 113 | B119: 杭州星空贸易有限公司 | C119: 货款 | D119: 1年以内 | E119: 0.11 | G119: 0.11
A120: 114 | B120: 杭州安琪儿服装7区 | C120: 货款 | D120: 1年以内 | E120: 0.72 | G120: 0.72
A121: 115 | B121: 浙江喜美恩健康管理有限公司 | C121: 货款 | D121: 1年以内 | E121: 4,196.07 | G121: 4,196.07
A122: 116 | B122: 浙江佳远医疗器械有限公司 | C122: 货款 | D122: 1年以内 | E122: 5,597.09 | G122: 5,597.09
A123: 117 | B123: 南京静熙生物科技有限公司 | C123: 货款 | D123: 1年以内 | E123: 126,972.59 | G123: 126,972.59
A124: 118 | B124: 杭州四季青面料市场满忆寝具用品商行 | C124: 货款 | D124: 1年以内 | E124: 1,120.00 | G124: 1,120.00
A125: 119 | B125: 安徽华源包装有限公司 | C125: 货款 | D125: 1年以内 | E125: 1,206.90 | G125: 1,206.90
A126: 120 | B126: 上海伟星光学有限公司 | C126: 货款 | D126: 1年以内 | E126: 16,212.93 | G126: 16,212.93
A127: 121 | B127: 杭州拓禾医疗器械有限公司 | C127: 货款 | D127: 1年以内 | E127: 40,543.14 | G127: 40,543.14
A128: 122 | B128: 杭州博强医疗器械有限公司 | C128: 货款 | D128: 1年以内 | E128: 4,769.85 | G128: 4,769.85
A129: 123 | B129: 深圳健安医药有限公司 | C129: 货款 | D129: 1年以内 | E129: 1,627.50 | G129: 1,627.50
A130: 124 | B130: 杭州和黄医药科技有限公司 | C130: 货款 | D130: 1年以内 | E130: 3,243.11 | G130: 3,243.11
A131: 125 | B131: 杭州四季青靠得牢布行 | C131: 货款 | D131: 1年以内 | E131: 5,610.00 | G131: 5,610.00
A132: 126 | B132: 宁波爱肤美生物科技有限公司 | C132: 货款 | D132: 1年以内 | E132: 15,611.02 | G132: 15,611.02
A133: 127 | B133: 杭州济修止贸易有限公司 | C133: 货款 | D133: 1年以内 | E133: 12,242.84 | G133: 12,242.84
A134: 128 | B134: 上海勤月生物科技有限公司 | C134: 货款 | D134: 1年以内 | E134: 76,949.05 | G134: 76,949.05
A135: 129 | B135: 浙江嘉事有限公司 | C135: 货款 | D135: 1年以内 | E135: 8,689.65 | G135: 8,689.65
A136: 130 | B136: 杭州天臣贸易有限公司 | C136: 货款 | D136: 1年以内 | E136: 3,862.06 | G136: 3,862.06
A137: 131 | B137: 杭州优越贸易有限公司 | C137: 货款 | D137: 1年以内 | E137: 31,172.42 | G137: 31,172.42
A138: 132 | B138: 杭州柳叶刀医疗用品有限公司 | C138: 货款 | D138: 1年以内 | E138: 7,200.00 | G138: 7,200.00
A139: 133 | B139: 杭州鸿稻农产品开发有限公司 | C139: 货款 | D139: 1年以内 | E139: 81.82 | G139: 81.82
A140: 134 | B140: 上海涣昱医疗科技中心 | C140: 货款 | D140: 1年以内 | E140: 15,778.54 | G140: 15,778.54
A141: 135 | B141: 杭州皓智医疗器械有限公司 | C141: 货款 | D141: 1年以内 | E141: 4,960.35 | G141: 4,960.35
A142: 136 | B142: 嘉兴金宝医疗卫生用品有限公司 | C142: 货款 | D142: 1年以内 | E142: 19,620.69 | G142: 19,620.69
A143: 137 | B143: 杭州全欣生物科技有限公司 | C143: 货款 | D143: 1年以内 | E143: 12,062.05 | G143: 12,062.05
A144: 138 | B144: 杭州笃初诚美科技有限公司 | C144: 货款 | D144: 1年以内 | E144: 48,275.86 | G144: =E144+F144 -> 48,275.86
A145: 139 | B145: 杭州多塞多医疗器械有限公司 | C145: 货款 | D145: 1年以内 | E145: 11,448.28 | G145: 11,448.28
A146: 140 | B146: 杭州引领医疗器械有限公司 | C146: 货款 | D146: 1年以内 | E146: 2,068.97 | G146: 2,068.97
A147: 141 | B147: 杭州携腾医疗器械有限公司 | C147: 货款 | D147: 1年以内 | E147: 4,827.59 | G147: 4,827.59
A148: 142 | B148: 杭州圆景贸易有限公司 | C148: 货款 | D148: 1年以内 | E148: 18,320.40 | G148: 18,320.40
A149: 143 | B149: 杭州脉乐医疗科技有限公司 | C149: 货款 | D149: 1年以内 | E149: 14,168.28 | G149: 14,168.28
A150: 144 | B150: 上海勤翱贸易有限公司 | C150: 货款 | D150: 1年以内 | E150: 15,300.00 | G150: 15,300.00
A151: 145 | B151: 杭州俊奥贸易有限公司 | C151: 货款 | D151: 1年以内 | E151: 4,617.23 | G151: 4,617.23
A152: 146 | B152: 杭州丝雨生物科技有限公司 | C152: 货款 | D152: 1年以内 | E152: 3,873.79 | G152: 3,873.79
A153: 147 | B153: 温州力正日用品有限公司 | C153: 货款 | D153: 1年以内 | E153: 9,569.83 | G153: 9,569.83
A154: 148 | B154: 杭州代诺医疗科技有限公司 | C154: 货款 | D154: 1年以内 | E154: 21,320.00 | G154: 21,320.00
A155: 149 | B155: 杭州华予贸易有限公司 | C155: 货款 | D155: 1年以内 | E155: 49,241.37 | G155: 49,241.37
A156: 150 | B156: 杭州无花果科技有限公司 | C156: 货款 | D156: 1年以内 | E156: 1,448.28 | G156: 1,448.28
A157: 151 | B157: 杭州鸿弘贸易有限公司 | C157: 货款 | D157: 1年以内 | E157: 6,905.69 | G157: 6,905.69
A158: 152 | B158: 浙江企业家俱乐部 | C158: 货款 | D158: 3年以上 | E158: 10,194.67 | G158: 10,194.67
A159: 153 | B159: 杭州卓康有限公司（上海盈健） | C159: 货款 | D159: 3年以上 | E159: 24,166.50 | G159: 24,166.50
A160: 154 | B160: 杭州科嘉有限公司 | C160: 货款 | D160: 1年以内 | E160: 899.08 | G160: 899.08
A161: 155 | B161: 杭州华卫生化有限公司 | C161: 货款 | D161: 2-3年 | E161: 2,754.17 | G161: 2,754.17
A162: 156 | B162: 杭州祐康有限公司 | C162: 货款 | D162: 3年以上 | E162: 1,284.00 | G162: 1,284.00
A163: 157 | B163: 杭州东站小商品市场 | C163: 货款 | D163: 1-2年 | E163: 5,199.42 | G163: 5,199.42
A164: 158 | B164: 上海灿世有限公司 | C164: 货款 | D164: 3年以上 | E164: 1,168.60 | G164: 1,168.60
A165: 159 | B165: 杭州益心达有限公司 | C165: 货款 | D165: 1年以内 | E165: 31,455.68 | G165: 31,455.68
A166: 160 | B166: 杭州永健有限公司 | C166: 货款 | D166: 1年以内 | E166: 10,560.59 | G166: 10,560.59
A167: 161 | B167: 深圳大佛医药有限公司 | C167: 货款 | D167: 1年以内 | E167: 57,874.36 | G167: 57,874.36
A168: 162 | B168: 杭州黎雪有限公司 | C168: 货款 | D168: 3年以上 | E168: 340.00 | G168: 340.00
A169: 163 | B169: 常州康芸有限公司 | C169: 货款 | D169: 3年以上 | E169: 388.12 | G169: 388.12
A170: 164 | B170: 浙江省医疗器械有限公司 | C170: 货款 | D170: 1年以内 | E170: 8,069.63 | G170: 8,069.63
A171: 165 | B171: 杭州沁佳有限公司（上海馨臣）（上海佐姿） | C171: 货款 | D171: 1年以内 | E171: 5,213.34 | G171: 5,213.34
A172: 166 | B172: 杭州润杰有限公司（承嘉） | C172: 货款 | D172: 3年以上 | E172: 2,722.33 | G172: 2,722.33
A173: 167 | B173: 杭州仁川贸易有限公司 | C173: 货款 | D173: 3年以上 | E173: 183.86 | G173: 183.86
A174: 168 | B174: 宁波江北有限公司 | C174: 货款 | D174: 3年以上 | E174: 1,300.00 | G174: 1,300.00
A175: 169 | B175: 杭州温冉医疗用品有限公司 | C175: 货款 | D175: 3年以上 | E175: 208.50 | G175: 208.50
A176: 170 | B176: 杭州守望有限公司 | C176: 货款 | D176: 3年以上 | E176: 3.63 | G176: 3.63
A177: 171 | B177: 杭州凯斯医疗有限公司 | C177: 货款 | D177: 3年以上 | E177: 1,333.40 | G177: 1,333.40
A178: 172 | B178: 杭州伟航仪器有限公司 | C178: 货款 | D178: 3年以上 | E178: 8,461.52 | G178: 8,461.52
A179: 173 | B179: 浙江英特药业有限公司 | C179: 货款 | D179: 1年以内 | E179: 36,452.20 | G179: 36,452.20
A180: 174 | B180: 杭州多能生物有限公司 | C180: 货款 | D180: 3年以上 | E180: 9,118.90 | G180: 9,118.90
A181: 175 | B181: 北京圣途安科技有限公司 | C181: 货款 | D181: 3年以上 | E181: 10,256.00 | G181: 10,256.00
A182: 176 | B182: 杭州龙杭贸易有限公司 | C182: 货款 | D182: 3年以上 | E182: 1,293.13 | G182: 1,293.13
A183: 177 | B183: 杭州普生医疗有限公司 | C183: 货款 | D183: 3年以上 | E183: 0.01 | G183: 0.01
A184: 178 | B184: 武汉陶冠贸易有限公司 | C184: 货款 | D184: 1-年 | E184: 25,757.84 | G184: =E184+F184 -> 25,757.84
A185: 179 | B185: 杭州君康有限公司 | C185: 货款 | D185: 1年以内 | E185: 220,848.45 | G185: 220,848.45
A186: 180 | B186: 杭州卡来贸易有限公司 | C186: 货款 | D186: 3年以上 | E186: 641.19 | G186: 641.19
A187: 181 | B187: 德清卫康医疗器械有限公司 | C187: 货款 | D187: 1年以内 | E187: 29,813.83 | G187: 29,813.83
A188: 182 | B188: 南京宏威生物有限公司 | C188: 货款 | D188: 1年以内 | E188: 16,198.18 | G188: 16,198.18
A189: 183 | B189: 金华寿仙谷有限公司 | C189: 货款 | D189: 1年以内 | E189: 2,166.00 | G189: 2,166.00
A190: 184 | B190: 好想你浙江商贸有限公司 | C190: 货款 | D190: 3年以上 | E190: 1,902.53 | G190: 1,902.53
A191: 185 | B191: 江西3L医用制品有限公司 | C191: 货款 | D191: 1年以内 | E191: 21.19 | G191: 21.19
A192: 186 | B192: 杭州健驰有限公司 | C192: 货款 | D192: 1年以内 | E192: 1,629.96 | G192: 1,629.96
A193: 187 | B193: 华东医药股份药品分公司 | C193: 货款 | D193: 1年以内 | E193: 13,905.55 | G193: 13,905.55
A194: 188 | B194: 南京智和医疗有限公司 | C194: 货款 | D194: 3年以上 | E194: 6,102.50 | G194: 6,102.50
A195: 189 | B195: 杭州妙瑞科技有限公司 | C195: 货款 | D195: 2-3年 | E195: 2,859.94 | G195: 2,859.94
A196: 190 | B196: 康颂眼镜有限公司 | C196: 货款 | D196: 3年以上 | E196: 4,350.00 | G196: 4,350.00
A197: 191 | B197: 浙江老年报有限公司 | C197: 货款 | D197: 3年以上 | E197: 15.46 | G197: 15.46
A198: 192 | B198: 上海兰荷生物科技有限公司 | C198: 货款 | D198: 1年以内 | E198: 9,384.56 | G198: 9,384.56
A199: 193 | B199: 杭州嘉尼南科有限公司 | C199: 货款 | D199: 3年以上 | E199: 0.22 | G199: 0.22
A200: 194 | B200: 光正眼镜有限公司 | C200: 货款 | D200: 3年以上 | E200: 5,786.00 | G200: 5,786.00
A201: 195 | B201: 杭州中萃食品有限公司 | C201: 货款 | D201: 3年以上 | E201: 96.96 | G201: 96.96
A202: 196 | B202: 杭州海迦医疗有限公司 | C202: 货款 | D202: 1-2年 | E202: 1,230.64 | G202: 1,230.64
... 4 more rows

Sheet 预收账款清查明细表 (hidden)
A1: 预收账款清查明细表
A2: 清查基准日：2018年12月31日
A3: =应付账款清查明细表!A4 -> 资产占有单位名称：杭州中惠医疗器械有限公司 | G3: 金额单位:人民币元
A4: 序号 | B4: 项 目 | C4: 业务内容 | D4: 账龄 | E4: 账面值 | F4: 调整数 | G4: 清查值 | H4: 备 注
D5: （年）
A6: 1 | G6: =E6+F6 -> 0 | J6: 225423.7
A7: 2 | G7: =E7+F7 -> 0 | J7: 25675.9
A8: 3 | G8: 0
A9: 4 | G9: 0
A10: 5 | G10: 0
A11: 6 | G11: 0
A12: 7 | G12: 0
A13: 8 | G13: 0
A14: 9 | G14: 0
A15: 10 | G15: 0
A16: 11 | G16: 0
A17: 12 | G17: 0
A18: 13 | G18: 0
A19: 14 | G19: 0
A20: 15 | G20: 0
A21: 16 | G21: 0
A22: 17 | G22: 0
A23: 本 页 小 计 | D23: 1 | E23: =SUM(E6:E22) -> 0 | F23: =SUM(F6:F22) -> 0 | G23: 0
A24: 合 计 | D24: 1 | E24: =E23 -> 0 | F24: =SUM(F6:F22) -> 0 | G24: =G23 -> 0

Sheet 应付职工薪酬清查明细表
A1: 应付职工薪酬清查明细表
A3: 清查基准日：2018年12月31日
A4: =预收账款清查明细表!A3 -> 资产占有单位名称：杭州中惠医疗器械有限公司 | F4: 金额单位：人民币元
A5: 序号 | B5: 户 名 | C5: 业务内容 | D5: 账 面 值 | E5: 调整数 | F5: 清查数 | G5: 备 注
A7: 1 | B7: 职工 | C7: 工资 | D7: 153,599.00 | F7: =D7+E7 -> 153,599.00
A8: =A7+1 -> 2 | F8: =D8+E8 -> 0
A9: 3 | F9: 0
A10: 4 | F10: 0
A11: 5 | F11: 0
A12: 6 | F12: 0
A13: 7 | F13: 0
A14: 8 | F14: 0
A22: 本 页 小 计 | D22: =SUM(D7:D21) -> 153,599.00 | E22: =SUM(E7:E21) -> 0 | F22: =SUM(F7:F21) -> 153,599.00
A23: 合 计 | C23: ** | D23: =D22 -> 153,599.00 | E23: =E22 -> 0 | F23: =F22 -> 153,599.00

Sheet 应交税费清查明细表
A1: 应交税费清查明细表 | I1: 3676.26
I2: 467.94
A3: 清查基准日：2018年12月31日 | I3: 311.97
A4: =预收账款清查明细表!A3 -> 资产占有单位名称：杭州中惠医疗器械有限公司 | F4: 金额单位：人民币元
A5: 序号 | B5: 户 名 | C5: 业务内容 | D5: 账面值 | E5: 调整数 | F5: 清查值 | G5: 备注
A7: 1 | B7: 杭州市上城区国家税务局 | C7: 增值税 | D7: 199,444.24 | F7: =D7+E7 -> 199,444.24 | H7: 9,801.21 | I7: 9136.06
A8: 2 | B8: 杭州市上城区国家税务局 | C8: 企业所得税 | D8: -32,875.31 | F8: =D8+E8 -> -32,875.31 | H8: 11,165.92 | I8: 3961.44
A9: 3 | B9: 杭州市地方税务局上城税务分局 | C9: 城市维护建设税 | D9: 2,980.48 | F9: 2,980.48 | H9: 4,072.00 | I9: 4025.44
A10: 4 | B10: 杭州市地方税务局上城税务分局 | C10: 教育费附加 | D10: 1,277.37 | F10: 1,277.37 | H10: 637.54
A11: 5 | B11: 杭州市地方税务局上城税务分局 | C11: 地方教育费附加 | D11: 851.60 | F11: 851.60 | H11: 425.04
F12: 0 | H12: 增值税 | I12: 9801.21
F13: 0 | H13: 企业所得税 | I13: 11165.92
H14: 城市维护建设税 | I14: 4072
H15: 教育费附加 | I15: 637.54
H16: 地方教育费附加 | I16: 425.04
H17: 印花税 | I17: 40
H18: 个人所得税 | I18: -355.03
H19: 水利建设专项资金 | I19: 528.79
H20: 残保金 | I20: 18274.7
A21: 本 页 小 计 | D21: =SUM(D7:D19) -> 171,678.38 | E21: =SUM(E7:E19) -> 0 | F21: =SUM(F7:F19) -> 171,678.38 | G21: =SUM(G7:G19) -> 0
A22: 合 计 | C22: ** | D22: =D21 -> 171,678.38 | E22: 0 | F22: 171,678.38
F31: 3961.44
F32: 41,003.76
F33: =SUM(F31:F32) -> 44,965.20
F34: -355.03 | G34: 1
F35: -25,249.58
F36: 61,652.00
F37: -25,675.90
F38: 151,365.68
C39: （1）清查调整减少44,965.20元，系补提少提印花税、企业所得税、增值税、城建税及附加税、水利建设专项资金、残保金；（2）清查增加数355.03元，系冲回多提代扣代缴个人所得税；（3）清查调整增加25,249.60元 ，系冲回多提折旧；（5）清查调整减少61,652.00 元，系应付中介费调整；（6）清查调整增加25,675.90元，系预收员工伙食费清理调整；（8）清查调整减少151,365.68元，系补提社保。

Sheet 应付利息清查明细表 (hidden)
A1: 应付利息清查明细表
A3: 清查基准日：2018年12月31日
A4: =应交税费清查明细表!A4 -> 资产占有单位名称：杭州中惠医疗器械有限公司 | F4: 金额单位：人民币元
A5: 序号 | B5: 户 名 | C5: 业务内容 | D5: 账 面 值 | E5: 调整数 | F5: 清查数 | G5: 备注
A7: 1 | F7: =D7+E7 -> 0.00
A8: =A7+1 -> 2 | F8: =D8+E8 -> 0.00
A9: 3 | F9: 0.00
A10: 4 | F10: 0.00
A11: 5 | F11: 0.00
A12: 6 | F12: 0.00
A13: 7 | F13: 0.00
A14: 8 | F14: 0.00
A15: 9 | F15: 0.00
A16: 本 页 小 计 | D16: =SUM(D7:D15) -> 0.00 | E16: =SUM(E7:E15) -> 0.00 | F16: =SUM(F7:F15) -> 0.00
A17: 合 计 | C17: ** | D17: =D16 -> 0.00 | E17: =E16 -> 0.00 | F17: =F16 -> 0.00

Sheet 其他应付款清查明细表
A1: 其他应付款清查明细表
A3: 清查基准日：2018年12月31日
A4: =应交税费清查明细表!A4 -> 资产占有单位名称：杭州中惠医疗器械有限公司 | G4: 金额单位：人民币元
A5: 序号 | B5: 户 名 | C5: 业务内容 | D5: 账龄 | E5: 账面值 | F5: 调整数 | G5: 清查数 | H5: 备注
A7: 1 | B7: 杭州大手科技有限公司 | C7: 工程款 | D7: 3年以上 | E7: 180.00 | G7: =E7+F7 -> 180.00
A8: 2 | B8: 兔宝宝装修 | C8: 装修款 | D8: 3年以上 | E8: 9,126.00 | G8: 9,126.00
A9: 3 | B9: 预提劳务费 | C9: 预提费用 | D9: 1年以内 | E9: 65,990.00 | G9: 65,990.00 | H9: 19年已支付
A10: 4 | B10: 中惠营业收入款 | C10: 预收款 | D10: 1年以内 | E10: 15,010.74 | G10: 15,010.74 | H10: 19年已支付
A11: 5 | G11: 0
A12: 6 | G12: 0
A13: 7 | G13: 0
A14: 8 | G14: 0
A15: 9 | G15: 0
A16: 10 | G16: 0
A17: 11 | G17: 0
A18: 12 | G18: 0
A19: 13 | G19: 0
A20: 14 | G20: 0
A21: 本 页 小 计 | E21: =SUM(E7:E20) -> 90,306.74 | F21: =SUM(F7:F20) -> 0 | G21: 90,306.74
A22: 合 计 | E22: =E21 -> 90,306.74 | F22: 0 | G22: 90,306.74

Sheet 长期借款清查明细表 (hidden)
A1: 长期借款清查明细表
A3: 清查基准日：2018年12月31日
A4: =应交税费清查明细表!A4 -> 资产占有单位名称：杭州中惠医疗器械有限公司 | G4: 金额单位：人民币元
A5: 序 号 | B5: 名称 | C5: 发生日期 | D5: 到期日期 | E5: 账面值 | F5: 调整数 | G5: 清查数 | H5: 备注
A7: 1 | G7: =E7+F7 -> 0.00
A17: 本 页 小 计 | E17: =SUM(E7:E16) -> 0.00 | F17: =SUM(F7:F16) -> 0.00 | G17: =SUM(G7:G16) -> 0.00
A18: 合 计 | E18: =E17 -> 0.00 | F18: =F17 -> 0.00 | G18: =G17 -> 0.00

Sheet 递延收益清查明细表 (hidden)
A1: 递延税款清查明细表
A3: 清查基准日：2018年12月31日
A4: =应交税费清查明细表!A4 -> 资产占有单位名称：杭州中惠医疗器械有限公司 | E4: 金额单位：人民币元 | F4: 金额单位:人民币元
A5: 序号 | B5: 户 名 | C5: 业务内容 | D5: 账 面 值 | E5: 调整数 | F5: 清查数
A7: 1 | F7: =D7+E7 -> 0.00 | G7: 在审计前几年审计报告中有披露是什么款项，核实一下，把内容写到说明中去？
A8: =A7+1 -> 2 | F8: 0.00
A9: =A8+1 -> 3 | F9: 0.00
A10: 4 | F10: 0.00
A11: 5 | F11: 0.00
A12: 6 | F12: 0.00
A13: 7 | F13: 0.00
A14: 8 | F14: 0.00
A20: 本 页 小 计 | D20: =SUM(D7:D19) -> 0.00 | E20: =SUM(E7:E19) -> 0.00 | F20: =SUM(F7:F19) -> 0.00
A21: 合 计 | C21: ** | D21: =D20 -> 0.00 | E21: =E20 -> 0.00 | F21: =F20 -> 0.00

Sheet 所有者权益清查汇总表
A1: 所有者权益清查汇总表
A3: 清查基准日：2018年12月31日
A4: =应交税费清查明细表!A4 -> 资产占有单位名称：杭州中惠医疗器械有限公司 | G4: 金额单位：人民币元
A5: 序号 | B5: 项 目 | C5: 附明细表页数 | D5: 账面值 | E5: 调整数 | F5: 清查值 | G5: 备注 | H5: 增值率
H6: (%)
B7: 净资产 | D7: =D8+D9+D10+D11 -> 2,489,591.76 | E7: =E8+E9+E10+E11 -> 0.00 | F7: =D7+E7 -> 2,489,591.76 | H7: =H17 -> 
A8: 1 | B8: 其中：实收资本 | D8: 500,000.00 | F8: =D8+E8 -> 500,000.00
A9: =A8+1 -> 2 | B9: 资本公积 | F9: =D9+E9 -> 0.00
A10: =A9+1 -> 3 | B10: 盈余公积 | F10: =D10+E10 -> 0.00 | J10: =44965.2-276.51 -> 44,688.69
A11: =A10+1 -> 4 | B11: 未分配利润 | D11: 1,989,591.76 | F11: =D11+E11 -> 1,989,591.76 | J11: -355.03
J12: -25,249.58
J13: 61,652.00
J14: -25,675.90
J15: 151,365.68
A17: 总计 | C17: ** | D17: =SUM(D8:D16) -> 2,489,591.76 | E17: =E11 -> 0.00 | F17: =F7 -> 2,489,591.76 | H17: =#REF!/D17*100 -> 

Sheet Sheet1 (hidden)
A1: 日期 | B1: 记账凭证 | C1: 摘要 | D1: 借方金额 | E1: 贷方金额 | F1: 备注 | H1: 初始金额
A2: 2018-01-11 | B2: 记-012 | C2: 伙食费(税务学会) | D2: 0 | E2: 1,584.00 | F2: 暂收伙食费
A3: 2018-01-23 | B3: 记-028 | C3: 伙食费 | D3: 0 | E3: 14,000.00 | F3: 暂收伙食费
A4: 2018-01-31 | B4: 记-031 | C4: 伙食费 | D4: 0 | E4: 5,830.00 | F4: 暂收伙食费
A5: 2018-01-31 | B5: 记-035 | C5: 食堂收入 | D5: 31,429.90 | E5: 0 | F5: 暂收伙食费
A6: 2018-01-31 | B6: 记-036 | C6: 员工补贴 | D6: 0 | E6: 29,258.00 | F6: 暂收伙食费
A7: 2018-02-13 | B7: 记-030 | C7: 伙食费 | D7: 0 | E7: 14,000.00 | F7: 暂收伙食费
A8: 2018-02-28 | B8: 记-039 | C8: 食堂收入 | D8: 61,789.10 | E8: 0 | F8: 暂收伙食费
A9: 2018-02-28 | B9: 记-040 | C9: 员工补贴 | D9: 0 | E9: 13,223.00 | F9: 暂收伙食费
A10: 2018-03-08 | B10: 记-011 | C10: 伙食费 | D10: 0 | E10: 14,000.00 | F10: 暂收伙食费
A11: 2018-03-08 | B11: 记-012 | C11: 伙食费 | D11: 0 | E11: 3,168.00 | F11: 暂收伙食费
A12: 2018-03-30 | B12: 记-031 | C12: 伙食费 | D12: 0 | E12: 6,700.00 | F12: 暂收伙食费
A13: 2018-03-31 | B13: 记-034 | C13: 食堂收入 | D13: 16,606.60 | E13: 0 | F13: 暂收伙食费
A14: 2018-03-31 | B14: 记-035 | C14: 员工补贴 | D14: 0 | E14: 29,230.00 | F14: 暂收伙食费
A15: 2018-04-08 | B15: 记-009 | C15: 伙食费 | D15: 0 | E15: 14,000.00 | F15: 暂收伙食费
A16: 2018-04-16 | B16: 记-014 | C16: 伙食费 | D16: 0 | E16: 1,584.00 | F16: 暂收伙食费
A17: 2018-04-27 | B17: 记-025 | C17: 伙食费 | D17: 0 | E17: 3,700.00 | F17: 暂收伙食费
A18: 2018-04-27 | B18: 记-026 | C18: 退伙食费(赵琦燕) | D18: 8,451.00 | E18: 0 | F18: 暂收伙食费
A19: 2018-04-30 | B19: 记-029 | C19: 食堂收入 | D19: 30,272.70 | E19: 0 | F19: 暂收伙食费
A20: 2018-04-30 | B20: 记-030 | C20: 员工补贴 | D20: 0 | E20: 13,251.00 | F20: 暂收伙食费
A21: 2018-05-02 | B21: 记-001 | C21: 退伙食费(郭辰) | D21: 4,200.00 | E21: 0 | F21: 暂收伙食费
A22: 2018-05-10 | B22: 记-014 | C22: 伙食费 | D22: 0 | E22: 14,000.00 | F22: 暂收伙食费
A23: 2018-05-21 | B23: 记-021 | C23: 伙食费 | D23: 0 | E23: 3,168.00 | F23: 暂收伙食费
A24: 2018-05-31 | B24: 记-028 | C24: 伙食费 | D24: 0 | E24: 4,400.00 | F24: 暂收伙食费
A25: 2018-05-31 | B25: 记-031 | C25: 食堂收入 | D25: 19,753.20 | E25: 0 | F25: 暂收伙食费
A26: 2018-05-31 | B26: 记-032 | C26: 员工补贴 | D26: 0 | E26: 13,250.00 | F26: 暂收伙食费
A27: 2018-06-05 | B27: 记-004 | C27: 伙食费 | D27: 0 | E27: 1,000.00 | F27: 暂收伙食费
A28: 2018-06-12 | B28: 记-014 | C28: 伙食费 | D28: 0 | E28: 13,600.00 | F28: 暂收伙食费
A29: 2018-06-28 | B29: 记-030 | C29: 伙食费 | D29: 0 | E29: 3,915.00 | F29: 暂收伙食费
A30: 2018-06-29 | B30: 记-034 | C30: 食堂收入 | D30: 41,576.50 | E30: 0 | F30: 暂收伙食费
A31: 2018-06-29 | B31: 记-035 | C31: 员工补贴 | D31: 0 | E31: 13,209.00 | F31: 暂收伙食费
A32: 2018-07-03 | B32: 记-007 | C32: 退还伙食费 | D32: 7,835.90 | E32: 0 | F32: 暂收伙食费
A33: 2018-07-10 | B33: 记-023 | C33: 伙食费 | D33: 0 | E33: 13,700.00 | F33: 暂收伙食费
A34: 2018-07-16 | B34: 记-028 | C34: 退还伙食费 | D34: 15,980.40 | E34: 0 | F34: 暂收伙食费
A35: 2018-07-31 | B35: 记-040 | C35: 伙食费 | D35: 0 | E35: 3,168.00 | F35: 暂收伙食费
A36: 2018-07-31 | B36: 记-041 | C36: 伙食费 | D36: 0 | E36: 5,000.00 | F36: 暂收伙食费
A37: 2018-07-31 | B37: 记-046 | C37: 食堂收入 | D37: 18,694.60 | E37: 0 | F37: 暂收伙食费
A38: 2018-07-31 | B38: 记-047 | C38: 员工补贴 | D38: 0 | E38: 13,237.00 | F38: 暂收伙食费
A39: 2018-08-01 | B39: 记-001 | C39: 退还伙食费 | D39: 2,918.80 | E39: 0 | F39: 暂收伙食费 | G39: 赵敏恩 | H39: 2918.8
A40: 2018-08-23 | B40: 记-021 | C40: 退还伙食费 | D40: 2,236.20 | E40: 0 | F40: 暂收伙食费 | G40: 吴洁 | H40: 2236.2
A41: 2018-08-31 | B41: 记-036 | C41: 伙食费 | D41: 0 | E41: 13,600.00 | F41: 暂收伙食费
A42: 2018-08-31 | B42: 记-037 | C42: 伙食费 | D42: 0 | E42: 2,820.00 | F42: 暂收伙食费
A43: 2018-08-31 | B43: 记-041 | C43: 食堂收入 | D43: 36,208.60 | E43: 0 | F43: 暂收伙食费
A44: 2018-08-31 | B44: 记-042 | C44: 员工补贴 | D44: 0 | E44: 13,216.00 | F44: 暂收伙食费
A45: 2018-09-11 | B45: 记-018 | C45: 伙食费 | D45: 0 | E45: 13,600.00 | F45: 暂收伙食费
A46: 2018-09-18 | B46: 记-021 | C46: 伙食费 | D46: 0 | E46: 3,168.00 | F46: 暂收伙食费
A47: 2018-09-25 | B47: 记-030 | C47: 退伙食费 | D47: 84.00 | E47: 0 | F47: 暂收伙食费
A48: 2018-09-26 | B48: 记-031 | C48: 退还伙食费 | D48: 3,013.00 | E48: 0 | F48: 暂收伙食费
A49: 2018-09-27 | B49: 记-036 | C49: 退还伙食费 | D49: 50,893.80 | E49: 0 | F49: 暂收伙食费
A50: 2018-09-29 | B50: 记-037 | C50: 退还伙食费 | D50: 55,626.90 | E50: 0 | F50: 暂收伙食费
A51: 2018-09-29 | B51: 记-038 | C51: 退还伙食费 | D51: 1,431.90 | E51: 0 | F51: 暂收伙食费
A52: 2018-09-29 | B52: 记-039 | C52: 伙食费 | D52: 0 | E52: 8,400.00 | F52: 暂收伙食费
A53: 2018-09-30 | B53: 记-040 | C53: 退还伙食费 | D53: 14,356.70 | E53: 0 | F53: 暂收伙食费
A54: 2018-09-30 | B54: 记-041 | C54: 退还伙食费 | D54: 23,151.90 | E54: 0 | F54: 暂收伙食费
A55: 2018-09-30 | B55: 记-042 | C55: 伙食费 | D55: 0 | E55: 1,990.00 | F55: 暂收伙食费
A56: 2018-09-30 | B56: 记-045 | C56: 食堂收入 | D56: 34,387.50 | E56: 0 | F56: 暂收伙食费
A57: 2018-09-30 | B57: 记-046 | C57: 员工补贴 | D57: 0 | E57: 13,188.00 | F57: 暂收伙食费
A58: 2018-10-09 | B58: 记-009 | C58: 退伙食费 | D58: 17,273.10 | E58: 0 | F58: 暂收伙食费
A59: 2018-10-12 | B59: 记-010 | C59: 退伙食费 | D59: 2,191.60 | E59: 0 | F59: 暂收伙食费
A60: 2018-10-12 | B60: 记-011 | C60: 退伙食费 | D60: 4,525.90 | E60: 0 | F60: 暂收伙食费
A61: 2018-10-18 | B61: 记-016 | C61: 退伙食费 | D61: 7,744.80 | E61: 0 | F61: 暂收伙食费
A62: 2018-10-19 | B62: 记-017 | C62: 退伙食费 | D62: 15,000.00 | E62: 0 | F62: 暂收伙食费
A63: 2018-10-31 | B63: 记-035 | C63: 伙食费 | D63: 0 | E63: 2,150.00 | F63: 暂收伙食费
A64: 2018-10-31 | B64: 记-040 | C64: 食堂收入 | D64: 6,377.60 | E64: 0 | F64: 暂收伙食费
A65: 2018-10-31 | B65: 记-041 | C65: 员工补贴 | D65: 0 | E65: 13,216.00 | F65: 暂收伙食费
A66: 2018-11-05 | B66: 记-009 | C66: 伙食费 | D66: 0 | E66: 3,168.00 | F66: 暂收伙食费
A67: 2018-11-29 | B67: 记-032 | C67: 伙食费 | D67: 0 | E67: 3,280.00 | F67: 暂收伙食费
A68: 2018-11-30 | B68: 记-035 | C68: 食堂收入 | D68: 14,545.90 | E68: 0 | F68: 暂收伙食费
A69: 2018-11-30 | B69: 记-036 | C69: 员工补贴 | D69: 0 | E69: 13,300.00 | F69: 暂收伙食费
A70: 2018-12-21 | B70: 记-026 | C70: 退还伙食费 | D70: 14,009.70 | E70: 0 | F70: 暂收伙食费
A71: 2018-12-25 | B71: 记-029 | C71: 退还伙食费 | D71: 121.90 | E71: 0 | F71: 暂收伙食费
A72: 2018-12-27 | B72: 记-034 | C72: 伙食费 | D72: 0 | E72: 1,850.00 | F72: 暂收伙食费
A73: 2018-12-29 | B73: 记-037 | C73: 伙食费 | D73: 0 | E73: 600.00 | F73: 暂收伙食费
A74: 2018-12-29 | B74: 记-042 | C74: 伙食费 | D74: 0 | E74: 1,200.00 | F74: 暂收伙食费
A75: 2018-12-29 | B75: 记-043 | C75: 食堂收入 | D75: 10,337.50 | E75: 0 | F75: 暂收伙食费
A76: 2018-12-29 | B76: 记-044 | C76: 员工补贴 | D76: 0 | E76: 13,188.00 | F76: 暂收伙食费
A77: 2018-12-29 | B77: 记-045 | C77: 其他收入 | D77: 8.20 | E77: 0 | F77: 暂收伙食费
A78: 2018-12-29 | B78: 记-052 | C78: 伙食费 | D78: 0 | E78: 19,600.00 | F78: 暂收伙食费
